Workbook

Sheet INSTRUCTIONS
A7: For instructions for use of the solver, please see this page.
A8: For questions or technical issues, please email | G8: support.abraxis@us.goldstandarddiagnostics.com

Sheet 4 Standards
B2: ** USER MUST ONLY INPUT VALUES IN GREY-COLORED CELLS ** | G2: Kit Lot # | P2: Before you start:
B4: Enter the absorbance values of each standard into the grey boxes | P4: Check that "solver" is installed
B5: Std 0 | C5: Std 1 | D5: Std 2 | E5: Std 3
B6: 2.149 | C6: 1.775 | D6: 1.242 | E6: 0.489 | M6: 0.059 | P6: Input OD values for standards (Fig 4 in protocol)
B7: 2.072 | C7: 1.804 | D7: 1.193 | E7: 0.482 | M7: 0.061 | P7: Select solver (Target Cell: $e$32 - Cell Changes: $c$35:$c$38 - Optimize: Minimize - GRG Nonlinear )
P8: "Solve"
P9: Check graph and parametres (A>0.7; D<0.1;
P12: Calculate MC TADDA-concentration in samples in wells:
P13: Input average OD of unknown samples in cell c48 (sample 1) , c49 (sample 2)….
P14: Calculated ELISA MCTADDA concentration are given automatically in cell d48 (sample 1), c49 (sample 2),….
P15: Sample concentrations should only be used from datapoints that are within the valid working range of the standard curve
P17: If OD is outsite the Ic20 to Ic80 range, dilution sholud be adjusted and the samples assayed again
B19: Enter the standard concentrations of each standard into the grey boxes
B20: Standards (ng/ml) | C20: OD (averaged) | D20: Predicted values | E20: Residual Squares | F20: B/Bo | G20: Std Dev | H20: %CV
B21: 0 | C21: =(B6+B7)/2 -> 2.1105 | D21: =($C$28-$C$31)/(1+(B21/$C$30)^$C$29)+$C$31 -> 2.101219922 | E21: =(C21-D21)^2 -> 8.611984133e-05 | G21: =STDEV(B6,B7) -> 0.05444722215 | H21: =(G21/C21)*100 -> 2.579825736
B22: 0.15 | C22: =(C6+C7)/2 -> 1.7895 | D22: =($C$28-$C$31)/(1+(B22/$C$30)^$C$29)+$C$31 -> 1.809907088 | E22: 0.0004164492435 | F22: =C22/C$21 -> 0.8479033404 | G22: =STDEV(C6,C7) -> 0.02050609665 | H22: 1.145912079 | Q22: OD | R22: MCTADDA-conc | S22: X=C x ((A-Y)/(Y-D))^(1/B)
B23: 0.4 | C23: =(D6+D7)/2 -> 1.2175 | D23: =($C$28-$C$31)/(1+(B23/$C$30)^$C$29)+$C$31 -> 1.196917037 | E23: 0.0004236583804 | F23: =C23/C$21 -> 0.5768775172 | G23: =STDEV(D6,D7) -> 0.03464823228 | H23: 2.8458507 | P23: Ic20 | Q23: =$C$31+($C$28-$C$31)*20/100 -> 0.4202439845 | R23: =C30*((C28-Q23)/(Q23-C31))^(1/C29) -> 1.15127758
B24: 1 | C24: =(E6+E7)/2 -> 0.4855 | D24: =($C$28-$C$31)/(1+(B24/$C$30)^$C$29)+$C$31 -> 0.4998879854 | E24: 0.000207014123 | F24: =C24/C$21 -> 0.2300402748 | G24: =STDEV(E6,E7) -> 0.004949747468 | H24: 1.019515441 | P24: Ic80 | Q24: =$C$31+($C$28-$C$31)*80/100 -> 1.680975938 | R24: =C30*((C28-Q24)/(Q24-C31))^(1/C29) -> 0.1983328291
B25: Sum Of Squares | E25: =SUM(E21:E24) -> 0.001133241588
B27: Parameter (Y=(A-D)/(1+(X/C)^B)+D) | E27: R-Squared
B28: A | C28: 2.101219922 | D28: (Max.) | E28: =(CORREL(C21:C24,D21:D24))^2 -> 0.9992822093
B29: B | C29: 1.57651602 | D29: (Slope)
B30: C | C30: 0.4778453092 | D30: (IC50)
B31: D | C31: 0 | D31: (Min.)
B34: Enter descriptions and absorbance values of each sample and control into the grey boxes
B35: Sample/Control | C35: Absorbances | D35: Std Dev | E35: %CV | F35: Sample Concentration (ng/ml) | G35: Sample Concentration Avg (ng/ml) | H35: Comments
B36: Control | C36: 0.491 | F36: =IF(ISBLANK(C36),"",IF(C36<=$C$31,"Invalid",IF(C36>=$C$28,"Invalid",$C$30*(($C$28-C36)/(C36-$C$31))^(1/$C$29)))) -> 1.015001805 | H36: =IF(AND(ISBLANK(C36),ISBLANK(C37)),"",IF(AVERAGE($C36:$C37)>$D$22,"LESS than Standard 1, outside of quantifiable range",IF(AVERAGE($C36:$C37)<$D$24,"GREATER than Standard 3, outside of quantifiable range",""))) -> 
B37: Control | C37: 0.511 | D37: =IF(OR(ISBLANK(C36),ISBLANK(C37)),"",STDEV(C36,C37)) -> 0.01414213562 | E37: =IF(ISTEXT(D37),"",D37/((C36+C37)/2)*100) -> 2.822781562 | F37: =IF(ISBLANK(C37),"",IF(C37<=$C$31,"Invalid",IF(C37>=$C$28,"Invalid",$C$30*(($C$28-C37)/(C37-$C$31))^(1/$C$29)))) -> 0.9818049441 | G37: =IF(AND(ISBLANK(C36),ISBLANK(C37)),"",IF(OR(ISBLANK(C37),ISBLANK(C36)),AVERAGE(F36:F37),IF(OR(ISTEXT(F36),ISTEXT(F37)),"Invalid",AVERAGE(F36:F37)))) -> 0.9984033747
B38: Sample 1 | C38: 1.23 | F38: 0.3839565384 | H38: =IF(AND(ISBLANK(C38),ISBLANK(C39)),"",IF(AVERAGE($C38:$C39)>$D$22,"LESS than Standard 1, outside of quantifiable range",IF(AVERAGE($C38:$C39)<$D$24,"GREATER than Standard 3, outside of quantifiable range",""))) -> 
B39: Sample 1 | C39: 1.25 | D39: =IF(OR(ISBLANK(C38),ISBLANK(C39)),"",STDEV(C38,C39)) -> 0.01414213562 | E39: =IF(ISTEXT(D39),"",D39/((C38+C39)/2)*100) -> 1.140494808 | F39: 0.3744907757 | G39: =IF(AND(ISBLANK(C38),ISBLANK(C39)),"",IF(OR(ISBLANK(C39),ISBLANK(C38)),AVERAGE(F38:F39),IF(OR(ISTEXT(F38),ISTEXT(F39)),"Invalid",AVERAGE(F38:F39)))) -> 0.3792236571
B40: Sample 2 | C40: 1.45 | F40: 0.2875911821 | H40: =IF(AND(ISBLANK(C40),ISBLANK(C41)),"",IF(AVERAGE($C40:$C41)>$D$22,"LESS than Standard 1, outside of quantifiable range",IF(AVERAGE($C40:$C41)<$D$24,"GREATER than Standard 3, outside of quantifiable range",""))) -> 
B41: Sample 2 | C41: 1.405 | D41: =IF(OR(ISBLANK(C40),ISBLANK(C41)),"",STDEV(C40,C41)) -> 0.03181980515 | E41: =IF(ISTEXT(D41),"",D41/((C40+C41)/2)*100) -> 2.229058154 | F41: 0.3061027508 | G41: =IF(AND(ISBLANK(C40),ISBLANK(C41)),"",IF(OR(ISBLANK(C41),ISBLANK(C40)),AVERAGE(F40:F41),IF(OR(ISTEXT(F40),ISTEXT(F41)),"Invalid",AVERAGE(F40:F41)))) -> 0.2968469664
B42: Sample 3 | C42: 1.63 | F42: 0.2174788634 | H42: =IF(AND(ISBLANK(C42),ISBLANK(C43)),"",IF(AVERAGE($C42:$C43)>$D$22,"LESS than Standard 1, outside of quantifiable range",IF(AVERAGE($C42:$C43)<$D$24,"GREATER than Standard 3, outside of quantifiable range",""))) -> 
B43: Sample 3 | C43: 1.65 | D43: =IF(OR(ISBLANK(C42),ISBLANK(C43)),"",STDEV(C42,C43)) -> 0.01414213562 | E43: =IF(ISTEXT(D43),"",D43/((C42+C43)/2)*100) -> 0.8623253429 | F43: 0.2099471887 | G43: =IF(AND(ISBLANK(C42),ISBLANK(C43)),"",IF(OR(ISBLANK(C43),ISBLANK(C42)),AVERAGE(F42:F43),IF(OR(ISTEXT(F42),ISTEXT(F43)),"Invalid",AVERAGE(F42:F43)))) -> 0.2137130261
B44: Sample 4 | C44: 0.52 | F44: 0.9675024548 | H44: =IF(AND(ISBLANK(C44),ISBLANK(C45)),"",IF(AVERAGE($C44:$C45)>$D$22,"LESS than Standard 1, outside of quantifiable range",IF(AVERAGE($C44:$C45)<$D$24,"GREATER than Standard 3, outside of quantifiable range",""))) -> 
B45: Sample 4 | C45: 0.51 | D45: =IF(OR(ISBLANK(C44),ISBLANK(C45)),"",STDEV(C44,C45)) -> 0.007071067812 | E45: =IF(ISTEXT(D45),"",D45/((C44+C45)/2)*100) -> 1.373022876 | F45: 0.9834176881 | G45: =IF(AND(ISBLANK(C44),ISBLANK(C45)),"",IF(OR(ISBLANK(C45),ISBLANK(C44)),AVERAGE(F44:F45),IF(OR(ISTEXT(F44),ISTEXT(F45)),"Invalid",AVERAGE(F44:F45)))) -> 0.9754600715
C46: 2.3 | F46: Invalid | H46: =IF(AND(ISBLANK(C46),ISBLANK(C47)),"",IF(AVERAGE($C46:$C47)>$D$22,"LESS than Standard 1, outside of quantifiable range",IF(AVERAGE($C46:$C47)<$D$24,"GREATER than Standard 3, outside of quantifiable range",""))) -> LESS than Standard 1, outside of quantifiable range
C47: 2.3 | D47: =IF(OR(ISBLANK(C46),ISBLANK(C47)),"",STDEV(C46,C47)) -> 0 | E47: =IF(ISTEXT(D47),"",D47/((C46+C47)/2)*100) -> 0 | F47: Invalid | G47: =IF(AND(ISBLANK(C46),ISBLANK(C47)),"",IF(OR(ISBLANK(C47),ISBLANK(C46)),AVERAGE(F46:F47),IF(OR(ISTEXT(F46),ISTEXT(F47)),"Invalid",AVERAGE(F46:F47)))) -> Invalid
H48: =IF(AND(ISBLANK(C48),ISBLANK(C49)),"",IF(AVERAGE($C48:$C49)>$D$22,"LESS than Standard 1, outside of quantifiable range",IF(AVERAGE($C48:$C49)<$D$24,"GREATER than Standard 3, outside of quantifiable range",""))) -> 
D49: =IF(OR(ISBLANK(C48),ISBLANK(C49)),"",STDEV(C48,C49)) ->  | E49: =IF(ISTEXT(D49),"",D49/((C48+C49)/2)*100) ->  | G49: =IF(AND(ISBLANK(C48),ISBLANK(C49)),"",IF(OR(ISBLANK(C49),ISBLANK(C48)),AVERAGE(F48:F49),IF(OR(ISTEXT(F48),ISTEXT(F49)),"Invalid",AVERAGE(F48:F49)))) -> 
H50: =IF(AND(ISBLANK(C50),ISBLANK(C51)),"",IF(AVERAGE($C50:$C51)>$D$22,"LESS than Standard 1, outside of quantifiable range",IF(AVERAGE($C50:$C51)<$D$24,"GREATER than Standard 3, outside of quantifiable range",""))) -> 
D51: =IF(OR(ISBLANK(C50),ISBLANK(C51)),"",STDEV(C50,C51)) ->  | E51: =IF(ISTEXT(D51),"",D51/((C50+C51)/2)*100) ->  | G51: =IF(AND(ISBLANK(C50),ISBLANK(C51)),"",IF(OR(ISBLANK(C51),ISBLANK(C50)),AVERAGE(F50:F51),IF(OR(ISTEXT(F50),ISTEXT(F51)),"Invalid",AVERAGE(F50:F51)))) -> 
F52: =IF(ISBLANK(C52),"",IF(C52<=$C$31,"Invalid",IF(C52>=$C$28,"Invalid",$C$30*(($C$28-C52)/(C52-$C$31))^(1/$C$29)))) ->  | H52: =IF(AND(ISBLANK(C52),ISBLANK(C53)),"",IF(AVERAGE($C52:$C53)>$D$22,"LESS than Standard 1, outside of quantifiable range",IF(AVERAGE($C52:$C53)<$D$24,"GREATER than Standard 3, outside of quantifiable range",""))) -> 
D53: =IF(OR(ISBLANK(C52),ISBLANK(C53)),"",STDEV(C52,C53)) ->  | E53: =IF(ISTEXT(D53),"",D53/((C52+C53)/2)*100) ->  | G53: =IF(AND(ISBLANK(C52),ISBLANK(C53)),"",IF(OR(ISBLANK(C53),ISBLANK(C52)),AVERAGE(F52:F53),IF(OR(ISTEXT(F52),ISTEXT(F53)),"Invalid",AVERAGE(F52:F53)))) -> 
H54: =IF(AND(ISBLANK(C54),ISBLANK(C55)),"",IF(AVERAGE($C54:$C55)>$D$22,"LESS than Standard 1, outside of quantifiable range",IF(AVERAGE($C54:$C55)<$D$24,"GREATER than Standard 3, outside of quantifiable range",""))) -> 
D55: =IF(OR(ISBLANK(C54),ISBLANK(C55)),"",STDEV(C54,C55)) ->  | E55: =IF(ISTEXT(D55),"",D55/((C54+C55)/2)*100) ->  | G55: =IF(AND(ISBLANK(C54),ISBLANK(C55)),"",IF(OR(ISBLANK(C55),ISBLANK(C54)),AVERAGE(F54:F55),IF(OR(ISTEXT(F54),ISTEXT(F55)),"Invalid",AVERAGE(F54:F55)))) -> 
F56: =IF(ISBLANK(C56),"",IF(C56<=$C$31,"Invalid",IF(C56>=$C$28,"Invalid",$C$30*(($C$28-C56)/(C56-$C$31))^(1/$C$29)))) ->  | H56: =IF(AND(ISBLANK(C56),ISBLANK(C57)),"",IF(AVERAGE($C56:$C57)>$D$22,"LESS than Standard 1, outside of quantifiable range",IF(AVERAGE($C56:$C57)<$D$24,"GREATER than Standard 3, outside of quantifiable range",""))) -> 
D57: =IF(OR(ISBLANK(C56),ISBLANK(C57)),"",STDEV(C56,C57)) ->  | E57: =IF(ISTEXT(D57),"",D57/((C56+C57)/2)*100) ->  | G57: =IF(AND(ISBLANK(C56),ISBLANK(C57)),"",IF(OR(ISBLANK(C57),ISBLANK(C56)),AVERAGE(F56:F57),IF(OR(ISTEXT(F56),ISTEXT(F57)),"Invalid",AVERAGE(F56:F57)))) -> 
H58: =IF(AND(ISBLANK(C58),ISBLANK(C59)),"",IF(AVERAGE($C58:$C59)>$D$22,"LESS than Standard 1, outside of quantifiable range",IF(AVERAGE($C58:$C59)<$D$24,"GREATER than Standard 3, outside of quantifiable range",""))) -> 
D59: =IF(OR(ISBLANK(C58),ISBLANK(C59)),"",STDEV(C58,C59)) ->  | E59: =IF(ISTEXT(D59),"",D59/((C58+C59)/2)*100) ->  | G59: =IF(AND(ISBLANK(C58),ISBLANK(C59)),"",IF(OR(ISBLANK(C59),ISBLANK(C58)),AVERAGE(F58:F59),IF(OR(ISTEXT(F58),ISTEXT(F59)),"Invalid",AVERAGE(F58:F59)))) -> 
H60: =IF(AND(ISBLANK(C60),ISBLANK(C61)),"",IF(AVERAGE($C60:$C61)>$D$22,"LESS than Standard 1, outside of quantifiable range",IF(AVERAGE($C60:$C61)<$D$24,"GREATER than Standard 3, outside of quantifiable range",""))) -> 
D61: =IF(OR(ISBLANK(C60),ISBLANK(C61)),"",STDEV(C60,C61)) ->  | E61: =IF(ISTEXT(D61),"",D61/((C60+C61)/2)*100) ->  | G61: =IF(AND(ISBLANK(C60),ISBLANK(C61)),"",IF(OR(ISBLANK(C61),ISBLANK(C60)),AVERAGE(F60:F61),IF(OR(ISTEXT(F60),ISTEXT(F61)),"Invalid",AVERAGE(F60:F61)))) -> 
H62: =IF(AND(ISBLANK(C62),ISBLANK(C63)),"",IF(AVERAGE($C62:$C63)>$D$22,"LESS than Standard 1, outside of quantifiable range",IF(AVERAGE($C62:$C63)<$D$24,"GREATER than Standard 3, outside of quantifiable range",""))) -> 
D63: =IF(OR(ISBLANK(C62),ISBLANK(C63)),"",STDEV(C62,C63)) ->  | E63: =IF(ISTEXT(D63),"",D63/((C62+C63)/2)*100) ->  | G63: =IF(AND(ISBLANK(C62),ISBLANK(C63)),"",IF(OR(ISBLANK(C63),ISBLANK(C62)),AVERAGE(F62:F63),IF(OR(ISTEXT(F62),ISTEXT(F63)),"Invalid",AVERAGE(F62:F63)))) -> 
H64: =IF(AND(ISBLANK(C64),ISBLANK(C65)),"",IF(AVERAGE($C64:$C65)>$D$22,"LESS than Standard 1, outside of quantifiable range",IF(AVERAGE($C64:$C65)<$D$24,"GREATER than Standard 3, outside of quantifiable range",""))) -> 
D65: =IF(OR(ISBLANK(C64),ISBLANK(C65)),"",STDEV(C64,C65)) ->  | E65: =IF(ISTEXT(D65),"",D65/((C64+C65)/2)*100) ->  | G65: =IF(AND(ISBLANK(C64),ISBLANK(C65)),"",IF(OR(ISBLANK(C65),ISBLANK(C64)),AVERAGE(F64:F65),IF(OR(ISTEXT(F64),ISTEXT(F65)),"Invalid",AVERAGE(F64:F65)))) -> 
H66: =IF(AND(ISBLANK(C66),ISBLANK(C67)),"",IF(AVERAGE($C66:$C67)>$D$22,"LESS than Standard 1, outside of quantifiable range",IF(AVERAGE($C66:$C67)<$D$24,"GREATER than Standard 3, outside of quantifiable range",""))) -> 
D67: =IF(OR(ISBLANK(C66),ISBLANK(C67)),"",STDEV(C66,C67)) ->  | E67: =IF(ISTEXT(D67),"",D67/((C66+C67)/2)*100) ->  | G67: =IF(AND(ISBLANK(C66),ISBLANK(C67)),"",IF(OR(ISBLANK(C67),ISBLANK(C66)),AVERAGE(F66:F67),IF(OR(ISTEXT(F66),ISTEXT(F67)),"Invalid",AVERAGE(F66:F67)))) -> 
H68: =IF(AND(ISBLANK(C68),ISBLANK(C69)),"",IF(AVERAGE($C68:$C69)>$D$22,"LESS than Standard 1, outside of quantifiable range",IF(AVERAGE($C68:$C69)<$D$24,"GREATER than Standard 3, outside of quantifiable range",""))) -> 
D69: =IF(OR(ISBLANK(C68),ISBLANK(C69)),"",STDEV(C68,C69)) ->  | E69: =IF(ISTEXT(D69),"",D69/((C68+C69)/2)*100) ->  | G69: =IF(AND(ISBLANK(C68),ISBLANK(C69)),"",IF(OR(ISBLANK(C69),ISBLANK(C68)),AVERAGE(F68:F69),IF(OR(ISTEXT(F68),ISTEXT(F69)),"Invalid",AVERAGE(F68:F69)))) -> 
H70: =IF(AND(ISBLANK(C70),ISBLANK(C71)),"",IF(AVERAGE($C70:$C71)>$D$22,"LESS than Standard 1, outside of quantifiable range",IF(AVERAGE($C70:$C71)<$D$24,"GREATER than Standard 3, outside of quantifiable range",""))) -> 
D71: =IF(OR(ISBLANK(C70),ISBLANK(C71)),"",STDEV(C70,C71)) ->  | E71: =IF(ISTEXT(D71),"",D71/((C70+C71)/2)*100) ->  | F71: =IF(ISBLANK(C71),"",IF(C71<=$C$31,"invalid",IF(C71>=$C$28,"invalid",$C$30*(($C$28-C71)/(C71-$C$31))^(1/$C$29)))) ->  | G71: =IF(AND(ISBLANK(C70),ISBLANK(C71)),"",IF(OR(ISBLANK(C71),ISBLANK(C70)),AVERAGE(F70:F71),IF(OR(ISTEXT(F70),ISTEXT(F71)),"Invalid",AVERAGE(F70:F71)))) -> 
F72: =IF(ISBLANK(C72),"",IF(C72<=$C$31,"Invalid",IF(C72>=$C$28,"Invalid",$C$30*(($C$28-C72)/(C72-$C$31))^(1/$C$29)))) ->  | H72: =IF(AND(ISBLANK(C72),ISBLANK(C73)),"",IF(AVERAGE($C72:$C73)>$D$22,"LESS than Standard 1, outside of quantifiable range",IF(AVERAGE($C72:$C73)<$D$24,"GREATER than Standard 3, outside of quantifiable range",""))) -> 
D73: =IF(OR(ISBLANK(C72),ISBLANK(C73)),"",STDEV(C72,C73)) ->  | E73: =IF(ISTEXT(D73),"",D73/((C72+C73)/2)*100) ->  | G73: =IF(AND(ISBLANK(C72),ISBLANK(C73)),"",IF(OR(ISBLANK(C73),ISBLANK(C72)),AVERAGE(F72:F73),IF(OR(ISTEXT(F72),ISTEXT(F73)),"Invalid",AVERAGE(F72:F73)))) -> 
H74: =IF(AND(ISBLANK(C74),ISBLANK(C75)),"",IF(AVERAGE($C74:$C75)>$D$22,"LESS than Standard 1, outside of quantifiable range",IF(AVERAGE($C74:$C75)<$D$24,"GREATER than Standard 3, outside of quantifiable range",""))) -> 
D75: =IF(OR(ISBLANK(C74),ISBLANK(C75)),"",STDEV(C74,C75)) ->  | E75: =IF(ISTEXT(D75),"",D75/((C74+C75)/2)*100) ->  | G75: =IF(AND(ISBLANK(C74),ISBLANK(C75)),"",IF(OR(ISBLANK(C75),ISBLANK(C74)),AVERAGE(F74:F75),IF(OR(ISTEXT(F74),ISTEXT(F75)),"Invalid",AVERAGE(F74:F75)))) -> 
F76: =IF(ISBLANK(C76),"",IF(C76<=$C$31,"Invalid",IF(C76>=$C$28,"Invalid",$C$30*(($C$28-C76)/(C76-$C$31))^(1/$C$29)))) ->  | H76: =IF(AND(ISBLANK(C76),ISBLANK(C77)),"",IF(AVERAGE($C76:$C77)>$D$22,"LESS than Standard 1, outside of quantifiable range",IF(AVERAGE($C76:$C77)<$D$24,"GREATER than Standard 3, outside of quantifiable range",""))) -> 
D77: =IF(OR(ISBLANK(C76),ISBLANK(C77)),"",STDEV(C76,C77)) ->  | E77: =IF(ISTEXT(D77),"",D77/((C76+C77)/2)*100) ->  | F77: =IF(ISBLANK(C77),"",IF(C77<=$C$31,"Invalid",IF(C77>=$C$28,"Invalid",$C$30*(($C$28-C77)/(C77-$C$31))^(1/$C$29)))) ->  | G77: =IF(AND(ISBLANK(C76),ISBLANK(C77)),"",IF(OR(ISBLANK(C77),ISBLANK(C76)),AVERAGE(F76:F77),IF(OR(ISTEXT(F76),ISTEXT(F77)),"Invalid",AVERAGE(F76:F77)))) -> 
H78: =IF(AND(ISBLANK(C78),ISBLANK(C79)),"",IF(AVERAGE($C78:$C79)>$D$22,"LESS than Standard 1, outside of quantifiable range",IF(AVERAGE($C78:$C79)<$D$24,"GREATER than Standard 3, outside of quantifiable range",""))) -> 
D79: =IF(OR(ISBLANK(C78),ISBLANK(C79)),"",STDEV(C78,C79)) ->  | E79: =IF(ISTEXT(D79),"",D79/((C78+C79)/2)*100) ->  | G79: =IF(AND(ISBLANK(C78),ISBLANK(C79)),"",IF(OR(ISBLANK(C79),ISBLANK(C78)),AVERAGE(F78:F79),IF(OR(ISTEXT(F78),ISTEXT(F79)),"Invalid",AVERAGE(F78:F79)))) -> 
F80: =IF(ISBLANK(C80),"",IF(C80<=$C$31,"Invalid",IF(C80>=$C$28,"Invalid",$C$30*(($C$28-C80)/(C80-$C$31))^(1/$C$29)))) ->  | H80: =IF(AND(ISBLANK(C80),ISBLANK(C81)),"",IF(AVERAGE($C80:$C81)>$D$22,"LESS than Standard 1, outside of quantifiable range",IF(AVERAGE($C80:$C81)<$D$24,"GREATER than Standard 3, outside of quantifiable range",""))) -> 
D81: =IF(OR(ISBLANK(C80),ISBLANK(C81)),"",STDEV(C80,C81)) ->  | E81: =IF(ISTEXT(D81),"",D81/((C80+C81)/2)*100) ->  | F81: =IF(ISBLANK(C81),"",IF(C81<=$C$31,"Invalid",IF(C81>=$C$28,"Invalid",$C$30*(($C$28-C81)/(C81-$C$31))^(1/$C$29)))) ->  | G81: =IF(AND(ISBLANK(C80),ISBLANK(C81)),"",IF(OR(ISBLANK(C81),ISBLANK(C80)),AVERAGE(F80:F81),IF(OR(ISTEXT(F80),ISTEXT(F81)),"Invalid",AVERAGE(F80:F81)))) -> 
H82: =IF(AND(ISBLANK(C82),ISBLANK(C83)),"",IF(AVERAGE($C82:$C83)>$D$22,"LESS than Standard 1, outside of quantifiable range",IF(AVERAGE($C82:$C83)<$D$24,"GREATER than Standard 3, outside of quantifiable range",""))) -> 
D83: =IF(OR(ISBLANK(C82),ISBLANK(C83)),"",STDEV(C82,C83)) ->  | E83: =IF(ISTEXT(D83),"",D83/((C82+C83)/2)*100) ->  | G83: =IF(AND(ISBLANK(C82),ISBLANK(C83)),"",IF(OR(ISBLANK(C83),ISBLANK(C82)),AVERAGE(F82:F83),IF(OR(ISTEXT(F82),ISTEXT(F83)),"Invalid",AVERAGE(F82:F83)))) -> 
H84: =IF(AND(ISBLANK(C84),ISBLANK(C85)),"",IF(AVERAGE($C84:$C85)>$D$22,"LESS than Standard 1, outside of quantifiable range",IF(AVERAGE($C84:$C85)<$D$24,"GREATER than Standard 3, outside of quantifiable range",""))) -> 
D85: =IF(OR(ISBLANK(C84),ISBLANK(C85)),"",STDEV(C84,C85)) ->  | E85: =IF(ISTEXT(D85),"",D85/((C84+C85)/2)*100) ->  | G85: =IF(AND(ISBLANK(C84),ISBLANK(C85)),"",IF(OR(ISBLANK(C85),ISBLANK(C84)),AVERAGE(F84:F85),IF(OR(ISTEXT(F84),ISTEXT(F85)),"Invalid",AVERAGE(F84:F85)))) -> 
H86: =IF(AND(ISBLANK(C86),ISBLANK(C87)),"",IF(AVERAGE($C86:$C87)>$D$22,"LESS than Standard 1, outside of quantifiable range",IF(AVERAGE($C86:$C87)<$D$24,"GREATER than Standard 3, outside of quantifiable range",""))) -> 
D87: =IF(OR(ISBLANK(C86),ISBLANK(C87)),"",STDEV(C86,C87)) ->  | E87: =IF(ISTEXT(D87),"",D87/((C86+C87)/2)*100) ->  | G87: =IF(AND(ISBLANK(C86),ISBLANK(C87)),"",IF(OR(ISBLANK(C87),ISBLANK(C86)),AVERAGE(F86:F87),IF(OR(ISTEXT(F86),ISTEXT(F87)),"Invalid",AVERAGE(F86:F87)))) -> 
H88: =IF(AND(ISBLANK(C88),ISBLANK(C89)),"",IF(AVERAGE($C88:$C89)>$D$22,"LESS than Standard 1, outside of quantifiable range",IF(AVERAGE($C88:$C89)<$D$24,"GREATER than Standard 3, outside of quantifiable range",""))) -> 
D89: =IF(OR(ISBLANK(C88),ISBLANK(C89)),"",STDEV(C88,C89)) ->  | E89: =IF(ISTEXT(D89),"",D89/((C88+C89)/2)*100) ->  | G89: =IF(AND(ISBLANK(C88),ISBLANK(C89)),"",IF(OR(ISBLANK(C89),ISBLANK(C88)),AVERAGE(F88:F89),IF(OR(ISTEXT(F88),ISTEXT(F89)),"Invalid",AVERAGE(F88:F89)))) -> 
H90: =IF(AND(ISBLANK(C90),ISBLANK(C91)),"",IF(AVERAGE($C90:$C91)>$D$22,"LESS than Standard 1, outside of quantifiable range",IF(AVERAGE($C90:$C91)<$D$24,"GREATER than Standard 3, outside of quantifiable range",""))) -> 
D91: =IF(OR(ISBLANK(C90),ISBLANK(C91)),"",STDEV(C90,C91)) ->  | E91: =IF(ISTEXT(D91),"",D91/((C90+C91)/2)*100) ->  | G91: =IF(AND(ISBLANK(C90),ISBLANK(C91)),"",IF(OR(ISBLANK(C91),ISBLANK(C90)),AVERAGE(F90:F91),IF(OR(ISTEXT(F90),ISTEXT(F91)),"Invalid",AVERAGE(F90:F91)))) -> 
H92: =IF(AND(ISBLANK(C92),ISBLANK(C93)),"",IF(AVERAGE($C92:$C93)>$D$22,"LESS than Standard 1, outside of quantifiable range",IF(AVERAGE($C92:$C93)<$D$24,"GREATER than Standard 3, outside of quantifiable range",""))) -> 
D93: =IF(OR(ISBLANK(C92),ISBLANK(C93)),"",STDEV(C92,C93)) ->  | E93: =IF(ISTEXT(D93),"",D93/((C92+C93)/2)*100) ->  | G93: =IF(AND(ISBLANK(C92),ISBLANK(C93)),"",IF(OR(ISBLANK(C93),ISBLANK(C92)),AVERAGE(F92:F93),IF(OR(ISTEXT(F92),ISTEXT(F93)),"Invalid",AVERAGE(F92:F93)))) -> 
H94: =IF(AND(ISBLANK(C94),ISBLANK(C95)),"",IF(AVERAGE($C94:$C95)>$D$22,"LESS than Standard 1, outside of quantifiable range",IF(AVERAGE($C94:$C95)<$D$24,"GREATER than Standard 3, outside of quantifiable range",""))) -> 
D95: =IF(OR(ISBLANK(C94),ISBLANK(C95)),"",STDEV(C94,C95)) ->  | E95: =IF(ISTEXT(D95),"",D95/((C94+C95)/2)*100) ->  | F95: =IF(ISBLANK(C95),"",IF(C95<=$C$31,"invalid",IF(C95>=$C$28,"invalid",$C$30*(($C$28-C95)/(C95-$C$31))^(1/$C$29)))) ->  | G95: =IF(AND(ISBLANK(C94),ISBLANK(C95)),"",IF(OR(ISBLANK(C95),ISBLANK(C94)),AVERAGE(F94:F95),IF(OR(ISTEXT(F94),ISTEXT(F95)),"Invalid",AVERAGE(F94:F95)))) -> 
F96: =IF(ISBLANK(C96),"",IF(C96<=$C$31,"Invalid",IF(C96>=$C$28,"Invalid",$C$30*(($C$28-C96)/(C96-$C$31))^(1/$C$29)))) ->  | H96: =IF(AND(ISBLANK(C96),ISBLANK(C97)),"",IF(AVERAGE($C96:$C97)>$D$22,"LESS than Standard 1, outside of quantifiable range",IF(AVERAGE($C96:$C97)<$D$24,"GREATER than Standard 3, outside of quantifiable range",""))) -> 
D97: =IF(OR(ISBLANK(C96),ISBLANK(C97)),"",STDEV(C96,C97)) ->  | E97: =IF(ISTEXT(D97),"",D97/((C96+C97)/2)*100) ->  | G97: =IF(AND(ISBLANK(C96),ISBLANK(C97)),"",IF(OR(ISBLANK(C97),ISBLANK(C96)),AVERAGE(F96:F97),IF(OR(ISTEXT(F96),ISTEXT(F97)),"Invalid",AVERAGE(F96:F97)))) -> 
H98: =IF(AND(ISBLANK(C98),ISBLANK(C99)),"",IF(AVERAGE($C98:$C99)>$D$22,"LESS than Standard 1, outside of quantifiable range",IF(AVERAGE($C98:$C99)<$D$24,"GREATER than Standard 3, outside of quantifiable range",""))) -> 
D99: =IF(OR(ISBLANK(C98),ISBLANK(C99)),"",STDEV(C98,C99)) ->  | E99: =IF(ISTEXT(D99),"",D99/((C98+C99)/2)*100) ->  | G99: =IF(AND(ISBLANK(C98),ISBLANK(C99)),"",IF(OR(ISBLANK(C99),ISBLANK(C98)),AVERAGE(F98:F99),IF(OR(ISTEXT(F98),ISTEXT(F99)),"Invalid",AVERAGE(F98:F99)))) -> 
F100: =IF(ISBLANK(C100),"",IF(C100<=$C$31,"Invalid",IF(C100>=$C$28,"Invalid",$C$30*(($C$28-C100)/(C100-$C$31))^(1/$C$29)))) ->  | H100: =IF(AND(ISBLANK(C100),ISBLANK(C101)),"",IF(AVERAGE($C100:$C101)>$D$22,"LESS than Standard 1, outside of quantifiable range",IF(AVERAGE($C100:$C101)<$D$24,"GREATER than Standard 3, outside of quantifiable range",""))) -> 
D101: =IF(OR(ISBLANK(C100),ISBLANK(C101)),"",STDEV(C100,C101)) ->  | E101: =IF(ISTEXT(D101),"",D101/((C100+C101)/2)*100) ->  | F101: =IF(ISBLANK(C101),"",IF(C101<=$C$31,"Invalid",IF(C101>=$C$28,"Invalid",$C$30*(($C$28-C101)/(C101-$C$31))^(1/$C$29)))) ->  | G101: =IF(AND(ISBLANK(C100),ISBLANK(C101)),"",IF(OR(ISBLANK(C101),ISBLANK(C100)),AVERAGE(F100:F101),IF(OR(ISTEXT(F100),ISTEXT(F101)),"Invalid",AVERAGE(F100:F101)))) -> 
H102: =IF(AND(ISBLANK(C102),ISBLANK(C103)),"",IF(AVERAGE($C102:$C103)>$D$22,"LESS than Standard 1, outside of quantifiable range",IF(AVERAGE($C102:$C103)<$D$24,"GREATER than Standard 3, outside of quantifiable range",""))) -> 
D103: =IF(OR(ISBLANK(C102),ISBLANK(C103)),"",STDEV(C102,C103)) ->  | E103: =IF(ISTEXT(D103),"",D103/((C102+C103)/2)*100) ->  | G103: =IF(AND(ISBLANK(C102),ISBLANK(C103)),"",IF(OR(ISBLANK(C103),ISBLANK(C102)),AVERAGE(F102:F103),IF(OR(ISTEXT(F102),ISTEXT(F103)),"Invalid",AVERAGE(F102:F103)))) -> 
F104: =IF(ISBLANK(C104),"",IF(C104<=$C$31,"Invalid",IF(C104>=$C$28,"Invalid",$C$30*(($C$28-C104)/(C104-$C$31))^(1/$C$29)))) ->  | H104: =IF(AND(ISBLANK(C104),ISBLANK(C105)),"",IF(AVERAGE($C104:$C105)>$D$22,"LESS than Standard 1, outside of quantifiable range",IF(AVERAGE($C104:$C105)<$D$24,"GREATER than Standard 3, outside of quantifiable range",""))) -> 
D105: =IF(OR(ISBLANK(C104),ISBLANK(C105)),"",STDEV(C104,C105)) ->  | E105: =IF(ISTEXT(D105),"",D105/((C104+C105)/2)*100) ->  | F105: =IF(ISBLANK(C105),"",IF(C105<=$C$31,"Invalid",IF(C105>=$C$28,"Invalid",$C$30*(($C$28-C105)/(C105-$C$31))^(1/$C$29)))) ->  | G105: =IF(AND(ISBLANK(C104),ISBLANK(C105)),"",IF(OR(ISBLANK(C105),ISBLANK(C104)),AVERAGE(F104:F105),IF(OR(ISTEXT(F104),ISTEXT(F105)),"Invalid",AVERAGE(F104:F105)))) -> 
H106: =IF(AND(ISBLANK(C106),ISBLANK(C107)),"",IF(AVERAGE($C106:$C107)>$D$22,"LESS than Standard 1, outside of quantifiable range",IF(AVERAGE($C106:$C107)<$D$24,"GREATER than Standard 3, outside of quantifiable range",""))) -> 
D107: =IF(OR(ISBLANK(C106),ISBLANK(C107)),"",STDEV(C106,C107)) ->  | E107: =IF(ISTEXT(D107),"",D107/((C106+C107)/2)*100) ->  | G107: =IF(AND(ISBLANK(C106),ISBLANK(C107)),"",IF(OR(ISBLANK(C107),ISBLANK(C106)),AVERAGE(F106:F107),IF(OR(ISTEXT(F106),ISTEXT(F107)),"Invalid",AVERAGE(F106:F107)))) -> 
H108: =IF(AND(ISBLANK(C108),ISBLANK(C109)),"",IF(AVERAGE($C108:$C109)>$D$22,"LESS than Standard 1, outside of quantifiable range",IF(AVERAGE($C108:$C109)<$D$24,"GREATER than Standard 3, outside of quantifiable range",""))) -> 
D109: =IF(OR(ISBLANK(C108),ISBLANK(C109)),"",STDEV(C108,C109)) ->  | E109: =IF(ISTEXT(D109),"",D109/((C108+C109)/2)*100) ->  | G109: =IF(AND(ISBLANK(C108),ISBLANK(C109)),"",IF(OR(ISBLANK(C109),ISBLANK(C108)),AVERAGE(F108:F109),IF(OR(ISTEXT(F108),ISTEXT(F109)),"Invalid",AVERAGE(F108:F109)))) -> 
H110: =IF(AND(ISBLANK(C110),ISBLANK(C111)),"",IF(AVERAGE($C110:$C111)>$D$22,"LESS than Standard 1, outside of quantifiable range",IF(AVERAGE($C110:$C111)<$D$24,"GREATER than Standard 3, outside of quantifiable range",""))) -> 
D111: =IF(OR(ISBLANK(C110),ISBLANK(C111)),"",STDEV(C110,C111)) ->  | E111: =IF(ISTEXT(D111),"",D111/((C110+C111)/2)*100) ->  | G111: =IF(AND(ISBLANK(C110),ISBLANK(C111)),"",IF(OR(ISBLANK(C111),ISBLANK(C110)),AVERAGE(F110:F111),IF(OR(ISTEXT(F110),ISTEXT(F111)),"Invalid",AVERAGE(F110:F111)))) -> 
H112: =IF(AND(ISBLANK(C112),ISBLANK(C113)),"",IF(AVERAGE($C112:$C113)>$D$22,"LESS than Standard 1, outside of quantifiable range",IF(AVERAGE($C112:$C113)<$D$24,"GREATER than Standard 3, outside of quantifiable range",""))) -> 
D113: =IF(OR(ISBLANK(C112),ISBLANK(C113)),"",STDEV(C112,C113)) ->  | E113: =IF(ISTEXT(D113),"",D113/((C112+C113)/2)*100) ->  | G113: =IF(AND(ISBLANK(C112),ISBLANK(C113)),"",IF(OR(ISBLANK(C113),ISBLANK(C112)),AVERAGE(F112:F113),IF(OR(ISTEXT(F112),ISTEXT(F113)),"Invalid",AVERAGE(F112:F113)))) -> 
H114: =IF(AND(ISBLANK(C114),ISBLANK(C115)),"",IF(AVERAGE($C114:$C115)>$D$22,"LESS than Standard 1, outside of quantifiable range",IF(AVERAGE($C114:$C115)<$D$24,"GREATER than Standard 3, outside of quantifiable range",""))) -> 
D115: =IF(OR(ISBLANK(C114),ISBLANK(C115)),"",STDEV(C114,C115)) ->  | E115: =IF(ISTEXT(D115),"",D115/((C114+C115)/2)*100) ->  | G115: =IF(AND(ISBLANK(C114),ISBLANK(C115)),"",IF(OR(ISBLANK(C115),ISBLANK(C114)),AVERAGE(F114:F115),IF(OR(ISTEXT(F114),ISTEXT(F115)),"Invalid",AVERAGE(F114:F115)))) -> 
H116: =IF(AND(ISBLANK(C116),ISBLANK(C117)),"",IF(AVERAGE($C116:$C117)>$D$22,"LESS than Standard 1, outside of quantifiable range",IF(AVERAGE($C116:$C117)<$D$24,"GREATER than Standard 3, outside of quantifiable range",""))) -> 
D117: =IF(OR(ISBLANK(C116),ISBLANK(C117)),"",STDEV(C116,C117)) ->  | E117: =IF(ISTEXT(D117),"",D117/((C116+C117)/2)*100) ->  | G117: =IF(AND(ISBLANK(C116),ISBLANK(C117)),"",IF(OR(ISBLANK(C117),ISBLANK(C116)),AVERAGE(F116:F117),IF(OR(ISTEXT(F116),ISTEXT(F117)),"Invalid",AVERAGE(F116:F117)))) -> 
H118: =IF(AND(ISBLANK(C118),ISBLANK(C119)),"",IF(AVERAGE($C118:$C119)>$D$22,"LESS than Standard 1, outside of quantifiable range",IF(AVERAGE($C118:$C119)<$D$24,"GREATER than Standard 3, outside of quantifiable range",""))) -> 
D119: =IF(OR(ISBLANK(C118),ISBLANK(C119)),"",STDEV(C118,C119)) ->  | E119: =IF(ISTEXT(D119),"",D119/((C118+C119)/2)*100) ->  | F119: =IF(ISBLANK(C119),"",IF(C119<=$C$31,"invalid",IF(C119>=$C$28,"invalid",$C$30*(($C$28-C119)/(C119-$C$31))^(1/$C$29)))) ->  | G119: =IF(AND(ISBLANK(C118),ISBLANK(C119)),"",IF(OR(ISBLANK(C119),ISBLANK(C118)),AVERAGE(F118:F119),IF(OR(ISTEXT(F118),ISTEXT(F119)),"Invalid",AVERAGE(F118:F119)))) -> 
F120: =IF(ISBLANK(C120),"",IF(C120<=$C$31,"Invalid",IF(C120>=$C$28,"Invalid",$C$30*(($C$28-C120)/(C120-$C$31))^(1/$C$29)))) ->  | H120: =IF(AND(ISBLANK(C120),ISBLANK(C121)),"",IF(AVERAGE($C120:$C121)>$D$22,"LESS than Standard 1, outside of quantifiable range",IF(AVERAGE($C120:$C121)<$D$24,"GREATER than Standard 3, outside of quantifiable range",""))) -> 
D121: =IF(OR(ISBLANK(C120),ISBLANK(C121)),"",STDEV(C120,C121)) ->  | E121: =IF(ISTEXT(D121),"",D121/((C120+C121)/2)*100) ->  | G121: =IF(AND(ISBLANK(C120),ISBLANK(C121)),"",IF(OR(ISBLANK(C121),ISBLANK(C120)),AVERAGE(F120:F121),IF(OR(ISTEXT(F120),ISTEXT(F121)),"Invalid",AVERAGE(F120:F121)))) -> 
H122: =IF(AND(ISBLANK(C122),ISBLANK(C123)),"",IF(AVERAGE($C122:$C123)>$D$22,"LESS than Standard 1, outside of quantifiable range",IF(AVERAGE($C122:$C123)<$D$24,"GREATER than Standard 3, outside of quantifiable range",""))) -> 
D123: =IF(OR(ISBLANK(C122),ISBLANK(C123)),"",STDEV(C122,C123)) ->  | E123: =IF(ISTEXT(D123),"",D123/((C122+C123)/2)*100) ->  | G123: =IF(AND(ISBLANK(C122),ISBLANK(C123)),"",IF(OR(ISBLANK(C123),ISBLANK(C122)),AVERAGE(F122:F123),IF(OR(ISTEXT(F122),ISTEXT(F123)),"Invalid",AVERAGE(F122:F123)))) -> 
F124: =IF(ISBLANK(C124),"",IF(C124<=$C$31,"Invalid",IF(C124>=$C$28,"Invalid",$C$30*(($C$28-C124)/(C124-$C$31))^(1/$C$29)))) ->  | H124: =IF(AND(ISBLANK(C124),ISBLANK(C125)),"",IF(AVERAGE($C124:$C125)>$D$22,"LESS than Standard 1, outside of quantifiable range",IF(AVERAGE($C124:$C125)<$D$24,"GREATER than Standard 3, outside of quantifiable range",""))) -> 
D125: =IF(OR(ISBLANK(C124),ISBLANK(C125)),"",STDEV(C124,C125)) ->  | E125: =IF(ISTEXT(D125),"",D125/((C124+C125)/2)*100) ->  | F125: =IF(ISBLANK(C125),"",IF(C125<=$C$31,"Invalid",IF(C125>=$C$28,"Invalid",$C$30*(($C$28-C125)/(C125-$C$31))^(1/$C$29)))) ->  | G125: =IF(AND(ISBLANK(C124),ISBLANK(C125)),"",IF(OR(ISBLANK(C125),ISBLANK(C124)),AVERAGE(F124:F125),IF(OR(ISTEXT(F124),ISTEXT(F125)),"Invalid",AVERAGE(F124:F125)))) -> 
H126: =IF(AND(ISBLANK(C126),ISBLANK(C127)),"",IF(AVERAGE($C126:$C127)>$D$22,"LESS than Standard 1, outside of quantifiable range",IF(AVERAGE($C126:$C127)<$D$24,"GREATER than Standard 3, outside of quantifiable range",""))) -> 
D127: =IF(OR(ISBLANK(C126),ISBLANK(C127)),"",STDEV(C126,C127)) ->  | E127: =IF(ISTEXT(D127),"",D127/((C126+C127)/2)*100) ->  | G127: =IF(AND(ISBLANK(C126),ISBLANK(C127)),"",IF(OR(ISBLANK(C127),ISBLANK(C126)),AVERAGE(F126:F127),IF(OR(ISTEXT(F126),ISTEXT(F127)),"Invalid",AVERAGE(F126:F127)))) -> 
F128: =IF(ISBLANK(C128),"",IF(C128<=$C$31,"Invalid",IF(C128>=$C$28,"Invalid",$C$30*(($C$28-C128)/(C128-$C$31))^(1/$C$29)))) ->  | H128: =IF(AND(ISBLANK(C128),ISBLANK(C129)),"",IF(AVERAGE($C128:$C129)>$D$22,"LESS than Standard 1, outside of quantifiable range",IF(AVERAGE($C128:$C129)<$D$24,"GREATER than Standard 3, outside of quantifiable range",""))) -> 
D129: =IF(OR(ISBLANK(C128),ISBLANK(C129)),"",STDEV(C128,C129)) ->  | E129: =IF(ISTEXT(D129),"",D129/((C128+C129)/2)*100) ->  | F129: =IF(ISBLANK(C129),"",IF(C129<=$C$31,"Invalid",IF(C129>=$C$28,"Invalid",$C$30*(($C$28-C129)/(C129-$C$31))^(1/$C$29)))) ->  | G129: =IF(AND(ISBLANK(C128),ISBLANK(C129)),"",IF(OR(ISBLANK(C129),ISBLANK(C128)),AVERAGE(F128:F129),IF(OR(ISTEXT(F128),ISTEXT(F129)),"Invalid",AVERAGE(F128:F129)))) -> 
H130: =IF(AND(ISBLANK(C130),ISBLANK(C131)),"",IF(AVERAGE($C130:$C131)>$D$22,"LESS than Standard 1, outside of quantifiable range",IF(AVERAGE($C130:$C131)<$D$24,"GREATER than Standard 3, outside of quantifiable range",""))) -> 
D131: =IF(OR(ISBLANK(C130),ISBLANK(C131)),"",STDEV(C130,C131)) ->  | E131: =IF(ISTEXT(D131),"",D131/((C130+C131)/2)*100) ->  | G131: =IF(AND(ISBLANK(C130),ISBLANK(C131)),"",IF(OR(ISBLANK(C131),ISBLANK(C130)),AVERAGE(F130:F131),IF(OR(ISTEXT(F130),ISTEXT(F131)),"Invalid",AVERAGE(F130:F131)))) -> 
H132: =IF(AND(ISBLANK(C132),ISBLANK(C133)),"",IF(AVERAGE($C132:$C133)>$D$22,"LESS than Standard 1, outside of quantifiable range",IF(AVERAGE($C132:$C133)<$D$24,"GREATER than Standard 3, outside of quantifiable range",""))) -> 
D133: =IF(OR(ISBLANK(C132),ISBLANK(C133)),"",STDEV(C132,C133)) ->  | E133: =IF(ISTEXT(D133),"",D133/((C132+C133)/2)*100) ->  | G133: =IF(AND(ISBLANK(C132),ISBLANK(C133)),"",IF(OR(ISBLANK(C133),ISBLANK(C132)),AVERAGE(F132:F133),IF(OR(ISTEXT(F132),ISTEXT(F133)),"Invalid",AVERAGE(F132:F133)))) -> 
H134: =IF(AND(ISBLANK(C134),ISBLANK(C135)),"",IF(AVERAGE($C134:$C135)>$D$22,"LESS than Standard 1, outside of quantifiable range",IF(AVERAGE($C134:$C135)<$D$24,"GREATER than Standard 3, outside of quantifiable range",""))) -> 
D135: =IF(OR(ISBLANK(C134),ISBLANK(C135)),"",STDEV(C134,C135)) ->  | E135: =IF(ISTEXT(D135),"",D135/((C134+C135)/2)*100) ->  | G135: =IF(AND(ISBLANK(C134),ISBLANK(C135)),"",IF(OR(ISBLANK(C135),ISBLANK(C134)),AVERAGE(F134:F135),IF(OR(ISTEXT(F134),ISTEXT(F135)),"Invalid",AVERAGE(F134:F135)))) -> 
H136: =IF(AND(ISBLANK(C136),ISBLANK(C137)),"",IF(AVERAGE($C136:$C137)>$D$22,"LESS than Standard 1, outside of quantifiable range",IF(AVERAGE($C136:$C137)<$D$24,"GREATER than Standard 3, outside of quantifiable range",""))) -> 
D137: =IF(OR(ISBLANK(C136),ISBLANK(C137)),"",STDEV(C136,C137)) ->  | E137: =IF(ISTEXT(D137),"",D137/((C136+C137)/2)*100) ->  | G137: =IF(AND(ISBLANK(C136),ISBLANK(C137)),"",IF(OR(ISBLANK(C137),ISBLANK(C136)),AVERAGE(F136:F137),IF(OR(ISTEXT(F136),ISTEXT(F137)),"Invalid",AVERAGE(F136:F137)))) -> 
H138: =IF(AND(ISBLANK(C138),ISBLANK(C139)),"",IF(AVERAGE($C138:$C139)>$D$22,"LESS than Standard 1, outside of quantifiable range",IF(AVERAGE($C138:$C139)<$D$24,"GREATER than Standard 3, outside of quantifiable range",""))) -> 
D139: =IF(OR(ISBLANK(C138),ISBLANK(C139)),"",STDEV(C138,C139)) ->  | E139: =IF(ISTEXT(D139),"",D139/((C138+C139)/2)*100) ->  | G139: =IF(AND(ISBLANK(C138),ISBLANK(C139)),"",IF(OR(ISBLANK(C139),ISBLANK(C138)),AVERAGE(F138:F139),IF(OR(ISTEXT(F138),ISTEXT(F139)),"Invalid",AVERAGE(F138:F139)))) -> 
H140: =IF(AND(ISBLANK(C140),ISBLANK(C141)),"",IF(AVERAGE($C140:$C141)>$D$22,"LESS than Standard 1, outside of quantifiable range",IF(AVERAGE($C140:$C141)<$D$24,"GREATER than Standard 3, outside of quantifiable range",""))) -> 
D141: =IF(OR(ISBLANK(C140),ISBLANK(C141)),"",STDEV(C140,C141)) ->  | E141: =IF(ISTEXT(D141),"",D141/((C140+C141)/2)*100) ->  | G141: =IF(AND(ISBLANK(C140),ISBLANK(C141)),"",IF(OR(ISBLANK(C141),ISBLANK(C140)),AVERAGE(F140:F141),IF(OR(ISTEXT(F140),ISTEXT(F141)),"Invalid",AVERAGE(F140:F141)))) -> 
H142: =IF(AND(ISBLANK(C142),ISBLANK(C143)),"",IF(AVERAGE($C142:$C143)>$D$22,"LESS than Standard 1, outside of quantifiable range",IF(AVERAGE($C142:$C143)<$D$24,"GREATER than Standard 3, outside of quantifiable range",""))) -> 
D143: =IF(OR(ISBLANK(C142),ISBLANK(C143)),"",STDEV(C142,C143)) ->  | E143: =IF(ISTEXT(D143),"",D143/((C142+C143)/2)*100) ->  | F143: =IF(ISBLANK(C143),"",IF(C143<=$C$31,"invalid",IF(C143>=$C$28,"invalid",$C$30*(($C$28-C143)/(C143-$C$31))^(1/$C$29)))) ->  | G143: =IF(AND(ISBLANK(C142),ISBLANK(C143)),"",IF(OR(ISBLANK(C143),ISBLANK(C142)),AVERAGE(F142:F143),IF(OR(ISTEXT(F142),ISTEXT(F143)),"Invalid",AVERAGE(F142:F143)))) -> 

Sheet 5 Standards
B2: ** USER MUST ONLY INPUT VALUES IN GREY-COLORED CELLS ** | G2: Kit Lot # | P2: Before you start:
B4: Enter the absorbance values of each standard into the grey boxes | P4: Check that "solver" is installed
B5: Std 0 | C5: Std 1 | D5: Std 2 | E5: Std 3 | F5: Std 4
B6: 1.85 | C6: 1.55 | D6: 1.25 | E6: 0.95 | F6: 0.75 | M6: 0.059 | P6: Input OD values for standards (Fig 4 in protocol)
B7: 1.83 | C7: 1.53 | D7: 1.23 | E7: 0.93 | F7: 0.73 | M7: 0.061 | P7: Select solver (Target Cell: $e$32 - Cell Changes: $c$35:$c$38 - Optimize: Minimize - GRG Nonlinear )
P8: "Solve"
P9: Check graph and parametres (A>0.7; D<0.1;
P12: Calculate MC TADDA-concentration in samples in wells:
P13: Input average OD of unknown samples in cell c48 (sample 1) , c49 (sample 2)….
P14: Calculated ELISA MCTADDA concentration are given automatically in cell d48 (sample 1), c49 (sample 2),….
P15: Sample concentrations should only be used from datapoints that are within the valid working range of the standard curve
P17: If OD is outsite the Ic20 to Ic80 range, dilution sholud be adjusted and the samples assayed again
B19: Enter the standard concentrations of each standard into the grey boxes
B20: Standards (ng/ml) | C20: OD (averaged) | D20: Predicted values | E20: Residual Squares | F20: B/Bo | G20: Std Dev | H20: %CV
B21: 0 | C21: =(B6+B7)/2 -> 1.84 | D21: =($C$29-$C$32)/(1+(B21/$C$31)^$C$30)+$C$32 -> 1.840636066 | E21: =(C21-D21)^2 -> 4.045794244e-07 | G21: =STDEV(B6,B7) -> 0.01414213562 | H21: =(G21/C21)*100 -> 0.7685943274
B22: 0.15 | C22: =(C6+C7)/2 -> 1.54 | D22: =($C$29-$C$32)/(1+(B22/$C$31)^$C$30)+$C$32 -> 1.53669817 | E22: 1.090208071e-05 | F22: =C22/C$21 -> 0.8369565217 | G22: =STDEV(C6,C7) -> 0.01414213562 | H22: 0.918320495 | Q22: OD | R22: MCTADDA-conc | S22: X=C x ((A-Y)/(Y-D))^(1/B)
B23: 0.4 | C23: =(D6+D7)/2 -> 1.24 | D23: =($C$29-$C$32)/(1+(B23/$C$31)^$C$30)+$C$32 -> 1.246014639 | E23: 3.61758881e-05 | F23: =C23/C$21 -> 0.6739130435 | G23: =STDEV(D6,D7) -> 0.01414213562 | H23: 1.140494808 | P23: Ic20 | Q23: =$C$32+($C$29-$C$32)*20/100 -> 0.7266659897 | R23: =C31*((C29-Q23)/(Q23-C32))^(1/C30) -> 2.143365282
B24: 1 | C24: =(E6+E7)/2 -> 0.94 | D24: =($C$29-$C$32)/(1+(B24/$C$31)^$C$30)+$C$32 -> 0.9342227043 | E24: 3.337714575e-05 | F24: =C24/C$21 -> 0.5108695652 | G24: =STDEV(E6,E7) -> 0.01414213562 | H24: 1.504482513 | P24: Ic80 | Q24: =$C$32+($C$29-$C$32)*80/100 -> 1.562143547 | R24: =C31*((C29-Q24)/(Q24-C32))^(1/C30) -> 0.1343169226
B25: 2 | C25: =(F6+F7)/2 -> 0.74 | D25: =($C$29-$C$32)/(1+(B25/$C$31)^$C$30)+$C$32 -> 0.7424261473 | E25: 5.886190598e-06 | F25: =C25/C$21 -> 0.402173913 | G25: =STDEV(F6,F7) -> 0.01414213562 | H25: 1.911099409
B26: Sum Of Squares | E26: =SUM(E21:E25) -> 8.674588458e-05
B28: Parameter (Y=(A-D)/(1+(X/C)^B)+D) | E28: R-Squared
B29: A | C29: 1.840636066 | D29: (Max.) | E29: =(CORREL(C21:C25,D21:D25))^2 -> 0.9998899164
B30: B | C30: 1.000959731 | D30: (Slope)
B31: C | C31: 0.5365540315 | D31: (IC50)
B32: D | C32: 0.4481734707 | D32: (Min.)
B35: Enter descriptions and absorbance values of each sample and control into the grey boxes
B36: Sample/Control | C36: Absorbances | D36: Std Dev | E36: %CV | F36: Sample Concentration (ng/ml) | G36: Sample Concentration Avg (ng/ml) | H36: Comments
B37: Control | C37: 1.03 | F37: =IF(ISBLANK(C37),"",IF(C37<=$C$32,"Invalid",IF(C37>=$C$29,"Invalid",$C$31*(($C$29-C37)/(C37-$C$32))^(1/$C$30)))) -> 0.7473219951 | H37: =IF(AND(ISBLANK(C37),ISBLANK(C38)),"",IF(AVERAGE($C37:$C38)>$D$22,"LESS than Standard 1, outside of quantifiable range",IF(AVERAGE($C37:$C38)<$D$25,"GREATER than Standard 4, outside of quantifiable range",""))) -> 
B38: Control | C38: 1.05 | D38: =IF(OR(ISBLANK(C37),ISBLANK(C38)),"",STDEV(C37,C38)) -> 0.01414213562 | E38: =IF(ISTEXT(D38),"",D38/((C37+C38)/2)*100) -> 1.359820733 | F38: =IF(ISBLANK(C38),"",IF(C38<=$C$32,"Invalid",IF(C38>=$C$29,"Invalid",$C$31*(($C$29-C38)/(C38-$C$32))^(1/$C$30)))) -> 0.704701395 | G38: =IF(AND(ISBLANK(C37),ISBLANK(C38)),"",IF(OR(ISBLANK(C38),ISBLANK(C37)),AVERAGE(F37:F38),IF(OR(ISTEXT(F37),ISTEXT(F38)),"Invalid",AVERAGE(F37:F38)))) -> 0.7260116951
B39: Sample 1 | C39: 1.23 | F39: 0.4191682869 | H39: =IF(AND(ISBLANK(C39),ISBLANK(C40)),"",IF(AVERAGE($C39:$C40)>$D$22,"LESS than Standard 1, outside of quantifiable range",IF(AVERAGE($C39:$C40)<$D$25,"GREATER than Standard 4, outside of quantifiable range",""))) -> 
B40: Sample 1 | C40: 1.25 | D40: =IF(OR(ISBLANK(C39),ISBLANK(C40)),"",STDEV(C39,C40)) -> 0.01414213562 | E40: =IF(ISTEXT(D40),"",D40/((C39+C40)/2)*100) -> 1.140494808 | F40: 0.3953486824 | G40: =IF(AND(ISBLANK(C39),ISBLANK(C40)),"",IF(OR(ISBLANK(C40),ISBLANK(C39)),AVERAGE(F39:F40),IF(OR(ISTEXT(F39),ISTEXT(F40)),"Invalid",AVERAGE(F39:F40)))) -> 0.4072584847
B41: Sample 2 | C41: 0.85 | F41: 1.32164025 | H41: =IF(AND(ISBLANK(C41),ISBLANK(C42)),"",IF(AVERAGE($C41:$C42)>$D$22,"LESS than Standard 1, outside of quantifiable range",IF(AVERAGE($C41:$C42)<$D$25,"GREATER than Standard 4, outside of quantifiable range",""))) -> 
B42: Sample 2 | C42: 0.83 | D42: =IF(OR(ISBLANK(C41),ISBLANK(C42)),"",STDEV(C41,C42)) -> 0.01414213562 | E42: =IF(ISTEXT(D42),"",D42/((C41+C42)/2)*100) -> 1.683587574 | F42: 1.418851154 | G42: =IF(AND(ISBLANK(C41),ISBLANK(C42)),"",IF(OR(ISBLANK(C42),ISBLANK(C41)),AVERAGE(F41:F42),IF(OR(ISTEXT(F41),ISTEXT(F42)),"Invalid",AVERAGE(F41:F42)))) -> 1.370245702
B43: Sample 3 | C43: 1.63 | F43: 0.09578789545 | H43: =IF(AND(ISBLANK(C43),ISBLANK(C44)),"",IF(AVERAGE($C43:$C44)>$D$22,"LESS than Standard 1, outside of quantifiable range",IF(AVERAGE($C43:$C44)<$D$25,"GREATER than Standard 4, outside of quantifiable range",""))) -> LESS than Standard 1, outside of quantifiable range
B44: Sample 3 | C44: 1.65 | D44: =IF(OR(ISBLANK(C43),ISBLANK(C44)),"",STDEV(C43,C44)) -> 0.01414213562 | E44: =IF(ISTEXT(D44),"",D44/((C43+C44)/2)*100) -> 0.8623253429 | F44: 0.08525962984 | G44: =IF(AND(ISBLANK(C43),ISBLANK(C44)),"",IF(OR(ISBLANK(C44),ISBLANK(C43)),AVERAGE(F43:F44),IF(OR(ISTEXT(F43),ISTEXT(F44)),"Invalid",AVERAGE(F43:F44)))) -> 0.09052376264
B45: Sample 4 | C45: 0.52 | F45: 9.837830125 | H45: =IF(AND(ISBLANK(C45),ISBLANK(C46)),"",IF(AVERAGE($C45:$C46)>$D$22,"LESS than Standard 1, outside of quantifiable range",IF(AVERAGE($C45:$C46)<$D$25,"GREATER than Standard 4, outside of quantifiable range",""))) -> GREATER than Standard 4, outside of quantifiable range
B46: Sample 4 | C46: 0.51 | D46: =IF(OR(ISBLANK(C45),ISBLANK(C46)),"",STDEV(C45,C46)) -> 0.007071067812 | E46: =IF(ISTEXT(D46),"",D46/((C45+C46)/2)*100) -> 1.373022876 | F46: 11.51383233 | G46: =IF(AND(ISBLANK(C45),ISBLANK(C46)),"",IF(OR(ISBLANK(C46),ISBLANK(C45)),AVERAGE(F45:F46),IF(OR(ISTEXT(F45),ISTEXT(F46)),"Invalid",AVERAGE(F45:F46)))) -> 10.67583123
H47: =IF(AND(ISBLANK(C47),ISBLANK(C48)),"",IF(AVERAGE($C47:$C48)>$D$22,"LESS than Standard 1, outside of quantifiable range",IF(AVERAGE($C47:$C48)<$D$25,"GREATER than Standard 4, outside of quantifiable range",""))) -> 
D48: =IF(OR(ISBLANK(C47),ISBLANK(C48)),"",STDEV(C47,C48)) ->  | E48: =IF(ISTEXT(D48),"",D48/((C47+C48)/2)*100) ->  | G48: =IF(AND(ISBLANK(C47),ISBLANK(C48)),"",IF(OR(ISBLANK(C48),ISBLANK(C47)),AVERAGE(F47:F48),IF(OR(ISTEXT(F47),ISTEXT(F48)),"Invalid",AVERAGE(F47:F48)))) -> 
H49: =IF(AND(ISBLANK(C49),ISBLANK(C50)),"",IF(AVERAGE($C49:$C50)>$D$22,"LESS than Standard 1, outside of quantifiable range",IF(AVERAGE($C49:$C50)<$D$25,"GREATER than Standard 4, outside of quantifiable range",""))) -> 
D50: =IF(OR(ISBLANK(C49),ISBLANK(C50)),"",STDEV(C49,C50)) ->  | E50: =IF(ISTEXT(D50),"",D50/((C49+C50)/2)*100) ->  | G50: =IF(AND(ISBLANK(C49),ISBLANK(C50)),"",IF(OR(ISBLANK(C50),ISBLANK(C49)),AVERAGE(F49:F50),IF(OR(ISTEXT(F49),ISTEXT(F50)),"Invalid",AVERAGE(F49:F50)))) -> 
H51: =IF(AND(ISBLANK(C51),ISBLANK(C52)),"",IF(AVERAGE($C51:$C52)>$D$22,"LESS than Standard 1, outside of quantifiable range",IF(AVERAGE($C51:$C52)<$D$25,"GREATER than Standard 4, outside of quantifiable range",""))) -> 
D52: =IF(OR(ISBLANK(C51),ISBLANK(C52)),"",STDEV(C51,C52)) ->  | E52: =IF(ISTEXT(D52),"",D52/((C51+C52)/2)*100) ->  | G52: =IF(AND(ISBLANK(C51),ISBLANK(C52)),"",IF(OR(ISBLANK(C52),ISBLANK(C51)),AVERAGE(F51:F52),IF(OR(ISTEXT(F51),ISTEXT(F52)),"Invalid",AVERAGE(F51:F52)))) -> 
F53: =IF(ISBLANK(C53),"",IF(C53<=$C$32,"Invalid",IF(C53>=$C$29,"Invalid",$C$31*(($C$29-C53)/(C53-$C$32))^(1/$C$30)))) ->  | H53: =IF(AND(ISBLANK(C53),ISBLANK(C54)),"",IF(AVERAGE($C53:$C54)>$D$22,"LESS than Standard 1, outside of quantifiable range",IF(AVERAGE($C53:$C54)<$D$25,"GREATER than Standard 4, outside of quantifiable range",""))) -> 
D54: =IF(OR(ISBLANK(C53),ISBLANK(C54)),"",STDEV(C53,C54)) ->  | E54: =IF(ISTEXT(D54),"",D54/((C53+C54)/2)*100) ->  | G54: =IF(AND(ISBLANK(C53),ISBLANK(C54)),"",IF(OR(ISBLANK(C54),ISBLANK(C53)),AVERAGE(F53:F54),IF(OR(ISTEXT(F53),ISTEXT(F54)),"Invalid",AVERAGE(F53:F54)))) -> 
H55: =IF(AND(ISBLANK(C55),ISBLANK(C56)),"",IF(AVERAGE($C55:$C56)>$D$22,"LESS than Standard 1, outside of quantifiable range",IF(AVERAGE($C55:$C56)<$D$25,"GREATER than Standard 4, outside of quantifiable range",""))) -> 
D56: =IF(OR(ISBLANK(C55),ISBLANK(C56)),"",STDEV(C55,C56)) ->  | E56: =IF(ISTEXT(D56),"",D56/((C55+C56)/2)*100) ->  | G56: =IF(AND(ISBLANK(C55),ISBLANK(C56)),"",IF(OR(ISBLANK(C56),ISBLANK(C55)),AVERAGE(F55:F56),IF(OR(ISTEXT(F55),ISTEXT(F56)),"Invalid",AVERAGE(F55:F56)))) -> 
F57: =IF(ISBLANK(C57),"",IF(C57<=$C$32,"Invalid",IF(C57>=$C$29,"Invalid",$C$31*(($C$29-C57)/(C57-$C$32))^(1/$C$30)))) ->  | H57: =IF(AND(ISBLANK(C57),ISBLANK(C58)),"",IF(AVERAGE($C57:$C58)>$D$22,"LESS than Standard 1, outside of quantifiable range",IF(AVERAGE($C57:$C58)<$D$25,"GREATER than Standard 4, outside of quantifiable range",""))) -> 
D58: =IF(OR(ISBLANK(C57),ISBLANK(C58)),"",STDEV(C57,C58)) ->  | E58: =IF(ISTEXT(D58),"",D58/((C57+C58)/2)*100) ->  | G58: =IF(AND(ISBLANK(C57),ISBLANK(C58)),"",IF(OR(ISBLANK(C58),ISBLANK(C57)),AVERAGE(F57:F58),IF(OR(ISTEXT(F57),ISTEXT(F58)),"Invalid",AVERAGE(F57:F58)))) -> 
H59: =IF(AND(ISBLANK(C59),ISBLANK(C60)),"",IF(AVERAGE($C59:$C60)>$D$22,"LESS than Standard 1, outside of quantifiable range",IF(AVERAGE($C59:$C60)<$D$25,"GREATER than Standard 4, outside of quantifiable range",""))) -> 
D60: =IF(OR(ISBLANK(C59),ISBLANK(C60)),"",STDEV(C59,C60)) ->  | E60: =IF(ISTEXT(D60),"",D60/((C59+C60)/2)*100) ->  | G60: =IF(AND(ISBLANK(C59),ISBLANK(C60)),"",IF(OR(ISBLANK(C60),ISBLANK(C59)),AVERAGE(F59:F60),IF(OR(ISTEXT(F59),ISTEXT(F60)),"Invalid",AVERAGE(F59:F60)))) -> 
H61: =IF(AND(ISBLANK(C61),ISBLANK(C62)),"",IF(AVERAGE($C61:$C62)>$D$22,"LESS than Standard 1, outside of quantifiable range",IF(AVERAGE($C61:$C62)<$D$25,"GREATER than Standard 4, outside of quantifiable range",""))) -> 
D62: =IF(OR(ISBLANK(C61),ISBLANK(C62)),"",STDEV(C61,C62)) ->  | E62: =IF(ISTEXT(D62),"",D62/((C61+C62)/2)*100) ->  | G62: =IF(AND(ISBLANK(C61),ISBLANK(C62)),"",IF(OR(ISBLANK(C62),ISBLANK(C61)),AVERAGE(F61:F62),IF(OR(ISTEXT(F61),ISTEXT(F62)),"Invalid",AVERAGE(F61:F62)))) -> 
H63: =IF(AND(ISBLANK(C63),ISBLANK(C64)),"",IF(AVERAGE($C63:$C64)>$D$22,"LESS than Standard 1, outside of quantifiable range",IF(AVERAGE($C63:$C64)<$D$25,"GREATER than Standard 4, outside of quantifiable range",""))) -> 
D64: =IF(OR(ISBLANK(C63),ISBLANK(C64)),"",STDEV(C63,C64)) ->  | E64: =IF(ISTEXT(D64),"",D64/((C63+C64)/2)*100) ->  | G64: =IF(AND(ISBLANK(C63),ISBLANK(C64)),"",IF(OR(ISBLANK(C64),ISBLANK(C63)),AVERAGE(F63:F64),IF(OR(ISTEXT(F63),ISTEXT(F64)),"Invalid",AVERAGE(F63:F64)))) -> 
H65: =IF(AND(ISBLANK(C65),ISBLANK(C66)),"",IF(AVERAGE($C65:$C66)>$D$22,"LESS than Standard 1, outside of quantifiable range",IF(AVERAGE($C65:$C66)<$D$25,"GREATER than Standard 4, outside of quantifiable range",""))) -> 
D66: =IF(OR(ISBLANK(C65),ISBLANK(C66)),"",STDEV(C65,C66)) ->  | E66: =IF(ISTEXT(D66),"",D66/((C65+C66)/2)*100) ->  | G66: =IF(AND(ISBLANK(C65),ISBLANK(C66)),"",IF(OR(ISBLANK(C66),ISBLANK(C65)),AVERAGE(F65:F66),IF(OR(ISTEXT(F65),ISTEXT(F66)),"Invalid",AVERAGE(F65:F66)))) -> 
H67: =IF(AND(ISBLANK(C67),ISBLANK(C68)),"",IF(AVERAGE($C67:$C68)>$D$22,"LESS than Standard 1, outside of quantifiable range",IF(AVERAGE($C67:$C68)<$D$25,"GREATER than Standard 4, outside of quantifiable range",""))) -> 
D68: =IF(OR(ISBLANK(C67),ISBLANK(C68)),"",STDEV(C67,C68)) ->  | E68: =IF(ISTEXT(D68),"",D68/((C67+C68)/2)*100) ->  | G68: =IF(AND(ISBLANK(C67),ISBLANK(C68)),"",IF(OR(ISBLANK(C68),ISBLANK(C67)),AVERAGE(F67:F68),IF(OR(ISTEXT(F67),ISTEXT(F68)),"Invalid",AVERAGE(F67:F68)))) -> 
H69: =IF(AND(ISBLANK(C69),ISBLANK(C70)),"",IF(AVERAGE($C69:$C70)>$D$22,"LESS than Standard 1, outside of quantifiable range",IF(AVERAGE($C69:$C70)<$D$25,"GREATER than Standard 4, outside of quantifiable range",""))) -> 
D70: =IF(OR(ISBLANK(C69),ISBLANK(C70)),"",STDEV(C69,C70)) ->  | E70: =IF(ISTEXT(D70),"",D70/((C69+C70)/2)*100) ->  | G70: =IF(AND(ISBLANK(C69),ISBLANK(C70)),"",IF(OR(ISBLANK(C70),ISBLANK(C69)),AVERAGE(F69:F70),IF(OR(ISTEXT(F69),ISTEXT(F70)),"Invalid",AVERAGE(F69:F70)))) -> 
H71: =IF(AND(ISBLANK(C71),ISBLANK(C72)),"",IF(AVERAGE($C71:$C72)>$D$22,"LESS than Standard 1, outside of quantifiable range",IF(AVERAGE($C71:$C72)<$D$25,"GREATER than Standard 4, outside of quantifiable range",""))) -> 
D72: =IF(OR(ISBLANK(C71),ISBLANK(C72)),"",STDEV(C71,C72)) ->  | E72: =IF(ISTEXT(D72),"",D72/((C71+C72)/2)*100) ->  | F72: =IF(ISBLANK(C72),"",IF(C72<=$C$32,"invalid",IF(C72>=$C$29,"invalid",$C$31*(($C$29-C72)/(C72-$C$32))^(1/$C$30)))) ->  | G72: =IF(AND(ISBLANK(C71),ISBLANK(C72)),"",IF(OR(ISBLANK(C72),ISBLANK(C71)),AVERAGE(F71:F72),IF(OR(ISTEXT(F71),ISTEXT(F72)),"Invalid",AVERAGE(F71:F72)))) -> 
F73: =IF(ISBLANK(C73),"",IF(C73<=$C$32,"Invalid",IF(C73>=$C$29,"Invalid",$C$31*(($C$29-C73)/(C73-$C$32))^(1/$C$30)))) ->  | H73: =IF(AND(ISBLANK(C73),ISBLANK(C74)),"",IF(AVERAGE($C73:$C74)>$D$22,"LESS than Standard 1, outside of quantifiable range",IF(AVERAGE($C73:$C74)<$D$25,"GREATER than Standard 4, outside of quantifiable range",""))) -> 
D74: =IF(OR(ISBLANK(C73),ISBLANK(C74)),"",STDEV(C73,C74)) ->  | E74: =IF(ISTEXT(D74),"",D74/((C73+C74)/2)*100) ->  | G74: =IF(AND(ISBLANK(C73),ISBLANK(C74)),"",IF(OR(ISBLANK(C74),ISBLANK(C73)),AVERAGE(F73:F74),IF(OR(ISTEXT(F73),ISTEXT(F74)),"Invalid",AVERAGE(F73:F74)))) -> 
H75: =IF(AND(ISBLANK(C75),ISBLANK(C76)),"",IF(AVERAGE($C75:$C76)>$D$22,"LESS than Standard 1, outside of quantifiable range",IF(AVERAGE($C75:$C76)<$D$25,"GREATER than Standard 4, outside of quantifiable range",""))) -> 
D76: =IF(OR(ISBLANK(C75),ISBLANK(C76)),"",STDEV(C75,C76)) ->  | E76: =IF(ISTEXT(D76),"",D76/((C75+C76)/2)*100) ->  | G76: =IF(AND(ISBLANK(C75),ISBLANK(C76)),"",IF(OR(ISBLANK(C76),ISBLANK(C75)),AVERAGE(F75:F76),IF(OR(ISTEXT(F75),ISTEXT(F76)),"Invalid",AVERAGE(F75:F76)))) -> 
F77: =IF(ISBLANK(C77),"",IF(C77<=$C$32,"Invalid",IF(C77>=$C$29,"Invalid",$C$31*(($C$29-C77)/(C77-$C$32))^(1/$C$30)))) ->  | H77: =IF(AND(ISBLANK(C77),ISBLANK(C78)),"",IF(AVERAGE($C77:$C78)>$D$22,"LESS than Standard 1, outside of quantifiable range",IF(AVERAGE($C77:$C78)<$D$25,"GREATER than Standard 4, outside of quantifiable range",""))) -> 
D78: =IF(OR(ISBLANK(C77),ISBLANK(C78)),"",STDEV(C77,C78)) ->  | E78: =IF(ISTEXT(D78),"",D78/((C77+C78)/2)*100) ->  | F78: =IF(ISBLANK(C78),"",IF(C78<=$C$32,"Invalid",IF(C78>=$C$29,"Invalid",$C$31*(($C$29-C78)/(C78-$C$32))^(1/$C$30)))) ->  | G78: =IF(AND(ISBLANK(C77),ISBLANK(C78)),"",IF(OR(ISBLANK(C78),ISBLANK(C77)),AVERAGE(F77:F78),IF(OR(ISTEXT(F77),ISTEXT(F78)),"Invalid",AVERAGE(F77:F78)))) -> 
H79: =IF(AND(ISBLANK(C79),ISBLANK(C80)),"",IF(AVERAGE($C79:$C80)>$D$22,"LESS than Standard 1, outside of quantifiable range",IF(AVERAGE($C79:$C80)<$D$25,"GREATER than Standard 4, outside of quantifiable range",""))) -> 
D80: =IF(OR(ISBLANK(C79),ISBLANK(C80)),"",STDEV(C79,C80)) ->  | E80: =IF(ISTEXT(D80),"",D80/((C79+C80)/2)*100) ->  | G80: =IF(AND(ISBLANK(C79),ISBLANK(C80)),"",IF(OR(ISBLANK(C80),ISBLANK(C79)),AVERAGE(F79:F80),IF(OR(ISTEXT(F79),ISTEXT(F80)),"Invalid",AVERAGE(F79:F80)))) -> 
F81: =IF(ISBLANK(C81),"",IF(C81<=$C$32,"Invalid",IF(C81>=$C$29,"Invalid",$C$31*(($C$29-C81)/(C81-$C$32))^(1/$C$30)))) ->  | H81: =IF(AND(ISBLANK(C81),ISBLANK(C82)),"",IF(AVERAGE($C81:$C82)>$D$22,"LESS than Standard 1, outside of quantifiable range",IF(AVERAGE($C81:$C82)<$D$25,"GREATER than Standard 4, outside of quantifiable range",""))) -> 
D82: =IF(OR(ISBLANK(C81),ISBLANK(C82)),"",STDEV(C81,C82)) ->  | E82: =IF(ISTEXT(D82),"",D82/((C81+C82)/2)*100) ->  | F82: =IF(ISBLANK(C82),"",IF(C82<=$C$32,"Invalid",IF(C82>=$C$29,"Invalid",$C$31*(($C$29-C82)/(C82-$C$32))^(1/$C$30)))) ->  | G82: =IF(AND(ISBLANK(C81),ISBLANK(C82)),"",IF(OR(ISBLANK(C82),ISBLANK(C81)),AVERAGE(F81:F82),IF(OR(ISTEXT(F81),ISTEXT(F82)),"Invalid",AVERAGE(F81:F82)))) -> 
H83: =IF(AND(ISBLANK(C83),ISBLANK(C84)),"",IF(AVERAGE($C83:$C84)>$D$22,"LESS than Standard 1, outside of quantifiable range",IF(AVERAGE($C83:$C84)<$D$25,"GREATER than Standard 4, outside of quantifiable range",""))) -> 
D84: =IF(OR(ISBLANK(C83),ISBLANK(C84)),"",STDEV(C83,C84)) ->  | E84: =IF(ISTEXT(D84),"",D84/((C83+C84)/2)*100) ->  | G84: =IF(AND(ISBLANK(C83),ISBLANK(C84)),"",IF(OR(ISBLANK(C84),ISBLANK(C83)),AVERAGE(F83:F84),IF(OR(ISTEXT(F83),ISTEXT(F84)),"Invalid",AVERAGE(F83:F84)))) -> 
H85: =IF(AND(ISBLANK(C85),ISBLANK(C86)),"",IF(AVERAGE($C85:$C86)>$D$22,"LESS than Standard 1, outside of quantifiable range",IF(AVERAGE($C85:$C86)<$D$25,"GREATER than Standard 4, outside of quantifiable range",""))) -> 
D86: =IF(OR(ISBLANK(C85),ISBLANK(C86)),"",STDEV(C85,C86)) ->  | E86: =IF(ISTEXT(D86),"",D86/((C85+C86)/2)*100) ->  | G86: =IF(AND(ISBLANK(C85),ISBLANK(C86)),"",IF(OR(ISBLANK(C86),ISBLANK(C85)),AVERAGE(F85:F86),IF(OR(ISTEXT(F85),ISTEXT(F86)),"Invalid",AVERAGE(F85:F86)))) -> 
H87: =IF(AND(ISBLANK(C87),ISBLANK(C88)),"",IF(AVERAGE($C87:$C88)>$D$22,"LESS than Standard 1, outside of quantifiable range",IF(AVERAGE($C87:$C88)<$D$25,"GREATER than Standard 4, outside of quantifiable range",""))) -> 
D88: =IF(OR(ISBLANK(C87),ISBLANK(C88)),"",STDEV(C87,C88)) ->  | E88: =IF(ISTEXT(D88),"",D88/((C87+C88)/2)*100) ->  | G88: =IF(AND(ISBLANK(C87),ISBLANK(C88)),"",IF(OR(ISBLANK(C88),ISBLANK(C87)),AVERAGE(F87:F88),IF(OR(ISTEXT(F87),ISTEXT(F88)),"Invalid",AVERAGE(F87:F88)))) -> 
H89: =IF(AND(ISBLANK(C89),ISBLANK(C90)),"",IF(AVERAGE($C89:$C90)>$D$22,"LESS than Standard 1, outside of quantifiable range",IF(AVERAGE($C89:$C90)<$D$25,"GREATER than Standard 4, outside of quantifiable range",""))) -> 
D90: =IF(OR(ISBLANK(C89),ISBLANK(C90)),"",STDEV(C89,C90)) ->  | E90: =IF(ISTEXT(D90),"",D90/((C89+C90)/2)*100) ->  | G90: =IF(AND(ISBLANK(C89),ISBLANK(C90)),"",IF(OR(ISBLANK(C90),ISBLANK(C89)),AVERAGE(F89:F90),IF(OR(ISTEXT(F89),ISTEXT(F90)),"Invalid",AVERAGE(F89:F90)))) -> 
H91: =IF(AND(ISBLANK(C91),ISBLANK(C92)),"",IF(AVERAGE($C91:$C92)>$D$22,"LESS than Standard 1, outside of quantifiable range",IF(AVERAGE($C91:$C92)<$D$25,"GREATER than Standard 4, outside of quantifiable range",""))) -> 
D92: =IF(OR(ISBLANK(C91),ISBLANK(C92)),"",STDEV(C91,C92)) ->  | E92: =IF(ISTEXT(D92),"",D92/((C91+C92)/2)*100) ->  | G92: =IF(AND(ISBLANK(C91),ISBLANK(C92)),"",IF(OR(ISBLANK(C92),ISBLANK(C91)),AVERAGE(F91:F92),IF(OR(ISTEXT(F91),ISTEXT(F92)),"Invalid",AVERAGE(F91:F92)))) -> 
H93: =IF(AND(ISBLANK(C93),ISBLANK(C94)),"",IF(AVERAGE($C93:$C94)>$D$22,"LESS than Standard 1, outside of quantifiable range",IF(AVERAGE($C93:$C94)<$D$25,"GREATER than Standard 4, outside of quantifiable range",""))) -> 
D94: =IF(OR(ISBLANK(C93),ISBLANK(C94)),"",STDEV(C93,C94)) ->  | E94: =IF(ISTEXT(D94),"",D94/((C93+C94)/2)*100) ->  | G94: =IF(AND(ISBLANK(C93),ISBLANK(C94)),"",IF(OR(ISBLANK(C94),ISBLANK(C93)),AVERAGE(F93:F94),IF(OR(ISTEXT(F93),ISTEXT(F94)),"Invalid",AVERAGE(F93:F94)))) -> 
H95: =IF(AND(ISBLANK(C95),ISBLANK(C96)),"",IF(AVERAGE($C95:$C96)>$D$22,"LESS than Standard 1, outside of quantifiable range",IF(AVERAGE($C95:$C96)<$D$25,"GREATER than Standard 4, outside of quantifiable range",""))) -> 
D96: =IF(OR(ISBLANK(C95),ISBLANK(C96)),"",STDEV(C95,C96)) ->  | E96: =IF(ISTEXT(D96),"",D96/((C95+C96)/2)*100) ->  | F96: =IF(ISBLANK(C96),"",IF(C96<=$C$32,"invalid",IF(C96>=$C$29,"invalid",$C$31*(($C$29-C96)/(C96-$C$32))^(1/$C$30)))) ->  | G96: =IF(AND(ISBLANK(C95),ISBLANK(C96)),"",IF(OR(ISBLANK(C96),ISBLANK(C95)),AVERAGE(F95:F96),IF(OR(ISTEXT(F95),ISTEXT(F96)),"Invalid",AVERAGE(F95:F96)))) -> 
F97: =IF(ISBLANK(C97),"",IF(C97<=$C$32,"Invalid",IF(C97>=$C$29,"Invalid",$C$31*(($C$29-C97)/(C97-$C$32))^(1/$C$30)))) ->  | H97: =IF(AND(ISBLANK(C97),ISBLANK(C98)),"",IF(AVERAGE($C97:$C98)>$D$22,"LESS than Standard 1, outside of quantifiable range",IF(AVERAGE($C97:$C98)<$D$25,"GREATER than Standard 4, outside of quantifiable range",""))) -> 
D98: =IF(OR(ISBLANK(C97),ISBLANK(C98)),"",STDEV(C97,C98)) ->  | E98: =IF(ISTEXT(D98),"",D98/((C97+C98)/2)*100) ->  | G98: =IF(AND(ISBLANK(C97),ISBLANK(C98)),"",IF(OR(ISBLANK(C98),ISBLANK(C97)),AVERAGE(F97:F98),IF(OR(ISTEXT(F97),ISTEXT(F98)),"Invalid",AVERAGE(F97:F98)))) -> 
H99: =IF(AND(ISBLANK(C99),ISBLANK(C100)),"",IF(AVERAGE($C99:$C100)>$D$22,"LESS than Standard 1, outside of quantifiable range",IF(AVERAGE($C99:$C100)<$D$25,"GREATER than Standard 4, outside of quantifiable range",""))) -> 
D100: =IF(OR(ISBLANK(C99),ISBLANK(C100)),"",STDEV(C99,C100)) ->  | E100: =IF(ISTEXT(D100),"",D100/((C99+C100)/2)*100) ->  | G100: =IF(AND(ISBLANK(C99),ISBLANK(C100)),"",IF(OR(ISBLANK(C100),ISBLANK(C99)),AVERAGE(F99:F100),IF(OR(ISTEXT(F99),ISTEXT(F100)),"Invalid",AVERAGE(F99:F100)))) -> 
F101: =IF(ISBLANK(C101),"",IF(C101<=$C$32,"Invalid",IF(C101>=$C$29,"Invalid",$C$31*(($C$29-C101)/(C101-$C$32))^(1/$C$30)))) ->  | H101: =IF(AND(ISBLANK(C101),ISBLANK(C102)),"",IF(AVERAGE($C101:$C102)>$D$22,"LESS than Standard 1, outside of quantifiable range",IF(AVERAGE($C101:$C102)<$D$25,"GREATER than Standard 4, outside of quantifiable range",""))) -> 
D102: =IF(OR(ISBLANK(C101),ISBLANK(C102)),"",STDEV(C101,C102)) ->  | E102: =IF(ISTEXT(D102),"",D102/((C101+C102)/2)*100) ->  | F102: =IF(ISBLANK(C102),"",IF(C102<=$C$32,"Invalid",IF(C102>=$C$29,"Invalid",$C$31*(($C$29-C102)/(C102-$C$32))^(1/$C$30)))) ->  | G102: =IF(AND(ISBLANK(C101),ISBLANK(C102)),"",IF(OR(ISBLANK(C102),ISBLANK(C101)),AVERAGE(F101:F102),IF(OR(ISTEXT(F101),ISTEXT(F102)),"Invalid",AVERAGE(F101:F102)))) -> 
H103: =IF(AND(ISBLANK(C103),ISBLANK(C104)),"",IF(AVERAGE($C103:$C104)>$D$22,"LESS than Standard 1, outside of quantifiable range",IF(AVERAGE($C103:$C104)<$D$25,"GREATER than Standard 4, outside of quantifiable range",""))) -> 
D104: =IF(OR(ISBLANK(C103),ISBLANK(C104)),"",STDEV(C103,C104)) ->  | E104: =IF(ISTEXT(D104),"",D104/((C103+C104)/2)*100) ->  | G104: =IF(AND(ISBLANK(C103),ISBLANK(C104)),"",IF(OR(ISBLANK(C104),ISBLANK(C103)),AVERAGE(F103:F104),IF(OR(ISTEXT(F103),ISTEXT(F104)),"Invalid",AVERAGE(F103:F104)))) -> 
F105: =IF(ISBLANK(C105),"",IF(C105<=$C$32,"Invalid",IF(C105>=$C$29,"Invalid",$C$31*(($C$29-C105)/(C105-$C$32))^(1/$C$30)))) ->  | H105: =IF(AND(ISBLANK(C105),ISBLANK(C106)),"",IF(AVERAGE($C105:$C106)>$D$22,"LESS than Standard 1, outside of quantifiable range",IF(AVERAGE($C105:$C106)<$D$25,"GREATER than Standard 4, outside of quantifiable range",""))) -> 
D106: =IF(OR(ISBLANK(C105),ISBLANK(C106)),"",STDEV(C105,C106)) ->  | E106: =IF(ISTEXT(D106),"",D106/((C105+C106)/2)*100) ->  | F106: =IF(ISBLANK(C106),"",IF(C106<=$C$32,"Invalid",IF(C106>=$C$29,"Invalid",$C$31*(($C$29-C106)/(C106-$C$32))^(1/$C$30)))) ->  | G106: =IF(AND(ISBLANK(C105),ISBLANK(C106)),"",IF(OR(ISBLANK(C106),ISBLANK(C105)),AVERAGE(F105:F106),IF(OR(ISTEXT(F105),ISTEXT(F106)),"Invalid",AVERAGE(F105:F106)))) -> 
H107: =IF(AND(ISBLANK(C107),ISBLANK(C108)),"",IF(AVERAGE($C107:$C108)>$D$22,"LESS than Standard 1, outside of quantifiable range",IF(AVERAGE($C107:$C108)<$D$25,"GREATER than Standard 4, outside of quantifiable range",""))) -> 
D108: =IF(OR(ISBLANK(C107),ISBLANK(C108)),"",STDEV(C107,C108)) ->  | E108: =IF(ISTEXT(D108),"",D108/((C107+C108)/2)*100) ->  | G108: =IF(AND(ISBLANK(C107),ISBLANK(C108)),"",IF(OR(ISBLANK(C108),ISBLANK(C107)),AVERAGE(F107:F108),IF(OR(ISTEXT(F107),ISTEXT(F108)),"Invalid",AVERAGE(F107:F108)))) -> 
H109: =IF(AND(ISBLANK(C109),ISBLANK(C110)),"",IF(AVERAGE($C109:$C110)>$D$22,"LESS than Standard 1, outside of quantifiable range",IF(AVERAGE($C109:$C110)<$D$25,"GREATER than Standard 4, outside of quantifiable range",""))) -> 
D110: =IF(OR(ISBLANK(C109),ISBLANK(C110)),"",STDEV(C109,C110)) ->  | E110: =IF(ISTEXT(D110),"",D110/((C109+C110)/2)*100) ->  | G110: =IF(AND(ISBLANK(C109),ISBLANK(C110)),"",IF(OR(ISBLANK(C110),ISBLANK(C109)),AVERAGE(F109:F110),IF(OR(ISTEXT(F109),ISTEXT(F110)),"Invalid",AVERAGE(F109:F110)))) -> 
H111: =IF(AND(ISBLANK(C111),ISBLANK(C112)),"",IF(AVERAGE($C111:$C112)>$D$22,"LESS than Standard 1, outside of quantifiable range",IF(AVERAGE($C111:$C112)<$D$25,"GREATER than Standard 4, outside of quantifiable range",""))) -> 
D112: =IF(OR(ISBLANK(C111),ISBLANK(C112)),"",STDEV(C111,C112)) ->  | E112: =IF(ISTEXT(D112),"",D112/((C111+C112)/2)*100) ->  | G112: =IF(AND(ISBLANK(C111),ISBLANK(C112)),"",IF(OR(ISBLANK(C112),ISBLANK(C111)),AVERAGE(F111:F112),IF(OR(ISTEXT(F111),ISTEXT(F112)),"Invalid",AVERAGE(F111:F112)))) -> 
H113: =IF(AND(ISBLANK(C113),ISBLANK(C114)),"",IF(AVERAGE($C113:$C114)>$D$22,"LESS than Standard 1, outside of quantifiable range",IF(AVERAGE($C113:$C114)<$D$25,"GREATER than Standard 4, outside of quantifiable range",""))) -> 
D114: =IF(OR(ISBLANK(C113),ISBLANK(C114)),"",STDEV(C113,C114)) ->  | E114: =IF(ISTEXT(D114),"",D114/((C113+C114)/2)*100) ->  | G114: =IF(AND(ISBLANK(C113),ISBLANK(C114)),"",IF(OR(ISBLANK(C114),ISBLANK(C113)),AVERAGE(F113:F114),IF(OR(ISTEXT(F113),ISTEXT(F114)),"Invalid",AVERAGE(F113:F114)))) -> 
H115: =IF(AND(ISBLANK(C115),ISBLANK(C116)),"",IF(AVERAGE($C115:$C116)>$D$22,"LESS than Standard 1, outside of quantifiable range",IF(AVERAGE($C115:$C116)<$D$25,"GREATER than Standard 4, outside of quantifiable range",""))) -> 
D116: =IF(OR(ISBLANK(C115),ISBLANK(C116)),"",STDEV(C115,C116)) ->  | E116: =IF(ISTEXT(D116),"",D116/((C115+C116)/2)*100) ->  | G116: =IF(AND(ISBLANK(C115),ISBLANK(C116)),"",IF(OR(ISBLANK(C116),ISBLANK(C115)),AVERAGE(F115:F116),IF(OR(ISTEXT(F115),ISTEXT(F116)),"Invalid",AVERAGE(F115:F116)))) -> 
H117: =IF(AND(ISBLANK(C117),ISBLANK(C118)),"",IF(AVERAGE($C117:$C118)>$D$22,"LESS than Standard 1, outside of quantifiable range",IF(AVERAGE($C117:$C118)<$D$25,"GREATER than Standard 4, outside of quantifiable range",""))) -> 
D118: =IF(OR(ISBLANK(C117),ISBLANK(C118)),"",STDEV(C117,C118)) ->  | E118: =IF(ISTEXT(D118),"",D118/((C117+C118)/2)*100) ->  | G118: =IF(AND(ISBLANK(C117),ISBLANK(C118)),"",IF(OR(ISBLANK(C118),ISBLANK(C117)),AVERAGE(F117:F118),IF(OR(ISTEXT(F117),ISTEXT(F118)),"Invalid",AVERAGE(F117:F118)))) -> 
H119: =IF(AND(ISBLANK(C119),ISBLANK(C120)),"",IF(AVERAGE($C119:$C120)>$D$22,"LESS than Standard 1, outside of quantifiable range",IF(AVERAGE($C119:$C120)<$D$25,"GREATER than Standard 4, outside of quantifiable range",""))) -> 
D120: =IF(OR(ISBLANK(C119),ISBLANK(C120)),"",STDEV(C119,C120)) ->  | E120: =IF(ISTEXT(D120),"",D120/((C119+C120)/2)*100) ->  | F120: =IF(ISBLANK(C120),"",IF(C120<=$C$32,"invalid",IF(C120>=$C$29,"invalid",$C$31*(($C$29-C120)/(C120-$C$32))^(1/$C$30)))) ->  | G120: =IF(AND(ISBLANK(C119),ISBLANK(C120)),"",IF(OR(ISBLANK(C120),ISBLANK(C119)),AVERAGE(F119:F120),IF(OR(ISTEXT(F119),ISTEXT(F120)),"Invalid",AVERAGE(F119:F120)))) -> 
F121: =IF(ISBLANK(C121),"",IF(C121<=$C$32,"Invalid",IF(C121>=$C$29,"Invalid",$C$31*(($C$29-C121)/(C121-$C$32))^(1/$C$30)))) ->  | H121: =IF(AND(ISBLANK(C121),ISBLANK(C122)),"",IF(AVERAGE($C121:$C122)>$D$22,"LESS than Standard 1, outside of quantifiable range",IF(AVERAGE($C121:$C122)<$D$25,"GREATER than Standard 4, outside of quantifiable range",""))) -> 
D122: =IF(OR(ISBLANK(C121),ISBLANK(C122)),"",STDEV(C121,C122)) ->  | E122: =IF(ISTEXT(D122),"",D122/((C121+C122)/2)*100) ->  | G122: =IF(AND(ISBLANK(C121),ISBLANK(C122)),"",IF(OR(ISBLANK(C122),ISBLANK(C121)),AVERAGE(F121:F122),IF(OR(ISTEXT(F121),ISTEXT(F122)),"Invalid",AVERAGE(F121:F122)))) -> 
H123: =IF(AND(ISBLANK(C123),ISBLANK(C124)),"",IF(AVERAGE($C123:$C124)>$D$22,"LESS than Standard 1, outside of quantifiable range",IF(AVERAGE($C123:$C124)<$D$25,"GREATER than Standard 4, outside of quantifiable range",""))) -> 
D124: =IF(OR(ISBLANK(C123),ISBLANK(C124)),"",STDEV(C123,C124)) ->  | E124: =IF(ISTEXT(D124),"",D124/((C123+C124)/2)*100) ->  | G124: =IF(AND(ISBLANK(C123),ISBLANK(C124)),"",IF(OR(ISBLANK(C124),ISBLANK(C123)),AVERAGE(F123:F124),IF(OR(ISTEXT(F123),ISTEXT(F124)),"Invalid",AVERAGE(F123:F124)))) -> 
F125: =IF(ISBLANK(C125),"",IF(C125<=$C$32,"Invalid",IF(C125>=$C$29,"Invalid",$C$31*(($C$29-C125)/(C125-$C$32))^(1/$C$30)))) ->  | H125: =IF(AND(ISBLANK(C125),ISBLANK(C126)),"",IF(AVERAGE($C125:$C126)>$D$22,"LESS than Standard 1, outside of quantifiable range",IF(AVERAGE($C125:$C126)<$D$25,"GREATER than Standard 4, outside of quantifiable range",""))) -> 
D126: =IF(OR(ISBLANK(C125),ISBLANK(C126)),"",STDEV(C125,C126)) ->  | E126: =IF(ISTEXT(D126),"",D126/((C125+C126)/2)*100) ->  | F126: =IF(ISBLANK(C126),"",IF(C126<=$C$32,"Invalid",IF(C126>=$C$29,"Invalid",$C$31*(($C$29-C126)/(C126-$C$32))^(1/$C$30)))) ->  | G126: =IF(AND(ISBLANK(C125),ISBLANK(C126)),"",IF(OR(ISBLANK(C126),ISBLANK(C125)),AVERAGE(F125:F126),IF(OR(ISTEXT(F125),ISTEXT(F126)),"Invalid",AVERAGE(F125:F126)))) -> 
H127: =IF(AND(ISBLANK(C127),ISBLANK(C128)),"",IF(AVERAGE($C127:$C128)>$D$22,"LESS than Standard 1, outside of quantifiable range",IF(AVERAGE($C127:$C128)<$D$25,"GREATER than Standard 4, outside of quantifiable range",""))) -> 
D128: =IF(OR(ISBLANK(C127),ISBLANK(C128)),"",STDEV(C127,C128)) ->  | E128: =IF(ISTEXT(D128),"",D128/((C127+C128)/2)*100) ->  | G128: =IF(AND(ISBLANK(C127),ISBLANK(C128)),"",IF(OR(ISBLANK(C128),ISBLANK(C127)),AVERAGE(F127:F128),IF(OR(ISTEXT(F127),ISTEXT(F128)),"Invalid",AVERAGE(F127:F128)))) -> 
F129: =IF(ISBLANK(C129),"",IF(C129<=$C$32,"Invalid",IF(C129>=$C$29,"Invalid",$C$31*(($C$29-C129)/(C129-$C$32))^(1/$C$30)))) ->  | H129: =IF(AND(ISBLANK(C129),ISBLANK(C130)),"",IF(AVERAGE($C129:$C130)>$D$22,"LESS than Standard 1, outside of quantifiable range",IF(AVERAGE($C129:$C130)<$D$25,"GREATER than Standard 4, outside of quantifiable range",""))) -> 
D130: =IF(OR(ISBLANK(C129),ISBLANK(C130)),"",STDEV(C129,C130)) ->  | E130: =IF(ISTEXT(D130),"",D130/((C129+C130)/2)*100) ->  | F130: =IF(ISBLANK(C130),"",IF(C130<=$C$32,"Invalid",IF(C130>=$C$29,"Invalid",$C$31*(($C$29-C130)/(C130-$C$32))^(1/$C$30)))) ->  | G130: =IF(AND(ISBLANK(C129),ISBLANK(C130)),"",IF(OR(ISBLANK(C130),ISBLANK(C129)),AVERAGE(F129:F130),IF(OR(ISTEXT(F129),ISTEXT(F130)),"Invalid",AVERAGE(F129:F130)))) -> 
H131: =IF(AND(ISBLANK(C131),ISBLANK(C132)),"",IF(AVERAGE($C131:$C132)>$D$22,"LESS than Standard 1, outside of quantifiable range",IF(AVERAGE($C131:$C132)<$D$25,"GREATER than Standard 4, outside of quantifiable range",""))) -> 
D132: =IF(OR(ISBLANK(C131),ISBLANK(C132)),"",STDEV(C131,C132)) ->  | E132: =IF(ISTEXT(D132),"",D132/((C131+C132)/2)*100) ->  | G132: =IF(AND(ISBLANK(C131),ISBLANK(C132)),"",IF(OR(ISBLANK(C132),ISBLANK(C131)),AVERAGE(F131:F132),IF(OR(ISTEXT(F131),ISTEXT(F132)),"Invalid",AVERAGE(F131:F132)))) -> 
H133: =IF(AND(ISBLANK(C133),ISBLANK(C134)),"",IF(AVERAGE($C133:$C134)>$D$22,"LESS than Standard 1, outside of quantifiable range",IF(AVERAGE($C133:$C134)<$D$25,"GREATER than Standard 4, outside of quantifiable range",""))) -> 
D134: =IF(OR(ISBLANK(C133),ISBLANK(C134)),"",STDEV(C133,C134)) ->  | E134: =IF(ISTEXT(D134),"",D134/((C133+C134)/2)*100) ->  | G134: =IF(AND(ISBLANK(C133),ISBLANK(C134)),"",IF(OR(ISBLANK(C134),ISBLANK(C133)),AVERAGE(F133:F134),IF(OR(ISTEXT(F133),ISTEXT(F134)),"Invalid",AVERAGE(F133:F134)))) -> 
H135: =IF(AND(ISBLANK(C135),ISBLANK(C136)),"",IF(AVERAGE($C135:$C136)>$D$22,"LESS than Standard 1, outside of quantifiable range",IF(AVERAGE($C135:$C136)<$D$25,"GREATER than Standard 4, outside of quantifiable range",""))) -> 
D136: =IF(OR(ISBLANK(C135),ISBLANK(C136)),"",STDEV(C135,C136)) ->  | E136: =IF(ISTEXT(D136),"",D136/((C135+C136)/2)*100) ->  | G136: =IF(AND(ISBLANK(C135),ISBLANK(C136)),"",IF(OR(ISBLANK(C136),ISBLANK(C135)),AVERAGE(F135:F136),IF(OR(ISTEXT(F135),ISTEXT(F136)),"Invalid",AVERAGE(F135:F136)))) -> 
H137: =IF(AND(ISBLANK(C137),ISBLANK(C138)),"",IF(AVERAGE($C137:$C138)>$D$22,"LESS than Standard 1, outside of quantifiable range",IF(AVERAGE($C137:$C138)<$D$25,"GREATER than Standard 4, outside of quantifiable range",""))) -> 
D138: =IF(OR(ISBLANK(C137),ISBLANK(C138)),"",STDEV(C137,C138)) ->  | E138: =IF(ISTEXT(D138),"",D138/((C137+C138)/2)*100) ->  | G138: =IF(AND(ISBLANK(C137),ISBLANK(C138)),"",IF(OR(ISBLANK(C138),ISBLANK(C137)),AVERAGE(F137:F138),IF(OR(ISTEXT(F137),ISTEXT(F138)),"Invalid",AVERAGE(F137:F138)))) -> 
H139: =IF(AND(ISBLANK(C139),ISBLANK(C140)),"",IF(AVERAGE($C139:$C140)>$D$22,"LESS than Standard 1, outside of quantifiable range",IF(AVERAGE($C139:$C140)<$D$25,"GREATER than Standard 4, outside of quantifiable range",""))) -> 
D140: =IF(OR(ISBLANK(C139),ISBLANK(C140)),"",STDEV(C139,C140)) ->  | E140: =IF(ISTEXT(D140),"",D140/((C139+C140)/2)*100) ->  | G140: =IF(AND(ISBLANK(C139),ISBLANK(C140)),"",IF(OR(ISBLANK(C140),ISBLANK(C139)),AVERAGE(F139:F140),IF(OR(ISTEXT(F139),ISTEXT(F140)),"Invalid",AVERAGE(F139:F140)))) -> 
H141: =IF(AND(ISBLANK(C141),ISBLANK(C142)),"",IF(AVERAGE($C141:$C142)>$D$22,"LESS than Standard 1, outside of quantifiable range",IF(AVERAGE($C141:$C142)<$D$25,"GREATER than Standard 4, outside of quantifiable range",""))) -> 
D142: =IF(OR(ISBLANK(C141),ISBLANK(C142)),"",STDEV(C141,C142)) ->  | E142: =IF(ISTEXT(D142),"",D142/((C141+C142)/2)*100) ->  | G142: =IF(AND(ISBLANK(C141),ISBLANK(C142)),"",IF(OR(ISBLANK(C142),ISBLANK(C141)),AVERAGE(F141:F142),IF(OR(ISTEXT(F141),ISTEXT(F142)),"Invalid",AVERAGE(F141:F142)))) -> 
H143: =IF(AND(ISBLANK(C143),ISBLANK(C144)),"",IF(AVERAGE($C143:$C144)>$D$22,"LESS than Standard 1, outside of quantifiable range",IF(AVERAGE($C143:$C144)<$D$25,"GREATER than Standard 4, outside of quantifiable range",""))) -> 
D144: =IF(OR(ISBLANK(C143),ISBLANK(C144)),"",STDEV(C143,C144)) ->  | E144: =IF(ISTEXT(D144),"",D144/((C143+C144)/2)*100) ->  | F144: =IF(ISBLANK(C144),"",IF(C144<=$C$32,"invalid",IF(C144>=$C$29,"invalid",$C$31*(($C$29-C144)/(C144-$C$32))^(1/$C$30)))) ->  | G144: =IF(AND(ISBLANK(C143),ISBLANK(C144)),"",IF(OR(ISBLANK(C144),ISBLANK(C143)),AVERAGE(F143:F144),IF(OR(ISTEXT(F143),ISTEXT(F144)),"Invalid",AVERAGE(F143:F144)))) -> 

Sheet 6 Standards
B2: ** USER MUST ONLY INPUT VALUES IN GREY-COLORED CELLS ** | G2: Kit Lot # | P2: Before you start:
B4: Enter the absorbance values of each standard into the grey boxes | P4: Check that "solver" is installed
B5: Std 0 | C5: Std 1 | D5: Std 2 | E5: Std 3 | F5: Std 4 | G5: Std 5
B6: 0.639 | C6: 0.499 | D6: 0.442 | E6: 0.345 | F6: 0.241 | G6: 0.162 | M6: 0.059 | P6: Input OD values for standards (Fig 4 in protocol)
B7: 0.568 | C7: 0.508 | D7: 0.451 | E7: 0.363 | F7: 0.241 | G7: 0.163 | M7: 0.061 | P7: Select solver (Target Cell: $e$32 - Cell Changes: $c$35:$c$38 - Optimize: Minimize - GRG Nonlinear )
P8: "Solve"
P9: Check graph and parametres (A>0.7; D<0.1;
P12: Calculate MC TADDA-concentration in samples in wells:
P13: Input average OD of unknown samples in cell c48 (sample 1) , c49 (sample 2)….
P14: Calculated ELISA MCTADDA concentration are given automatically in cell d48 (sample 1), c49 (sample 2),….
P15: Sample concentrations should only be used from datapoints that are within the valid working range of the standard curve
P17: If OD is outsite the Ic20 to Ic80 range, dilution sholud be adjusted and the samples assayed again
B19: Enter the standard concentrations of each standard into the grey boxes
B20: Standards (ng/ml) | C20: OD (averaged) | D20: Predicted values | E20: Residual Squares | F20: B/Bo | G20: Std Dev | H20: %CV
B21: 0 | C21: =(B6+B7)/2 -> 0.6035 | D21: =($C$30-$C$33)/(1+(B21/$C$32)^$C$31)+$C$33 -> 0.5994097241 | E21: =(C21-D21)^2 -> 1.673035724e-05 | G21: =STDEV(B6,B7) -> 0.05020458146 | H21: =(G21/C21)*100 -> 8.318903308
B22: 0.15 | C22: =(C6+C7)/2 -> 0.5035 | D22: 0.5146411159 | E22: 0.0001241244644 | F22: =C22/C$21 -> 0.8342999171 | G22: =STDEV(C6,C7) -> 0.006363961031 | H22: 1.263944594 | Q22: OD | R22: MCTADDA-conc | S22: X=C x ((A-Y)/(Y-D))^(1/B)
B23: 0.4 | C23: =(D6+D7)/2 -> 0.4465 | D23: 0.4424053046 | E23: 1.676653042e-05 | F23: =C23/C$21 -> 0.7398508699 | G23: =STDEV(D6,D7) -> 0.006363961031 | H23: 1.425299223 | P23: Ic20 | Q23: =$C$33+($C$30-$C$33)*20/100 -> 0.1198819448 | R23: =C32*((C30-Q23)/(Q23-C33))^(1/C31) -> 8.836199089
B24: 1 | C24: =(E6+E7)/2 -> 0.354 | D24: 0.3470872097 | E24: 4.778666996e-05 | F24: =C24/C$21 -> 0.5865782933 | G24: =STDEV(E6,E7) -> 0.01272792206 | H24: 3.595458209 | P24: Ic80 | Q24: =$C$33+($C$30-$C$33)*80/100 -> 0.4795277793 | R24: =C32*((C30-Q24)/(Q24-C33))^(1/C31) -> 0.2556470093
B25: 2.5 | C25: =(F6+F7)/2 -> 0.241 | D25: 0.2408074118 | E25: 3.709022186e-08 | F25: =C25/C$21 -> 0.3993371997 | G25: =STDEV(F6,F7) -> 0 | H25: 0
B26: 5 | C26: =(G6+G7)/2 -> 0.1625 | D26: 0.1682932864 | E26: 3.35621672e-05 | F26: =C26/C$21 -> 0.2692626346 | G26: =STDEV(G6,G7) -> 0.0007071067812 | H26: 0.4351426346
B27: Sum Of Squares | E27: =SUM(E21:E26) -> 0.0002390072794
B29: Parameter (Y=(A-D)/(1+(X/C)^B)+D) | E29: R-Squared
B30: A | C30: 0.5994097241 | D30: (Max.) | E30: =(CORREL(C21:C26,D21:D26))^2 -> 0.998277508
B31: B | C31: 0.782594952 | D31: (Slope)
B32: C | C32: 1.502979664 | D32: (IC50)
B33: D | C33: 0 | D33: (Min.)
B36: Enter descriptions and absorbance values of each sample and control into the grey boxes
B37: Sample/Control | C37: Absorbances | D37: Std Dev | E37: %CV | F37: Sample Concentration (ng/ml) | G37: Sample Concentration Avg (ng/ml) | H37: Comments
B38: Control | C38: 0.381 | F38: =IF(ISBLANK(C38),"",IF(C38<=$C$33,"Invalid",IF(C38>=$C$30,"Invalid",$C$32*(($C$30-C38)/(C38-$C$33))^(1/$C$31)))) -> 0.7381911622 | H38: =IF(AND(ISBLANK(C38),ISBLANK(C39)),"",IF(AVERAGE($C38:$C39)>$D$22,"LESS than Standard 1, outside of quantifiable range",IF(AVERAGE($C38:$C39)<$D$26,"GREATER than Standard 5, outside of quantifiable range",""))) -> 
B39: Control | C39: 0.389 | D39: =IF(OR(ISBLANK(C38),ISBLANK(C39)),"",STDEV(C38,C39)) -> 0.005656854249 | E39: =IF(ISTEXT(D39),"",D39/((C38+C39)/2)*100) -> 1.469312792 | F39: =IF(ISBLANK(C39),"",IF(C39<=$C$33,"Invalid",IF(C39>=$C$30,"Invalid",$C$32*(($C$30-C39)/(C39-$C$33))^(1/$C$31)))) -> 0.685376065 | G39: =IF(AND(ISBLANK(C38),ISBLANK(C39)),"",IF(OR(ISBLANK(C39),ISBLANK(C38)),AVERAGE(F38:F39),IF(OR(ISTEXT(F38),ISTEXT(F39)),"Invalid",AVERAGE(F38:F39)))) -> 0.7117836136
B40: LRB | C40: 0.583 | F40: 0.01569054039 | H40: =IF(AND(ISBLANK(C40),ISBLANK(C41)),"",IF(AVERAGE($C40:$C41)>$D$22,"LESS than Standard 1, outside of quantifiable range",IF(AVERAGE($C40:$C41)<$D$26,"GREATER than Standard 5, outside of quantifiable range",""))) -> LESS than Standard 1, outside of quantifiable range
B41: LRB | C41: 0.623 | D41: =IF(OR(ISBLANK(C40),ISBLANK(C41)),"",STDEV(C40,C41)) -> 0.02828427125 | E41: =IF(ISTEXT(D41),"",D41/((C40+C41)/2)*100) -> 4.690592247 | F41: Invalid | G41: =IF(AND(ISBLANK(C40),ISBLANK(C41)),"",IF(OR(ISBLANK(C41),ISBLANK(C40)),AVERAGE(F40:F41),IF(OR(ISTEXT(F40),ISTEXT(F41)),"Invalid",AVERAGE(F40:F41)))) -> Invalid
H42: =IF(AND(ISBLANK(C42),ISBLANK(C43)),"",IF(AVERAGE($C42:$C43)>$D$22,"LESS than Standard 1, outside of quantifiable range",IF(AVERAGE($C42:$C43)<$D$26,"GREATER than Standard 5, outside of quantifiable range",""))) -> 
D43: =IF(OR(ISBLANK(C42),ISBLANK(C43)),"",STDEV(C42,C43)) ->  | E43: =IF(ISTEXT(D43),"",D43/((C42+C43)/2)*100) ->  | G43: =IF(AND(ISBLANK(C42),ISBLANK(C43)),"",IF(OR(ISBLANK(C43),ISBLANK(C42)),AVERAGE(F42:F43),IF(OR(ISTEXT(F42),ISTEXT(F43)),"Invalid",AVERAGE(F42:F43)))) -> 
H44: =IF(AND(ISBLANK(C44),ISBLANK(C45)),"",IF(AVERAGE($C44:$C45)>$D$22,"LESS than Standard 1, outside of quantifiable range",IF(AVERAGE($C44:$C45)<$D$26,"GREATER than Standard 5, outside of quantifiable range",""))) -> 
D45: =IF(OR(ISBLANK(C44),ISBLANK(C45)),"",STDEV(C44,C45)) ->  | E45: =IF(ISTEXT(D45),"",D45/((C44+C45)/2)*100) ->  | G45: =IF(AND(ISBLANK(C44),ISBLANK(C45)),"",IF(OR(ISBLANK(C45),ISBLANK(C44)),AVERAGE(F44:F45),IF(OR(ISTEXT(F44),ISTEXT(F45)),"Invalid",AVERAGE(F44:F45)))) -> 
H46: =IF(AND(ISBLANK(C46),ISBLANK(C47)),"",IF(AVERAGE($C46:$C47)>$D$22,"LESS than Standard 1, outside of quantifiable range",IF(AVERAGE($C46:$C47)<$D$26,"GREATER than Standard 5, outside of quantifiable range",""))) -> 
D47: =IF(OR(ISBLANK(C46),ISBLANK(C47)),"",STDEV(C46,C47)) ->  | E47: =IF(ISTEXT(D47),"",D47/((C46+C47)/2)*100) ->  | G47: =IF(AND(ISBLANK(C46),ISBLANK(C47)),"",IF(OR(ISBLANK(C47),ISBLANK(C46)),AVERAGE(F46:F47),IF(OR(ISTEXT(F46),ISTEXT(F47)),"Invalid",AVERAGE(F46:F47)))) -> 
H48: =IF(AND(ISBLANK(C48),ISBLANK(C49)),"",IF(AVERAGE($C48:$C49)>$D$22,"LESS than Standard 1, outside of quantifiable range",IF(AVERAGE($C48:$C49)<$D$26,"GREATER than Standard 5, outside of quantifiable range",""))) -> 
D49: =IF(OR(ISBLANK(C48),ISBLANK(C49)),"",STDEV(C48,C49)) ->  | E49: =IF(ISTEXT(D49),"",D49/((C48+C49)/2)*100) ->  | G49: =IF(AND(ISBLANK(C48),ISBLANK(C49)),"",IF(OR(ISBLANK(C49),ISBLANK(C48)),AVERAGE(F48:F49),IF(OR(ISTEXT(F48),ISTEXT(F49)),"Invalid",AVERAGE(F48:F49)))) -> 
H50: =IF(AND(ISBLANK(C50),ISBLANK(C51)),"",IF(AVERAGE($C50:$C51)>$D$22,"LESS than Standard 1, outside of quantifiable range",IF(AVERAGE($C50:$C51)<$D$26,"GREATER than Standard 5, outside of quantifiable range",""))) -> 
D51: =IF(OR(ISBLANK(C50),ISBLANK(C51)),"",STDEV(C50,C51)) ->  | E51: =IF(ISTEXT(D51),"",D51/((C50+C51)/2)*100) ->  | G51: =IF(AND(ISBLANK(C50),ISBLANK(C51)),"",IF(OR(ISBLANK(C51),ISBLANK(C50)),AVERAGE(F50:F51),IF(OR(ISTEXT(F50),ISTEXT(F51)),"Invalid",AVERAGE(F50:F51)))) -> 
H52: =IF(AND(ISBLANK(C52),ISBLANK(C53)),"",IF(AVERAGE($C52:$C53)>$D$22,"LESS than Standard 1, outside of quantifiable range",IF(AVERAGE($C52:$C53)<$D$26,"GREATER than Standard 5, outside of quantifiable range",""))) -> 
D53: =IF(OR(ISBLANK(C52),ISBLANK(C53)),"",STDEV(C52,C53)) ->  | E53: =IF(ISTEXT(D53),"",D53/((C52+C53)/2)*100) ->  | G53: =IF(AND(ISBLANK(C52),ISBLANK(C53)),"",IF(OR(ISBLANK(C53),ISBLANK(C52)),AVERAGE(F52:F53),IF(OR(ISTEXT(F52),ISTEXT(F53)),"Invalid",AVERAGE(F52:F53)))) -> 
F54: =IF(ISBLANK(C54),"",IF(C54<=$C$33,"Invalid",IF(C54>=$C$30,"Invalid",$C$32*(($C$30-C54)/(C54-$C$33))^(1/$C$31)))) ->  | H54: =IF(AND(ISBLANK(C54),ISBLANK(C55)),"",IF(AVERAGE($C54:$C55)>$D$22,"LESS than Standard 1, outside of quantifiable range",IF(AVERAGE($C54:$C55)<$D$26,"GREATER than Standard 5, outside of quantifiable range",""))) -> 
D55: =IF(OR(ISBLANK(C54),ISBLANK(C55)),"",STDEV(C54,C55)) ->  | E55: =IF(ISTEXT(D55),"",D55/((C54+C55)/2)*100) ->  | G55: =IF(AND(ISBLANK(C54),ISBLANK(C55)),"",IF(OR(ISBLANK(C55),ISBLANK(C54)),AVERAGE(F54:F55),IF(OR(ISTEXT(F54),ISTEXT(F55)),"Invalid",AVERAGE(F54:F55)))) -> 
H56: =IF(AND(ISBLANK(C56),ISBLANK(C57)),"",IF(AVERAGE($C56:$C57)>$D$22,"LESS than Standard 1, outside of quantifiable range",IF(AVERAGE($C56:$C57)<$D$26,"GREATER than Standard 5, outside of quantifiable range",""))) -> 
D57: =IF(OR(ISBLANK(C56),ISBLANK(C57)),"",STDEV(C56,C57)) ->  | E57: =IF(ISTEXT(D57),"",D57/((C56+C57)/2)*100) ->  | G57: =IF(AND(ISBLANK(C56),ISBLANK(C57)),"",IF(OR(ISBLANK(C57),ISBLANK(C56)),AVERAGE(F56:F57),IF(OR(ISTEXT(F56),ISTEXT(F57)),"Invalid",AVERAGE(F56:F57)))) -> 
F58: =IF(ISBLANK(C58),"",IF(C58<=$C$33,"Invalid",IF(C58>=$C$30,"Invalid",$C$32*(($C$30-C58)/(C58-$C$33))^(1/$C$31)))) ->  | H58: =IF(AND(ISBLANK(C58),ISBLANK(C59)),"",IF(AVERAGE($C58:$C59)>$D$22,"LESS than Standard 1, outside of quantifiable range",IF(AVERAGE($C58:$C59)<$D$26,"GREATER than Standard 5, outside of quantifiable range",""))) -> 
D59: =IF(OR(ISBLANK(C58),ISBLANK(C59)),"",STDEV(C58,C59)) ->  | E59: =IF(ISTEXT(D59),"",D59/((C58+C59)/2)*100) ->  | G59: =IF(AND(ISBLANK(C58),ISBLANK(C59)),"",IF(OR(ISBLANK(C59),ISBLANK(C58)),AVERAGE(F58:F59),IF(OR(ISTEXT(F58),ISTEXT(F59)),"Invalid",AVERAGE(F58:F59)))) -> 
H60: =IF(AND(ISBLANK(C60),ISBLANK(C61)),"",IF(AVERAGE($C60:$C61)>$D$22,"LESS than Standard 1, outside of quantifiable range",IF(AVERAGE($C60:$C61)<$D$26,"GREATER than Standard 5, outside of quantifiable range",""))) -> 
D61: =IF(OR(ISBLANK(C60),ISBLANK(C61)),"",STDEV(C60,C61)) ->  | E61: =IF(ISTEXT(D61),"",D61/((C60+C61)/2)*100) ->  | G61: =IF(AND(ISBLANK(C60),ISBLANK(C61)),"",IF(OR(ISBLANK(C61),ISBLANK(C60)),AVERAGE(F60:F61),IF(OR(ISTEXT(F60),ISTEXT(F61)),"Invalid",AVERAGE(F60:F61)))) -> 
H62: =IF(AND(ISBLANK(C62),ISBLANK(C63)),"",IF(AVERAGE($C62:$C63)>$D$22,"LESS than Standard 1, outside of quantifiable range",IF(AVERAGE($C62:$C63)<$D$26,"GREATER than Standard 5, outside of quantifiable range",""))) -> 
D63: =IF(OR(ISBLANK(C62),ISBLANK(C63)),"",STDEV(C62,C63)) ->  | E63: =IF(ISTEXT(D63),"",D63/((C62+C63)/2)*100) ->  | G63: =IF(AND(ISBLANK(C62),ISBLANK(C63)),"",IF(OR(ISBLANK(C63),ISBLANK(C62)),AVERAGE(F62:F63),IF(OR(ISTEXT(F62),ISTEXT(F63)),"Invalid",AVERAGE(F62:F63)))) -> 
H64: =IF(AND(ISBLANK(C64),ISBLANK(C65)),"",IF(AVERAGE($C64:$C65)>$D$22,"LESS than Standard 1, outside of quantifiable range",IF(AVERAGE($C64:$C65)<$D$26,"GREATER than Standard 5, outside of quantifiable range",""))) -> 
D65: =IF(OR(ISBLANK(C64),ISBLANK(C65)),"",STDEV(C64,C65)) ->  | E65: =IF(ISTEXT(D65),"",D65/((C64+C65)/2)*100) ->  | G65: =IF(AND(ISBLANK(C64),ISBLANK(C65)),"",IF(OR(ISBLANK(C65),ISBLANK(C64)),AVERAGE(F64:F65),IF(OR(ISTEXT(F64),ISTEXT(F65)),"Invalid",AVERAGE(F64:F65)))) -> 
H66: =IF(AND(ISBLANK(C66),ISBLANK(C67)),"",IF(AVERAGE($C66:$C67)>$D$22,"LESS than Standard 1, outside of quantifiable range",IF(AVERAGE($C66:$C67)<$D$26,"GREATER than Standard 5, outside of quantifiable range",""))) -> 
D67: =IF(OR(ISBLANK(C66),ISBLANK(C67)),"",STDEV(C66,C67)) ->  | E67: =IF(ISTEXT(D67),"",D67/((C66+C67)/2)*100) ->  | G67: =IF(AND(ISBLANK(C66),ISBLANK(C67)),"",IF(OR(ISBLANK(C67),ISBLANK(C66)),AVERAGE(F66:F67),IF(OR(ISTEXT(F66),ISTEXT(F67)),"Invalid",AVERAGE(F66:F67)))) -> 
H68: =IF(AND(ISBLANK(C68),ISBLANK(C69)),"",IF(AVERAGE($C68:$C69)>$D$22,"LESS than Standard 1, outside of quantifiable range",IF(AVERAGE($C68:$C69)<$D$26,"GREATER than Standard 5, outside of quantifiable range",""))) -> 
D69: =IF(OR(ISBLANK(C68),ISBLANK(C69)),"",STDEV(C68,C69)) ->  | E69: =IF(ISTEXT(D69),"",D69/((C68+C69)/2)*100) ->  | G69: =IF(AND(ISBLANK(C68),ISBLANK(C69)),"",IF(OR(ISBLANK(C69),ISBLANK(C68)),AVERAGE(F68:F69),IF(OR(ISTEXT(F68),ISTEXT(F69)),"Invalid",AVERAGE(F68:F69)))) -> 
H70: =IF(AND(ISBLANK(C70),ISBLANK(C71)),"",IF(AVERAGE($C70:$C71)>$D$22,"LESS than Standard 1, outside of quantifiable range",IF(AVERAGE($C70:$C71)<$D$26,"GREATER than Standard 5, outside of quantifiable range",""))) -> 
D71: =IF(OR(ISBLANK(C70),ISBLANK(C71)),"",STDEV(C70,C71)) ->  | E71: =IF(ISTEXT(D71),"",D71/((C70+C71)/2)*100) ->  | G71: =IF(AND(ISBLANK(C70),ISBLANK(C71)),"",IF(OR(ISBLANK(C71),ISBLANK(C70)),AVERAGE(F70:F71),IF(OR(ISTEXT(F70),ISTEXT(F71)),"Invalid",AVERAGE(F70:F71)))) -> 
H72: =IF(AND(ISBLANK(C72),ISBLANK(C73)),"",IF(AVERAGE($C72:$C73)>$D$22,"LESS than Standard 1, outside of quantifiable range",IF(AVERAGE($C72:$C73)<$D$26,"GREATER than Standard 5, outside of quantifiable range",""))) -> 
D73: =IF(OR(ISBLANK(C72),ISBLANK(C73)),"",STDEV(C72,C73)) ->  | E73: =IF(ISTEXT(D73),"",D73/((C72+C73)/2)*100) ->  | F73: =IF(ISBLANK(C73),"",IF(C73<=$C$33,"invalid",IF(C73>=$C$30,"invalid",$C$32*(($C$30-C73)/(C73-$C$33))^(1/$C$31)))) ->  | G73: =IF(AND(ISBLANK(C72),ISBLANK(C73)),"",IF(OR(ISBLANK(C73),ISBLANK(C72)),AVERAGE(F72:F73),IF(OR(ISTEXT(F72),ISTEXT(F73)),"Invalid",AVERAGE(F72:F73)))) -> 
F74: =IF(ISBLANK(C74),"",IF(C74<=$C$33,"Invalid",IF(C74>=$C$30,"Invalid",$C$32*(($C$30-C74)/(C74-$C$33))^(1/$C$31)))) ->  | H74: =IF(AND(ISBLANK(C74),ISBLANK(C75)),"",IF(AVERAGE($C74:$C75)>$D$22,"LESS than Standard 1, outside of quantifiable range",IF(AVERAGE($C74:$C75)<$D$26,"GREATER than Standard 5, outside of quantifiable range",""))) -> 
D75: =IF(OR(ISBLANK(C74),ISBLANK(C75)),"",STDEV(C74,C75)) ->  | E75: =IF(ISTEXT(D75),"",D75/((C74+C75)/2)*100) ->  | G75: =IF(AND(ISBLANK(C74),ISBLANK(C75)),"",IF(OR(ISBLANK(C75),ISBLANK(C74)),AVERAGE(F74:F75),IF(OR(ISTEXT(F74),ISTEXT(F75)),"Invalid",AVERAGE(F74:F75)))) -> 
H76: =IF(AND(ISBLANK(C76),ISBLANK(C77)),"",IF(AVERAGE($C76:$C77)>$D$22,"LESS than Standard 1, outside of quantifiable range",IF(AVERAGE($C76:$C77)<$D$26,"GREATER than Standard 5, outside of quantifiable range",""))) -> 
D77: =IF(OR(ISBLANK(C76),ISBLANK(C77)),"",STDEV(C76,C77)) ->  | E77: =IF(ISTEXT(D77),"",D77/((C76+C77)/2)*100) ->  | G77: =IF(AND(ISBLANK(C76),ISBLANK(C77)),"",IF(OR(ISBLANK(C77),ISBLANK(C76)),AVERAGE(F76:F77),IF(OR(ISTEXT(F76),ISTEXT(F77)),"Invalid",AVERAGE(F76:F77)))) -> 
F78: =IF(ISBLANK(C78),"",IF(C78<=$C$33,"Invalid",IF(C78>=$C$30,"Invalid",$C$32*(($C$30-C78)/(C78-$C$33))^(1/$C$31)))) ->  | H78: =IF(AND(ISBLANK(C78),ISBLANK(C79)),"",IF(AVERAGE($C78:$C79)>$D$22,"LESS than Standard 1, outside of quantifiable range",IF(AVERAGE($C78:$C79)<$D$26,"GREATER than Standard 5, outside of quantifiable range",""))) -> 
D79: =IF(OR(ISBLANK(C78),ISBLANK(C79)),"",STDEV(C78,C79)) ->  | E79: =IF(ISTEXT(D79),"",D79/((C78+C79)/2)*100) ->  | F79: =IF(ISBLANK(C79),"",IF(C79<=$C$33,"Invalid",IF(C79>=$C$30,"Invalid",$C$32*(($C$30-C79)/(C79-$C$33))^(1/$C$31)))) ->  | G79: =IF(AND(ISBLANK(C78),ISBLANK(C79)),"",IF(OR(ISBLANK(C79),ISBLANK(C78)),AVERAGE(F78:F79),IF(OR(ISTEXT(F78),ISTEXT(F79)),"Invalid",AVERAGE(F78:F79)))) -> 
H80: =IF(AND(ISBLANK(C80),ISBLANK(C81)),"",IF(AVERAGE($C80:$C81)>$D$22,"LESS than Standard 1, outside of quantifiable range",IF(AVERAGE($C80:$C81)<$D$26,"GREATER than Standard 5, outside of quantifiable range",""))) -> 
D81: =IF(OR(ISBLANK(C80),ISBLANK(C81)),"",STDEV(C80,C81)) ->  | E81: =IF(ISTEXT(D81),"",D81/((C80+C81)/2)*100) ->  | G81: =IF(AND(ISBLANK(C80),ISBLANK(C81)),"",IF(OR(ISBLANK(C81),ISBLANK(C80)),AVERAGE(F80:F81),IF(OR(ISTEXT(F80),ISTEXT(F81)),"Invalid",AVERAGE(F80:F81)))) -> 
F82: =IF(ISBLANK(C82),"",IF(C82<=$C$33,"Invalid",IF(C82>=$C$30,"Invalid",$C$32*(($C$30-C82)/(C82-$C$33))^(1/$C$31)))) ->  | H82: =IF(AND(ISBLANK(C82),ISBLANK(C83)),"",IF(AVERAGE($C82:$C83)>$D$22,"LESS than Standard 1, outside of quantifiable range",IF(AVERAGE($C82:$C83)<$D$26,"GREATER than Standard 5, outside of quantifiable range",""))) -> 
D83: =IF(OR(ISBLANK(C82),ISBLANK(C83)),"",STDEV(C82,C83)) ->  | E83: =IF(ISTEXT(D83),"",D83/((C82+C83)/2)*100) ->  | F83: =IF(ISBLANK(C83),"",IF(C83<=$C$33,"Invalid",IF(C83>=$C$30,"Invalid",$C$32*(($C$30-C83)/(C83-$C$33))^(1/$C$31)))) ->  | G83: =IF(AND(ISBLANK(C82),ISBLANK(C83)),"",IF(OR(ISBLANK(C83),ISBLANK(C82)),AVERAGE(F82:F83),IF(OR(ISTEXT(F82),ISTEXT(F83)),"Invalid",AVERAGE(F82:F83)))) -> 
H84: =IF(AND(ISBLANK(C84),ISBLANK(C85)),"",IF(AVERAGE($C84:$C85)>$D$22,"LESS than Standard 1, outside of quantifiable range",IF(AVERAGE($C84:$C85)<$D$26,"GREATER than Standard 5, outside of quantifiable range",""))) -> 
D85: =IF(OR(ISBLANK(C84),ISBLANK(C85)),"",STDEV(C84,C85)) ->  | E85: =IF(ISTEXT(D85),"",D85/((C84+C85)/2)*100) ->  | G85: =IF(AND(ISBLANK(C84),ISBLANK(C85)),"",IF(OR(ISBLANK(C85),ISBLANK(C84)),AVERAGE(F84:F85),IF(OR(ISTEXT(F84),ISTEXT(F85)),"Invalid",AVERAGE(F84:F85)))) -> 
H86: =IF(AND(ISBLANK(C86),ISBLANK(C87)),"",IF(AVERAGE($C86:$C87)>$D$22,"LESS than Standard 1, outside of quantifiable range",IF(AVERAGE($C86:$C87)<$D$26,"GREATER than Standard 5, outside of quantifiable range",""))) -> 
D87: =IF(OR(ISBLANK(C86),ISBLANK(C87)),"",STDEV(C86,C87)) ->  | E87: =IF(ISTEXT(D87),"",D87/((C86+C87)/2)*100) ->  | G87: =IF(AND(ISBLANK(C86),ISBLANK(C87)),"",IF(OR(ISBLANK(C87),ISBLANK(C86)),AVERAGE(F86:F87),IF(OR(ISTEXT(F86),ISTEXT(F87)),"Invalid",AVERAGE(F86:F87)))) -> 
H88: =IF(AND(ISBLANK(C88),ISBLANK(C89)),"",IF(AVERAGE($C88:$C89)>$D$22,"LESS than Standard 1, outside of quantifiable range",IF(AVERAGE($C88:$C89)<$D$26,"GREATER than Standard 5, outside of quantifiable range",""))) -> 
D89: =IF(OR(ISBLANK(C88),ISBLANK(C89)),"",STDEV(C88,C89)) ->  | E89: =IF(ISTEXT(D89),"",D89/((C88+C89)/2)*100) ->  | G89: =IF(AND(ISBLANK(C88),ISBLANK(C89)),"",IF(OR(ISBLANK(C89),ISBLANK(C88)),AVERAGE(F88:F89),IF(OR(ISTEXT(F88),ISTEXT(F89)),"Invalid",AVERAGE(F88:F89)))) -> 
H90: =IF(AND(ISBLANK(C90),ISBLANK(C91)),"",IF(AVERAGE($C90:$C91)>$D$22,"LESS than Standard 1, outside of quantifiable range",IF(AVERAGE($C90:$C91)<$D$26,"GREATER than Standard 5, outside of quantifiable range",""))) -> 
D91: =IF(OR(ISBLANK(C90),ISBLANK(C91)),"",STDEV(C90,C91)) ->  | E91: =IF(ISTEXT(D91),"",D91/((C90+C91)/2)*100) ->  | G91: =IF(AND(ISBLANK(C90),ISBLANK(C91)),"",IF(OR(ISBLANK(C91),ISBLANK(C90)),AVERAGE(F90:F91),IF(OR(ISTEXT(F90),ISTEXT(F91)),"Invalid",AVERAGE(F90:F91)))) -> 
H92: =IF(AND(ISBLANK(C92),ISBLANK(C93)),"",IF(AVERAGE($C92:$C93)>$D$22,"LESS than Standard 1, outside of quantifiable range",IF(AVERAGE($C92:$C93)<$D$26,"GREATER than Standard 5, outside of quantifiable range",""))) -> 
D93: =IF(OR(ISBLANK(C92),ISBLANK(C93)),"",STDEV(C92,C93)) ->  | E93: =IF(ISTEXT(D93),"",D93/((C92+C93)/2)*100) ->  | G93: =IF(AND(ISBLANK(C92),ISBLANK(C93)),"",IF(OR(ISBLANK(C93),ISBLANK(C92)),AVERAGE(F92:F93),IF(OR(ISTEXT(F92),ISTEXT(F93)),"Invalid",AVERAGE(F92:F93)))) -> 
H94: =IF(AND(ISBLANK(C94),ISBLANK(C95)),"",IF(AVERAGE($C94:$C95)>$D$22,"LESS than Standard 1, outside of quantifiable range",IF(AVERAGE($C94:$C95)<$D$26,"GREATER than Standard 5, outside of quantifiable range",""))) -> 
D95: =IF(OR(ISBLANK(C94),ISBLANK(C95)),"",STDEV(C94,C95)) ->  | E95: =IF(ISTEXT(D95),"",D95/((C94+C95)/2)*100) ->  | G95: =IF(AND(ISBLANK(C94),ISBLANK(C95)),"",IF(OR(ISBLANK(C95),ISBLANK(C94)),AVERAGE(F94:F95),IF(OR(ISTEXT(F94),ISTEXT(F95)),"Invalid",AVERAGE(F94:F95)))) -> 
H96: =IF(AND(ISBLANK(C96),ISBLANK(C97)),"",IF(AVERAGE($C96:$C97)>$D$22,"LESS than Standard 1, outside of quantifiable range",IF(AVERAGE($C96:$C97)<$D$26,"GREATER than Standard 5, outside of quantifiable range",""))) -> 
D97: =IF(OR(ISBLANK(C96),ISBLANK(C97)),"",STDEV(C96,C97)) ->  | E97: =IF(ISTEXT(D97),"",D97/((C96+C97)/2)*100) ->  | F97: =IF(ISBLANK(C97),"",IF(C97<=$C$33,"invalid",IF(C97>=$C$30,"invalid",$C$32*(($C$30-C97)/(C97-$C$33))^(1/$C$31)))) ->  | G97: =IF(AND(ISBLANK(C96),ISBLANK(C97)),"",IF(OR(ISBLANK(C97),ISBLANK(C96)),AVERAGE(F96:F97),IF(OR(ISTEXT(F96),ISTEXT(F97)),"Invalid",AVERAGE(F96:F97)))) -> 
F98: =IF(ISBLANK(C98),"",IF(C98<=$C$33,"Invalid",IF(C98>=$C$30,"Invalid",$C$32*(($C$30-C98)/(C98-$C$33))^(1/$C$31)))) ->  | H98: =IF(AND(ISBLANK(C98),ISBLANK(C99)),"",IF(AVERAGE($C98:$C99)>$D$22,"LESS than Standard 1, outside of quantifiable range",IF(AVERAGE($C98:$C99)<$D$26,"GREATER than Standard 5, outside of quantifiable range",""))) -> 
D99: =IF(OR(ISBLANK(C98),ISBLANK(C99)),"",STDEV(C98,C99)) ->  | E99: =IF(ISTEXT(D99),"",D99/((C98+C99)/2)*100) ->  | G99: =IF(AND(ISBLANK(C98),ISBLANK(C99)),"",IF(OR(ISBLANK(C99),ISBLANK(C98)),AVERAGE(F98:F99),IF(OR(ISTEXT(F98),ISTEXT(F99)),"Invalid",AVERAGE(F98:F99)))) -> 
H100: =IF(AND(ISBLANK(C100),ISBLANK(C101)),"",IF(AVERAGE($C100:$C101)>$D$22,"LESS than Standard 1, outside of quantifiable range",IF(AVERAGE($C100:$C101)<$D$26,"GREATER than Standard 5, outside of quantifiable range",""))) -> 
D101: =IF(OR(ISBLANK(C100),ISBLANK(C101)),"",STDEV(C100,C101)) ->  | E101: =IF(ISTEXT(D101),"",D101/((C100+C101)/2)*100) ->  | G101: =IF(AND(ISBLANK(C100),ISBLANK(C101)),"",IF(OR(ISBLANK(C101),ISBLANK(C100)),AVERAGE(F100:F101),IF(OR(ISTEXT(F100),ISTEXT(F101)),"Invalid",AVERAGE(F100:F101)))) -> 
F102: =IF(ISBLANK(C102),"",IF(C102<=$C$33,"Invalid",IF(C102>=$C$30,"Invalid",$C$32*(($C$30-C102)/(C102-$C$33))^(1/$C$31)))) ->  | H102: =IF(AND(ISBLANK(C102),ISBLANK(C103)),"",IF(AVERAGE($C102:$C103)>$D$22,"LESS than Standard 1, outside of quantifiable range",IF(AVERAGE($C102:$C103)<$D$26,"GREATER than Standard 5, outside of quantifiable range",""))) -> 
D103: =IF(OR(ISBLANK(C102),ISBLANK(C103)),"",STDEV(C102,C103)) ->  | E103: =IF(ISTEXT(D103),"",D103/((C102+C103)/2)*100) ->  | F103: =IF(ISBLANK(C103),"",IF(C103<=$C$33,"Invalid",IF(C103>=$C$30,"Invalid",$C$32*(($C$30-C103)/(C103-$C$33))^(1/$C$31)))) ->  | G103: =IF(AND(ISBLANK(C102),ISBLANK(C103)),"",IF(OR(ISBLANK(C103),ISBLANK(C102)),AVERAGE(F102:F103),IF(OR(ISTEXT(F102),ISTEXT(F103)),"Invalid",AVERAGE(F102:F103)))) -> 
H104: =IF(AND(ISBLANK(C104),ISBLANK(C105)),"",IF(AVERAGE($C104:$C105)>$D$22,"LESS than Standard 1, outside of quantifiable range",IF(AVERAGE($C104:$C105)<$D$26,"GREATER than Standard 5, outside of quantifiable range",""))) -> 
D105: =IF(OR(ISBLANK(C104),ISBLANK(C105)),"",STDEV(C104,C105)) ->  | E105: =IF(ISTEXT(D105),"",D105/((C104+C105)/2)*100) ->  | G105: =IF(AND(ISBLANK(C104),ISBLANK(C105)),"",IF(OR(ISBLANK(C105),ISBLANK(C104)),AVERAGE(F104:F105),IF(OR(ISTEXT(F104),ISTEXT(F105)),"Invalid",AVERAGE(F104:F105)))) -> 
F106: =IF(ISBLANK(C106),"",IF(C106<=$C$33,"Invalid",IF(C106>=$C$30,"Invalid",$C$32*(($C$30-C106)/(C106-$C$33))^(1/$C$31)))) ->  | H106: =IF(AND(ISBLANK(C106),ISBLANK(C107)),"",IF(AVERAGE($C106:$C107)>$D$22,"LESS than Standard 1, outside of quantifiable range",IF(AVERAGE($C106:$C107)<$D$26,"GREATER than Standard 5, outside of quantifiable range",""))) -> 
D107: =IF(OR(ISBLANK(C106),ISBLANK(C107)),"",STDEV(C106,C107)) ->  | E107: =IF(ISTEXT(D107),"",D107/((C106+C107)/2)*100) ->  | F107: =IF(ISBLANK(C107),"",IF(C107<=$C$33,"Invalid",IF(C107>=$C$30,"Invalid",$C$32*(($C$30-C107)/(C107-$C$33))^(1/$C$31)))) ->  | G107: =IF(AND(ISBLANK(C106),ISBLANK(C107)),"",IF(OR(ISBLANK(C107),ISBLANK(C106)),AVERAGE(F106:F107),IF(OR(ISTEXT(F106),ISTEXT(F107)),"Invalid",AVERAGE(F106:F107)))) -> 
H108: =IF(AND(ISBLANK(C108),ISBLANK(C109)),"",IF(AVERAGE($C108:$C109)>$D$22,"LESS than Standard 1, outside of quantifiable range",IF(AVERAGE($C108:$C109)<$D$26,"GREATER than Standard 5, outside of quantifiable range",""))) -> 
D109: =IF(OR(ISBLANK(C108),ISBLANK(C109)),"",STDEV(C108,C109)) ->  | E109: =IF(ISTEXT(D109),"",D109/((C108+C109)/2)*100) ->  | G109: =IF(AND(ISBLANK(C108),ISBLANK(C109)),"",IF(OR(ISBLANK(C109),ISBLANK(C108)),AVERAGE(F108:F109),IF(OR(ISTEXT(F108),ISTEXT(F109)),"Invalid",AVERAGE(F108:F109)))) -> 
H110: =IF(AND(ISBLANK(C110),ISBLANK(C111)),"",IF(AVERAGE($C110:$C111)>$D$22,"LESS than Standard 1, outside of quantifiable range",IF(AVERAGE($C110:$C111)<$D$26,"GREATER than Standard 5, outside of quantifiable range",""))) -> 
D111: =IF(OR(ISBLANK(C110),ISBLANK(C111)),"",STDEV(C110,C111)) ->  | E111: =IF(ISTEXT(D111),"",D111/((C110+C111)/2)*100) ->  | G111: =IF(AND(ISBLANK(C110),ISBLANK(C111)),"",IF(OR(ISBLANK(C111),ISBLANK(C110)),AVERAGE(F110:F111),IF(OR(ISTEXT(F110),ISTEXT(F111)),"Invalid",AVERAGE(F110:F111)))) -> 
H112: =IF(AND(ISBLANK(C112),ISBLANK(C113)),"",IF(AVERAGE($C112:$C113)>$D$22,"LESS than Standard 1, outside of quantifiable range",IF(AVERAGE($C112:$C113)<$D$26,"GREATER than Standard 5, outside of quantifiable range",""))) -> 
D113: =IF(OR(ISBLANK(C112),ISBLANK(C113)),"",STDEV(C112,C113)) ->  | E113: =IF(ISTEXT(D113),"",D113/((C112+C113)/2)*100) ->  | G113: =IF(AND(ISBLANK(C112),ISBLANK(C113)),"",IF(OR(ISBLANK(C113),ISBLANK(C112)),AVERAGE(F112:F113),IF(OR(ISTEXT(F112),ISTEXT(F113)),"Invalid",AVERAGE(F112:F113)))) -> 
H114: =IF(AND(ISBLANK(C114),ISBLANK(C115)),"",IF(AVERAGE($C114:$C115)>$D$22,"LESS than Standard 1, outside of quantifiable range",IF(AVERAGE($C114:$C115)<$D$26,"GREATER than Standard 5, outside of quantifiable range",""))) -> 
D115: =IF(OR(ISBLANK(C114),ISBLANK(C115)),"",STDEV(C114,C115)) ->  | E115: =IF(ISTEXT(D115),"",D115/((C114+C115)/2)*100) ->  | G115: =IF(AND(ISBLANK(C114),ISBLANK(C115)),"",IF(OR(ISBLANK(C115),ISBLANK(C114)),AVERAGE(F114:F115),IF(OR(ISTEXT(F114),ISTEXT(F115)),"Invalid",AVERAGE(F114:F115)))) -> 
H116: =IF(AND(ISBLANK(C116),ISBLANK(C117)),"",IF(AVERAGE($C116:$C117)>$D$22,"LESS than Standard 1, outside of quantifiable range",IF(AVERAGE($C116:$C117)<$D$26,"GREATER than Standard 5, outside of quantifiable range",""))) -> 
D117: =IF(OR(ISBLANK(C116),ISBLANK(C117)),"",STDEV(C116,C117)) ->  | E117: =IF(ISTEXT(D117),"",D117/((C116+C117)/2)*100) ->  | G117: =IF(AND(ISBLANK(C116),ISBLANK(C117)),"",IF(OR(ISBLANK(C117),ISBLANK(C116)),AVERAGE(F116:F117),IF(OR(ISTEXT(F116),ISTEXT(F117)),"Invalid",AVERAGE(F116:F117)))) -> 
H118: =IF(AND(ISBLANK(C118),ISBLANK(C119)),"",IF(AVERAGE($C118:$C119)>$D$22,"LESS than Standard 1, outside of quantifiable range",IF(AVERAGE($C118:$C119)<$D$26,"GREATER than Standard 5, outside of quantifiable range",""))) -> 
D119: =IF(OR(ISBLANK(C118),ISBLANK(C119)),"",STDEV(C118,C119)) ->  | E119: =IF(ISTEXT(D119),"",D119/((C118+C119)/2)*100) ->  | G119: =IF(AND(ISBLANK(C118),ISBLANK(C119)),"",IF(OR(ISBLANK(C119),ISBLANK(C118)),AVERAGE(F118:F119),IF(OR(ISTEXT(F118),ISTEXT(F119)),"Invalid",AVERAGE(F118:F119)))) -> 
H120: =IF(AND(ISBLANK(C120),ISBLANK(C121)),"",IF(AVERAGE($C120:$C121)>$D$22,"LESS than Standard 1, outside of quantifiable range",IF(AVERAGE($C120:$C121)<$D$26,"GREATER than Standard 5, outside of quantifiable range",""))) -> 
D121: =IF(OR(ISBLANK(C120),ISBLANK(C121)),"",STDEV(C120,C121)) ->  | E121: =IF(ISTEXT(D121),"",D121/((C120+C121)/2)*100) ->  | F121: =IF(ISBLANK(C121),"",IF(C121<=$C$33,"invalid",IF(C121>=$C$30,"invalid",$C$32*(($C$30-C121)/(C121-$C$33))^(1/$C$31)))) ->  | G121: =IF(AND(ISBLANK(C120),ISBLANK(C121)),"",IF(OR(ISBLANK(C121),ISBLANK(C120)),AVERAGE(F120:F121),IF(OR(ISTEXT(F120),ISTEXT(F121)),"Invalid",AVERAGE(F120:F121)))) -> 
F122: =IF(ISBLANK(C122),"",IF(C122<=$C$33,"Invalid",IF(C122>=$C$30,"Invalid",$C$32*(($C$30-C122)/(C122-$C$33))^(1/$C$31)))) ->  | H122: =IF(AND(ISBLANK(C122),ISBLANK(C123)),"",IF(AVERAGE($C122:$C123)>$D$22,"LESS than Standard 1, outside of quantifiable range",IF(AVERAGE($C122:$C123)<$D$26,"GREATER than Standard 5, outside of quantifiable range",""))) -> 
D123: =IF(OR(ISBLANK(C122),ISBLANK(C123)),"",STDEV(C122,C123)) ->  | E123: =IF(ISTEXT(D123),"",D123/((C122+C123)/2)*100) ->  | G123: =IF(AND(ISBLANK(C122),ISBLANK(C123)),"",IF(OR(ISBLANK(C123),ISBLANK(C122)),AVERAGE(F122:F123),IF(OR(ISTEXT(F122),ISTEXT(F123)),"Invalid",AVERAGE(F122:F123)))) -> 
H124: =IF(AND(ISBLANK(C124),ISBLANK(C125)),"",IF(AVERAGE($C124:$C125)>$D$22,"LESS than Standard 1, outside of quantifiable range",IF(AVERAGE($C124:$C125)<$D$26,"GREATER than Standard 5, outside of quantifiable range",""))) -> 
D125: =IF(OR(ISBLANK(C124),ISBLANK(C125)),"",STDEV(C124,C125)) ->  | E125: =IF(ISTEXT(D125),"",D125/((C124+C125)/2)*100) ->  | G125: =IF(AND(ISBLANK(C124),ISBLANK(C125)),"",IF(OR(ISBLANK(C125),ISBLANK(C124)),AVERAGE(F124:F125),IF(OR(ISTEXT(F124),ISTEXT(F125)),"Invalid",AVERAGE(F124:F125)))) -> 
F126: =IF(ISBLANK(C126),"",IF(C126<=$C$33,"Invalid",IF(C126>=$C$30,"Invalid",$C$32*(($C$30-C126)/(C126-$C$33))^(1/$C$31)))) ->  | H126: =IF(AND(ISBLANK(C126),ISBLANK(C127)),"",IF(AVERAGE($C126:$C127)>$D$22,"LESS than Standard 1, outside of quantifiable range",IF(AVERAGE($C126:$C127)<$D$26,"GREATER than Standard 5, outside of quantifiable range",""))) -> 
D127: =IF(OR(ISBLANK(C126),ISBLANK(C127)),"",STDEV(C126,C127)) ->  | E127: =IF(ISTEXT(D127),"",D127/((C126+C127)/2)*100) ->  | F127: =IF(ISBLANK(C127),"",IF(C127<=$C$33,"Invalid",IF(C127>=$C$30,"Invalid",$C$32*(($C$30-C127)/(C127-$C$33))^(1/$C$31)))) ->  | G127: =IF(AND(ISBLANK(C126),ISBLANK(C127)),"",IF(OR(ISBLANK(C127),ISBLANK(C126)),AVERAGE(F126:F127),IF(OR(ISTEXT(F126),ISTEXT(F127)),"Invalid",AVERAGE(F126:F127)))) -> 
H128: =IF(AND(ISBLANK(C128),ISBLANK(C129)),"",IF(AVERAGE($C128:$C129)>$D$22,"LESS than Standard 1, outside of quantifiable range",IF(AVERAGE($C128:$C129)<$D$26,"GREATER than Standard 5, outside of quantifiable range",""))) -> 
D129: =IF(OR(ISBLANK(C128),ISBLANK(C129)),"",STDEV(C128,C129)) ->  | E129: =IF(ISTEXT(D129),"",D129/((C128+C129)/2)*100) ->  | G129: =IF(AND(ISBLANK(C128),ISBLANK(C129)),"",IF(OR(ISBLANK(C129),ISBLANK(C128)),AVERAGE(F128:F129),IF(OR(ISTEXT(F128),ISTEXT(F129)),"Invalid",AVERAGE(F128:F129)))) -> 
F130: =IF(ISBLANK(C130),"",IF(C130<=$C$33,"Invalid",IF(C130>=$C$30,"Invalid",$C$32*(($C$30-C130)/(C130-$C$33))^(1/$C$31)))) ->  | H130: =IF(AND(ISBLANK(C130),ISBLANK(C131)),"",IF(AVERAGE($C130:$C131)>$D$22,"LESS than Standard 1, outside of quantifiable range",IF(AVERAGE($C130:$C131)<$D$26,"GREATER than Standard 5, outside of quantifiable range",""))) -> 
D131: =IF(OR(ISBLANK(C130),ISBLANK(C131)),"",STDEV(C130,C131)) ->  | E131: =IF(ISTEXT(D131),"",D131/((C130+C131)/2)*100) ->  | F131: =IF(ISBLANK(C131),"",IF(C131<=$C$33,"Invalid",IF(C131>=$C$30,"Invalid",$C$32*(($C$30-C131)/(C131-$C$33))^(1/$C$31)))) ->  | G131: =IF(AND(ISBLANK(C130),ISBLANK(C131)),"",IF(OR(ISBLANK(C131),ISBLANK(C130)),AVERAGE(F130:F131),IF(OR(ISTEXT(F130),ISTEXT(F131)),"Invalid",AVERAGE(F130:F131)))) -> 
H132: =IF(AND(ISBLANK(C132),ISBLANK(C133)),"",IF(AVERAGE($C132:$C133)>$D$22,"LESS than Standard 1, outside of quantifiable range",IF(AVERAGE($C132:$C133)<$D$26,"GREATER than Standard 5, outside of quantifiable range",""))) -> 
D133: =IF(OR(ISBLANK(C132),ISBLANK(C133)),"",STDEV(C132,C133)) ->  | E133: =IF(ISTEXT(D133),"",D133/((C132+C133)/2)*100) ->  | G133: =IF(AND(ISBLANK(C132),ISBLANK(C133)),"",IF(OR(ISBLANK(C133),ISBLANK(C132)),AVERAGE(F132:F133),IF(OR(ISTEXT(F132),ISTEXT(F133)),"Invalid",AVERAGE(F132:F133)))) -> 
H134: =IF(AND(ISBLANK(C134),ISBLANK(C135)),"",IF(AVERAGE($C134:$C135)>$D$22,"LESS than Standard 1, outside of quantifiable range",IF(AVERAGE($C134:$C135)<$D$26,"GREATER than Standard 5, outside of quantifiable range",""))) -> 
D135: =IF(OR(ISBLANK(C134),ISBLANK(C135)),"",STDEV(C134,C135)) ->  | E135: =IF(ISTEXT(D135),"",D135/((C134+C135)/2)*100) ->  | G135: =IF(AND(ISBLANK(C134),ISBLANK(C135)),"",IF(OR(ISBLANK(C135),ISBLANK(C134)),AVERAGE(F134:F135),IF(OR(ISTEXT(F134),ISTEXT(F135)),"Invalid",AVERAGE(F134:F135)))) -> 
H136: =IF(AND(ISBLANK(C136),ISBLANK(C137)),"",IF(AVERAGE($C136:$C137)>$D$22,"LESS than Standard 1, outside of quantifiable range",IF(AVERAGE($C136:$C137)<$D$26,"GREATER than Standard 5, outside of quantifiable range",""))) -> 
D137: =IF(OR(ISBLANK(C136),ISBLANK(C137)),"",STDEV(C136,C137)) ->  | E137: =IF(ISTEXT(D137),"",D137/((C136+C137)/2)*100) ->  | G137: =IF(AND(ISBLANK(C136),ISBLANK(C137)),"",IF(OR(ISBLANK(C137),ISBLANK(C136)),AVERAGE(F136:F137),IF(OR(ISTEXT(F136),ISTEXT(F137)),"Invalid",AVERAGE(F136:F137)))) -> 
H138: =IF(AND(ISBLANK(C138),ISBLANK(C139)),"",IF(AVERAGE($C138:$C139)>$D$22,"LESS than Standard 1, outside of quantifiable range",IF(AVERAGE($C138:$C139)<$D$26,"GREATER than Standard 5, outside of quantifiable range",""))) -> 
D139: =IF(OR(ISBLANK(C138),ISBLANK(C139)),"",STDEV(C138,C139)) ->  | E139: =IF(ISTEXT(D139),"",D139/((C138+C139)/2)*100) ->  | G139: =IF(AND(ISBLANK(C138),ISBLANK(C139)),"",IF(OR(ISBLANK(C139),ISBLANK(C138)),AVERAGE(F138:F139),IF(OR(ISTEXT(F138),ISTEXT(F139)),"Invalid",AVERAGE(F138:F139)))) -> 
H140: =IF(AND(ISBLANK(C140),ISBLANK(C141)),"",IF(AVERAGE($C140:$C141)>$D$22,"LESS than Standard 1, outside of quantifiable range",IF(AVERAGE($C140:$C141)<$D$26,"GREATER than Standard 5, outside of quantifiable range",""))) -> 
D141: =IF(OR(ISBLANK(C140),ISBLANK(C141)),"",STDEV(C140,C141)) ->  | E141: =IF(ISTEXT(D141),"",D141/((C140+C141)/2)*100) ->  | G141: =IF(AND(ISBLANK(C140),ISBLANK(C141)),"",IF(OR(ISBLANK(C141),ISBLANK(C140)),AVERAGE(F140:F141),IF(OR(ISTEXT(F140),ISTEXT(F141)),"Invalid",AVERAGE(F140:F141)))) -> 
H142: =IF(AND(ISBLANK(C142),ISBLANK(C143)),"",IF(AVERAGE($C142:$C143)>$D$22,"LESS than Standard 1, outside of quantifiable range",IF(AVERAGE($C142:$C143)<$D$26,"GREATER than Standard 5, outside of quantifiable range",""))) -> 
D143: =IF(OR(ISBLANK(C142),ISBLANK(C143)),"",STDEV(C142,C143)) ->  | E143: =IF(ISTEXT(D143),"",D143/((C142+C143)/2)*100) ->  | G143: =IF(AND(ISBLANK(C142),ISBLANK(C143)),"",IF(OR(ISBLANK(C143),ISBLANK(C142)),AVERAGE(F142:F143),IF(OR(ISTEXT(F142),ISTEXT(F143)),"Invalid",AVERAGE(F142:F143)))) -> 
H144: =IF(AND(ISBLANK(C144),ISBLANK(C145)),"",IF(AVERAGE($C144:$C145)>$D$22,"LESS than Standard 1, outside of quantifiable range",IF(AVERAGE($C144:$C145)<$D$26,"GREATER than Standard 5, outside of quantifiable range",""))) -> 
D145: =IF(OR(ISBLANK(C144),ISBLANK(C145)),"",STDEV(C144,C145)) ->  | E145: =IF(ISTEXT(D145),"",D145/((C144+C145)/2)*100) ->  | F145: =IF(ISBLANK(C145),"",IF(C145<=$C$33,"invalid",IF(C145>=$C$30,"invalid",$C$32*(($C$30-C145)/(C145-$C$33))^(1/$C$31)))) ->  | G145: =IF(AND(ISBLANK(C144),ISBLANK(C145)),"",IF(OR(ISBLANK(C145),ISBLANK(C144)),AVERAGE(F144:F145),IF(OR(ISTEXT(F144),ISTEXT(F145)),"Invalid",AVERAGE(F144:F145)))) -> 

Sheet 7 Standards
B2: ** USER MUST ONLY INPUT VALUES IN GREY-COLORED CELLS ** | G2: Kit Lot # | P2: Before you start:
B4: Enter the absorbance values of each standard into the grey boxes | P4: Check that "solver" is installed
B5: Std 0 | C5: Std 1 | D5: Std 2 | E5: Std 3 | F5: Std 4 | G5: Std 5 | H5: Std 6
B6: 1.407 | C6: 1.2 | D6: 1.124 | E6: 0.779 | F6: 0.582 | G6: 0.388 | H6: 0.387 | M6: 0.059 | P6: Input OD values for standards (Fig 4 in protocol)
B7: 1.344 | C7: 1.26 | D7: 1.141 | E7: 0.837 | F7: 0.553 | G7: 0.522 | H7: 0.354 | M7: 0.061 | P7: Select solver (Target Cell: $e$32 - Cell Changes: $c$35:$c$38 - Optimize: Minimize - GRG Nonlinear )
P8: "Solve"
P9: Check graph and parametres (A>0.7; D<0.1;
P12: Calculate MC TADDA-concentration in samples in wells:
P13: Input average OD of unknown samples in cell c48 (sample 1) , c49 (sample 2)….
P14: Calculated ELISA MCTADDA concentration are given automatically in cell d48 (sample 1), c49 (sample 2),….
P15: Sample concentrations should only be used from datapoints that are within the valid working range of the standard curve
P17: If OD is outsite the Ic20 to Ic80 range, dilution sholud be adjusted and the samples assayed again
B19: Enter the standard concentrations of each standard into the grey boxes
B20: Standards (ng/ml) | C20: OD (averaged) | D20: Predicted values | E20: Residual Squares | F20: B/Bo | G20: Std Dev | H20: %CV
B21: 0 | C21: =(B6+B7)/2 -> 1.3755 | D21: =($C$31-$C$34)/(1+(B21/$C$33)^$C$32)+$C$34 -> 1.367324318 | E21: =(C21-D21)^2 -> 6.684177894e-05 | G21: =STDEV(B6,B7) -> 0.04454772721 | H21: =(G21/C21)*100 -> 3.238657013
B22: 0.05 | C22: =(C6+C7)/2 -> 1.23 | D22: 1.253733904 | E22: 0.0005632982081 | F22: =C22/C$21 -> 0.8942202835 | G22: =STDEV(C6,C7) -> 0.04242640687 | H22: 3.449301372 | Q22: OD | R22: MCTADDA-conc | S22: X=C x ((A-Y)/(Y-D))^(1/B)
B23: 0.1 | C23: =(D6+D7)/2 -> 1.1325 | D23: 1.112937293 | E23: 0.0003826995132 | F23: 0.8233369684 | G23: =STDEV(D6,D7) -> 0.01202081528 | H23: 1.061440643 | P23: Ic20 | Q23: =$C$34+($C$31-$C$34)*20/100 -> 0.5360645589 | R23: =C33*((C31-Q23)/(Q23-C34))^(1/C32) -> 0.6008472929
B24: 0.25 | C24: =(E6+E7)/2 -> 0.808 | D24: 0.8069460488 | E24: 1.110813158e-06 | F24: 0.5874227554 | G24: =STDEV(E6,E7) -> 0.04101219331 | H24: 5.075766499 | P24: Ic80 | Q24: =$C$34+($C$31-$C$34)*80/100 -> 1.159509378 | R24: =C33*((C31-Q24)/(Q24-C34))^(1/C32) -> 0.08307308674
B25: 0.5 | C25: =(F6+F7)/2 -> 0.5675 | D25: 0.5821748032 | E25: 0.0002153498477 | F25: 0.4125772446 | G25: =STDEV(F6,F7) -> 0.02050609665 | H25: 3.613409102
B26: 1 | C26: =(G6+G7)/2 -> 0.455 | D26: 0.4415968852 | E26: 0.0001796434873 | F26: 0.3307888041 | G26: =STDEV(G6,G7) -> 0.09475230868 | H26: 20.82468323
B27: 2 | C27: =(H6+H7)/2 -> 0.3705 | D27: 0.3742826828 | E27: 1.430868888e-05 | F27: 0.2693565976 | G27: =STDEV(H6,H7) -> 0.02333452378 | H27: 6.298117079
B28: Sum Of Squares | E28: =SUM(E21:E27) -> 0.001423252337
B30: Parameter (Y=(A-D)/(1+(X/C)^B)+D) | E30: R-Squared
B31: A | C31: 1.367324318 | D31: (Max.) | E31: =(CORREL(C21:C27,D21:D27))^2 -> 0.9985294773
B32: B | C32: 1.401273958 | D32: (Slope)
B33: C | C33: 0.2234149487 | D33: (IC50)
B34: D | C34: 0.3282496191 | D34: (Min.)
B37: Enter descriptions and absorbance values of each sample and control into the grey boxes
B38: Sample/Control | C38: Absorbances | D38: Std Dev | E38: %CV | F38: Sample Concentration (ng/ml) | G38: Sample Concentration Avg (ng/ml) | H38: Comments
B39: Control | C39: 0.47 | F39: =IF(ISBLANK(C39),"",IF(C39<=$C$34,"Invalid",IF(C39>=$C$31,"Invalid",$C$33*(($C$31-C39)/(C39-$C$34))^(1/$C$32)))) -> 0.8337548362 | H39: =IF(AND(ISBLANK(C39),ISBLANK(C40)),"",IF(AVERAGE($C39:$C40)>$D$22,"LESS than Standard 1, outside of quantifiable range",IF(AVERAGE($C39:$C40)<$D$27,"GREATER than Standard 6, outside of quantifiable range",""))) -> 
B40: Control | C40: 0.525 | D40: =IF(OR(ISBLANK(C39),ISBLANK(C40)),"",STDEV(C39,C40)) -> 0.03889087297 | E40: =IF(ISTEXT(D40),"",D40/((C39+C40)/2)*100) -> 7.817260898 | F40: =IF(ISBLANK(C40),"",IF(C40<=$C$34,"Invalid",IF(C40>=$C$31,"Invalid",$C$33*(($C$31-C40)/(C40-$C$34))^(1/$C$32)))) -> 0.6306945351 | G40: =IF(AND(ISBLANK(C39),ISBLANK(C40)),"",IF(OR(ISBLANK(C40),ISBLANK(C39)),AVERAGE(F39:F40),IF(OR(ISTEXT(F39),ISTEXT(F40)),"Invalid",AVERAGE(F39:F40)))) -> 0.7322246856
B41: blank | C41: 1.343 | F41: 0.01558813104 | H41: =IF(AND(ISBLANK(C41),ISBLANK(C42)),"",IF(AVERAGE($C41:$C42)>$D$22,"LESS than Standard 1, outside of quantifiable range",IF(AVERAGE($C41:$C42)<$D$27,"GREATER than Standard 6, outside of quantifiable range",""))) -> LESS than Standard 1, outside of quantifiable range
B42: blank | C42: 1.312 | D42: =IF(OR(ISBLANK(C41),ISBLANK(C42)),"",STDEV(C41,C42)) -> 0.02192031022 | E42: =IF(ISTEXT(D42),"",D42/((C41+C42)/2)*100) -> 1.651247474 | F42: 0.02864765336 | G42: =IF(AND(ISBLANK(C41),ISBLANK(C42)),"",IF(OR(ISBLANK(C42),ISBLANK(C41)),AVERAGE(F41:F42),IF(OR(ISTEXT(F41),ISTEXT(F42)),"Invalid",AVERAGE(F41:F42)))) -> 0.0221178922
H43: =IF(AND(ISBLANK(C43),ISBLANK(C44)),"",IF(AVERAGE($C43:$C44)>$D$22,"LESS than Standard 1, outside of quantifiable range",IF(AVERAGE($C43:$C44)<$D$27,"GREATER than Standard 6, outside of quantifiable range",""))) -> 
D44: =IF(OR(ISBLANK(C43),ISBLANK(C44)),"",STDEV(C43,C44)) ->  | E44: =IF(ISTEXT(D44),"",D44/((C43+C44)/2)*100) ->  | G44: =IF(AND(ISBLANK(C43),ISBLANK(C44)),"",IF(OR(ISBLANK(C44),ISBLANK(C43)),AVERAGE(F43:F44),IF(OR(ISTEXT(F43),ISTEXT(F44)),"Invalid",AVERAGE(F43:F44)))) -> 
H45: =IF(AND(ISBLANK(C45),ISBLANK(C46)),"",IF(AVERAGE($C45:$C46)>$D$22,"LESS than Standard 1, outside of quantifiable range",IF(AVERAGE($C45:$C46)<$D$27,"GREATER than Standard 6, outside of quantifiable range",""))) -> 
D46: =IF(OR(ISBLANK(C45),ISBLANK(C46)),"",STDEV(C45,C46)) ->  | E46: =IF(ISTEXT(D46),"",D46/((C45+C46)/2)*100) ->  | G46: =IF(AND(ISBLANK(C45),ISBLANK(C46)),"",IF(OR(ISBLANK(C46),ISBLANK(C45)),AVERAGE(F45:F46),IF(OR(ISTEXT(F45),ISTEXT(F46)),"Invalid",AVERAGE(F45:F46)))) -> 
H47: =IF(AND(ISBLANK(C47),ISBLANK(C48)),"",IF(AVERAGE($C47:$C48)>$D$22,"LESS than Standard 1, outside of quantifiable range",IF(AVERAGE($C47:$C48)<$D$27,"GREATER than Standard 6, outside of quantifiable range",""))) -> 
D48: =IF(OR(ISBLANK(C47),ISBLANK(C48)),"",STDEV(C47,C48)) ->  | E48: =IF(ISTEXT(D48),"",D48/((C47+C48)/2)*100) ->  | G48: =IF(AND(ISBLANK(C47),ISBLANK(C48)),"",IF(OR(ISBLANK(C48),ISBLANK(C47)),AVERAGE(F47:F48),IF(OR(ISTEXT(F47),ISTEXT(F48)),"Invalid",AVERAGE(F47:F48)))) -> 
H49: =IF(AND(ISBLANK(C49),ISBLANK(C50)),"",IF(AVERAGE($C49:$C50)>$D$22,"LESS than Standard 1, outside of quantifiable range",IF(AVERAGE($C49:$C50)<$D$27,"GREATER than Standard 6, outside of quantifiable range",""))) -> 
D50: =IF(OR(ISBLANK(C49),ISBLANK(C50)),"",STDEV(C49,C50)) ->  | E50: =IF(ISTEXT(D50),"",D50/((C49+C50)/2)*100) ->  | G50: =IF(AND(ISBLANK(C49),ISBLANK(C50)),"",IF(OR(ISBLANK(C50),ISBLANK(C49)),AVERAGE(F49:F50),IF(OR(ISTEXT(F49),ISTEXT(F50)),"Invalid",AVERAGE(F49:F50)))) -> 
H51: =IF(AND(ISBLANK(C51),ISBLANK(C52)),"",IF(AVERAGE($C51:$C52)>$D$22,"LESS than Standard 1, outside of quantifiable range",IF(AVERAGE($C51:$C52)<$D$27,"GREATER than Standard 6, outside of quantifiable range",""))) -> 
D52: =IF(OR(ISBLANK(C51),ISBLANK(C52)),"",STDEV(C51,C52)) ->  | E52: =IF(ISTEXT(D52),"",D52/((C51+C52)/2)*100) ->  | G52: =IF(AND(ISBLANK(C51),ISBLANK(C52)),"",IF(OR(ISBLANK(C52),ISBLANK(C51)),AVERAGE(F51:F52),IF(OR(ISTEXT(F51),ISTEXT(F52)),"Invalid",AVERAGE(F51:F52)))) -> 
H53: =IF(AND(ISBLANK(C53),ISBLANK(C54)),"",IF(AVERAGE($C53:$C54)>$D$22,"LESS than Standard 1, outside of quantifiable range",IF(AVERAGE($C53:$C54)<$D$27,"GREATER than Standard 6, outside of quantifiable range",""))) -> 
D54: =IF(OR(ISBLANK(C53),ISBLANK(C54)),"",STDEV(C53,C54)) ->  | E54: =IF(ISTEXT(D54),"",D54/((C53+C54)/2)*100) ->  | G54: =IF(AND(ISBLANK(C53),ISBLANK(C54)),"",IF(OR(ISBLANK(C54),ISBLANK(C53)),AVERAGE(F53:F54),IF(OR(ISTEXT(F53),ISTEXT(F54)),"Invalid",AVERAGE(F53:F54)))) -> 
F55: =IF(ISBLANK(C55),"",IF(C55<=$C$34,"Invalid",IF(C55>=$C$31,"Invalid",$C$33*(($C$31-C55)/(C55-$C$34))^(1/$C$32)))) ->  | H55: =IF(AND(ISBLANK(C55),ISBLANK(C56)),"",IF(AVERAGE($C55:$C56)>$D$22,"LESS than Standard 1, outside of quantifiable range",IF(AVERAGE($C55:$C56)<$D$27,"GREATER than Standard 6, outside of quantifiable range",""))) -> 
D56: =IF(OR(ISBLANK(C55),ISBLANK(C56)),"",STDEV(C55,C56)) ->  | E56: =IF(ISTEXT(D56),"",D56/((C55+C56)/2)*100) ->  | G56: =IF(AND(ISBLANK(C55),ISBLANK(C56)),"",IF(OR(ISBLANK(C56),ISBLANK(C55)),AVERAGE(F55:F56),IF(OR(ISTEXT(F55),ISTEXT(F56)),"Invalid",AVERAGE(F55:F56)))) -> 
H57: =IF(AND(ISBLANK(C57),ISBLANK(C58)),"",IF(AVERAGE($C57:$C58)>$D$22,"LESS than Standard 1, outside of quantifiable range",IF(AVERAGE($C57:$C58)<$D$27,"GREATER than Standard 6, outside of quantifiable range",""))) -> 
D58: =IF(OR(ISBLANK(C57),ISBLANK(C58)),"",STDEV(C57,C58)) ->  | E58: =IF(ISTEXT(D58),"",D58/((C57+C58)/2)*100) ->  | G58: =IF(AND(ISBLANK(C57),ISBLANK(C58)),"",IF(OR(ISBLANK(C58),ISBLANK(C57)),AVERAGE(F57:F58),IF(OR(ISTEXT(F57),ISTEXT(F58)),"Invalid",AVERAGE(F57:F58)))) -> 
F59: =IF(ISBLANK(C59),"",IF(C59<=$C$34,"Invalid",IF(C59>=$C$31,"Invalid",$C$33*(($C$31-C59)/(C59-$C$34))^(1/$C$32)))) ->  | H59: =IF(AND(ISBLANK(C59),ISBLANK(C60)),"",IF(AVERAGE($C59:$C60)>$D$22,"LESS than Standard 1, outside of quantifiable range",IF(AVERAGE($C59:$C60)<$D$27,"GREATER than Standard 6, outside of quantifiable range",""))) -> 
D60: =IF(OR(ISBLANK(C59),ISBLANK(C60)),"",STDEV(C59,C60)) ->  | E60: =IF(ISTEXT(D60),"",D60/((C59+C60)/2)*100) ->  | G60: =IF(AND(ISBLANK(C59),ISBLANK(C60)),"",IF(OR(ISBLANK(C60),ISBLANK(C59)),AVERAGE(F59:F60),IF(OR(ISTEXT(F59),ISTEXT(F60)),"Invalid",AVERAGE(F59:F60)))) -> 
H61: =IF(AND(ISBLANK(C61),ISBLANK(C62)),"",IF(AVERAGE($C61:$C62)>$D$22,"LESS than Standard 1, outside of quantifiable range",IF(AVERAGE($C61:$C62)<$D$27,"GREATER than Standard 6, outside of quantifiable range",""))) -> 
D62: =IF(OR(ISBLANK(C61),ISBLANK(C62)),"",STDEV(C61,C62)) ->  | E62: =IF(ISTEXT(D62),"",D62/((C61+C62)/2)*100) ->  | G62: =IF(AND(ISBLANK(C61),ISBLANK(C62)),"",IF(OR(ISBLANK(C62),ISBLANK(C61)),AVERAGE(F61:F62),IF(OR(ISTEXT(F61),ISTEXT(F62)),"Invalid",AVERAGE(F61:F62)))) -> 
H63: =IF(AND(ISBLANK(C63),ISBLANK(C64)),"",IF(AVERAGE($C63:$C64)>$D$22,"LESS than Standard 1, outside of quantifiable range",IF(AVERAGE($C63:$C64)<$D$27,"GREATER than Standard 6, outside of quantifiable range",""))) -> 
D64: =IF(OR(ISBLANK(C63),ISBLANK(C64)),"",STDEV(C63,C64)) ->  | E64: =IF(ISTEXT(D64),"",D64/((C63+C64)/2)*100) ->  | G64: =IF(AND(ISBLANK(C63),ISBLANK(C64)),"",IF(OR(ISBLANK(C64),ISBLANK(C63)),AVERAGE(F63:F64),IF(OR(ISTEXT(F63),ISTEXT(F64)),"Invalid",AVERAGE(F63:F64)))) -> 
H65: =IF(AND(ISBLANK(C65),ISBLANK(C66)),"",IF(AVERAGE($C65:$C66)>$D$22,"LESS than Standard 1, outside of quantifiable range",IF(AVERAGE($C65:$C66)<$D$27,"GREATER than Standard 6, outside of quantifiable range",""))) -> 
D66: =IF(OR(ISBLANK(C65),ISBLANK(C66)),"",STDEV(C65,C66)) ->  | E66: =IF(ISTEXT(D66),"",D66/((C65+C66)/2)*100) ->  | G66: =IF(AND(ISBLANK(C65),ISBLANK(C66)),"",IF(OR(ISBLANK(C66),ISBLANK(C65)),AVERAGE(F65:F66),IF(OR(ISTEXT(F65),ISTEXT(F66)),"Invalid",AVERAGE(F65:F66)))) -> 
H67: =IF(AND(ISBLANK(C67),ISBLANK(C68)),"",IF(AVERAGE($C67:$C68)>$D$22,"LESS than Standard 1, outside of quantifiable range",IF(AVERAGE($C67:$C68)<$D$27,"GREATER than Standard 6, outside of quantifiable range",""))) -> 
D68: =IF(OR(ISBLANK(C67),ISBLANK(C68)),"",STDEV(C67,C68)) ->  | E68: =IF(ISTEXT(D68),"",D68/((C67+C68)/2)*100) ->  | G68: =IF(AND(ISBLANK(C67),ISBLANK(C68)),"",IF(OR(ISBLANK(C68),ISBLANK(C67)),AVERAGE(F67:F68),IF(OR(ISTEXT(F67),ISTEXT(F68)),"Invalid",AVERAGE(F67:F68)))) -> 
H69: =IF(AND(ISBLANK(C69),ISBLANK(C70)),"",IF(AVERAGE($C69:$C70)>$D$22,"LESS than Standard 1, outside of quantifiable range",IF(AVERAGE($C69:$C70)<$D$27,"GREATER than Standard 6, outside of quantifiable range",""))) -> 
D70: =IF(OR(ISBLANK(C69),ISBLANK(C70)),"",STDEV(C69,C70)) ->  | E70: =IF(ISTEXT(D70),"",D70/((C69+C70)/2)*100) ->  | G70: =IF(AND(ISBLANK(C69),ISBLANK(C70)),"",IF(OR(ISBLANK(C70),ISBLANK(C69)),AVERAGE(F69:F70),IF(OR(ISTEXT(F69),ISTEXT(F70)),"Invalid",AVERAGE(F69:F70)))) -> 
H71: =IF(AND(ISBLANK(C71),ISBLANK(C72)),"",IF(AVERAGE($C71:$C72)>$D$22,"LESS than Standard 1, outside of quantifiable range",IF(AVERAGE($C71:$C72)<$D$27,"GREATER than Standard 6, outside of quantifiable range",""))) -> 
D72: =IF(OR(ISBLANK(C71),ISBLANK(C72)),"",STDEV(C71,C72)) ->  | E72: =IF(ISTEXT(D72),"",D72/((C71+C72)/2)*100) ->  | G72: =IF(AND(ISBLANK(C71),ISBLANK(C72)),"",IF(OR(ISBLANK(C72),ISBLANK(C71)),AVERAGE(F71:F72),IF(OR(ISTEXT(F71),ISTEXT(F72)),"Invalid",AVERAGE(F71:F72)))) -> 
H73: =IF(AND(ISBLANK(C73),ISBLANK(C74)),"",IF(AVERAGE($C73:$C74)>$D$22,"LESS than Standard 1, outside of quantifiable range",IF(AVERAGE($C73:$C74)<$D$27,"GREATER than Standard 6, outside of quantifiable range",""))) -> 
D74: =IF(OR(ISBLANK(C73),ISBLANK(C74)),"",STDEV(C73,C74)) ->  | E74: =IF(ISTEXT(D74),"",D74/((C73+C74)/2)*100) ->  | F74: =IF(ISBLANK(C74),"",IF(C74<=$C$34,"invalid",IF(C74>=$C$31,"invalid",$C$33*(($C$31-C74)/(C74-$C$34))^(1/$C$32)))) ->  | G74: =IF(AND(ISBLANK(C73),ISBLANK(C74)),"",IF(OR(ISBLANK(C74),ISBLANK(C73)),AVERAGE(F73:F74),IF(OR(ISTEXT(F73),ISTEXT(F74)),"Invalid",AVERAGE(F73:F74)))) -> 
F75: =IF(ISBLANK(C75),"",IF(C75<=$C$34,"Invalid",IF(C75>=$C$31,"Invalid",$C$33*(($C$31-C75)/(C75-$C$34))^(1/$C$32)))) ->  | H75: =IF(AND(ISBLANK(C75),ISBLANK(C76)),"",IF(AVERAGE($C75:$C76)>$D$22,"LESS than Standard 1, outside of quantifiable range",IF(AVERAGE($C75:$C76)<$D$27,"GREATER than Standard 6, outside of quantifiable range",""))) -> 
D76: =IF(OR(ISBLANK(C75),ISBLANK(C76)),"",STDEV(C75,C76)) ->  | E76: =IF(ISTEXT(D76),"",D76/((C75+C76)/2)*100) ->  | G76: =IF(AND(ISBLANK(C75),ISBLANK(C76)),"",IF(OR(ISBLANK(C76),ISBLANK(C75)),AVERAGE(F75:F76),IF(OR(ISTEXT(F75),ISTEXT(F76)),"Invalid",AVERAGE(F75:F76)))) -> 
H77: =IF(AND(ISBLANK(C77),ISBLANK(C78)),"",IF(AVERAGE($C77:$C78)>$D$22,"LESS than Standard 1, outside of quantifiable range",IF(AVERAGE($C77:$C78)<$D$27,"GREATER than Standard 6, outside of quantifiable range",""))) -> 
D78: =IF(OR(ISBLANK(C77),ISBLANK(C78)),"",STDEV(C77,C78)) ->  | E78: =IF(ISTEXT(D78),"",D78/((C77+C78)/2)*100) ->  | G78: =IF(AND(ISBLANK(C77),ISBLANK(C78)),"",IF(OR(ISBLANK(C78),ISBLANK(C77)),AVERAGE(F77:F78),IF(OR(ISTEXT(F77),ISTEXT(F78)),"Invalid",AVERAGE(F77:F78)))) -> 
F79: =IF(ISBLANK(C79),"",IF(C79<=$C$34,"Invalid",IF(C79>=$C$31,"Invalid",$C$33*(($C$31-C79)/(C79-$C$34))^(1/$C$32)))) ->  | H79: =IF(AND(ISBLANK(C79),ISBLANK(C80)),"",IF(AVERAGE($C79:$C80)>$D$22,"LESS than Standard 1, outside of quantifiable range",IF(AVERAGE($C79:$C80)<$D$27,"GREATER than Standard 6, outside of quantifiable range",""))) -> 
D80: =IF(OR(ISBLANK(C79),ISBLANK(C80)),"",STDEV(C79,C80)) ->  | E80: =IF(ISTEXT(D80),"",D80/((C79+C80)/2)*100) ->  | F80: =IF(ISBLANK(C80),"",IF(C80<=$C$34,"Invalid",IF(C80>=$C$31,"Invalid",$C$33*(($C$31-C80)/(C80-$C$34))^(1/$C$32)))) ->  | G80: =IF(AND(ISBLANK(C79),ISBLANK(C80)),"",IF(OR(ISBLANK(C80),ISBLANK(C79)),AVERAGE(F79:F80),IF(OR(ISTEXT(F79),ISTEXT(F80)),"Invalid",AVERAGE(F79:F80)))) -> 
H81: =IF(AND(ISBLANK(C81),ISBLANK(C82)),"",IF(AVERAGE($C81:$C82)>$D$22,"LESS than Standard 1, outside of quantifiable range",IF(AVERAGE($C81:$C82)<$D$27,"GREATER than Standard 6, outside of quantifiable range",""))) -> 
D82: =IF(OR(ISBLANK(C81),ISBLANK(C82)),"",STDEV(C81,C82)) ->  | E82: =IF(ISTEXT(D82),"",D82/((C81+C82)/2)*100) ->  | G82: =IF(AND(ISBLANK(C81),ISBLANK(C82)),"",IF(OR(ISBLANK(C82),ISBLANK(C81)),AVERAGE(F81:F82),IF(OR(ISTEXT(F81),ISTEXT(F82)),"Invalid",AVERAGE(F81:F82)))) -> 
F83: =IF(ISBLANK(C83),"",IF(C83<=$C$34,"Invalid",IF(C83>=$C$31,"Invalid",$C$33*(($C$31-C83)/(C83-$C$34))^(1/$C$32)))) ->  | H83: =IF(AND(ISBLANK(C83),ISBLANK(C84)),"",IF(AVERAGE($C83:$C84)>$D$22,"LESS than Standard 1, outside of quantifiable range",IF(AVERAGE($C83:$C84)<$D$27,"GREATER than Standard 6, outside of quantifiable range",""))) -> 
D84: =IF(OR(ISBLANK(C83),ISBLANK(C84)),"",STDEV(C83,C84)) ->  | E84: =IF(ISTEXT(D84),"",D84/((C83+C84)/2)*100) ->  | F84: =IF(ISBLANK(C84),"",IF(C84<=$C$34,"Invalid",IF(C84>=$C$31,"Invalid",$C$33*(($C$31-C84)/(C84-$C$34))^(1/$C$32)))) ->  | G84: =IF(AND(ISBLANK(C83),ISBLANK(C84)),"",IF(OR(ISBLANK(C84),ISBLANK(C83)),AVERAGE(F83:F84),IF(OR(ISTEXT(F83),ISTEXT(F84)),"Invalid",AVERAGE(F83:F84)))) -> 
H85: =IF(AND(ISBLANK(C85),ISBLANK(C86)),"",IF(AVERAGE($C85:$C86)>$D$22,"LESS than Standard 1, outside of quantifiable range",IF(AVERAGE($C85:$C86)<$D$27,"GREATER than Standard 6, outside of quantifiable range",""))) -> 
D86: =IF(OR(ISBLANK(C85),ISBLANK(C86)),"",STDEV(C85,C86)) ->  | E86: =IF(ISTEXT(D86),"",D86/((C85+C86)/2)*100) ->  | G86: =IF(AND(ISBLANK(C85),ISBLANK(C86)),"",IF(OR(ISBLANK(C86),ISBLANK(C85)),AVERAGE(F85:F86),IF(OR(ISTEXT(F85),ISTEXT(F86)),"Invalid",AVERAGE(F85:F86)))) -> 
H87: =IF(AND(ISBLANK(C87),ISBLANK(C88)),"",IF(AVERAGE($C87:$C88)>$D$22,"LESS than Standard 1, outside of quantifiable range",IF(AVERAGE($C87:$C88)<$D$27,"GREATER than Standard 6, outside of quantifiable range",""))) -> 
D88: =IF(OR(ISBLANK(C87),ISBLANK(C88)),"",STDEV(C87,C88)) ->  | E88: =IF(ISTEXT(D88),"",D88/((C87+C88)/2)*100) ->  | G88: =IF(AND(ISBLANK(C87),ISBLANK(C88)),"",IF(OR(ISBLANK(C88),ISBLANK(C87)),AVERAGE(F87:F88),IF(OR(ISTEXT(F87),ISTEXT(F88)),"Invalid",AVERAGE(F87:F88)))) -> 
H89: =IF(AND(ISBLANK(C89),ISBLANK(C90)),"",IF(AVERAGE($C89:$C90)>$D$22,"LESS than Standard 1, outside of quantifiable range",IF(AVERAGE($C89:$C90)<$D$27,"GREATER than Standard 6, outside of quantifiable range",""))) -> 
D90: =IF(OR(ISBLANK(C89),ISBLANK(C90)),"",STDEV(C89,C90)) ->  | E90: =IF(ISTEXT(D90),"",D90/((C89+C90)/2)*100) ->  | G90: =IF(AND(ISBLANK(C89),ISBLANK(C90)),"",IF(OR(ISBLANK(C90),ISBLANK(C89)),AVERAGE(F89:F90),IF(OR(ISTEXT(F89),ISTEXT(F90)),"Invalid",AVERAGE(F89:F90)))) -> 
H91: =IF(AND(ISBLANK(C91),ISBLANK(C92)),"",IF(AVERAGE($C91:$C92)>$D$22,"LESS than Standard 1, outside of quantifiable range",IF(AVERAGE($C91:$C92)<$D$27,"GREATER than Standard 6, outside of quantifiable range",""))) -> 
D92: =IF(OR(ISBLANK(C91),ISBLANK(C92)),"",STDEV(C91,C92)) ->  | E92: =IF(ISTEXT(D92),"",D92/((C91+C92)/2)*100) ->  | G92: =IF(AND(ISBLANK(C91),ISBLANK(C92)),"",IF(OR(ISBLANK(C92),ISBLANK(C91)),AVERAGE(F91:F92),IF(OR(ISTEXT(F91),ISTEXT(F92)),"Invalid",AVERAGE(F91:F92)))) -> 
H93: =IF(AND(ISBLANK(C93),ISBLANK(C94)),"",IF(AVERAGE($C93:$C94)>$D$22,"LESS than Standard 1, outside of quantifiable range",IF(AVERAGE($C93:$C94)<$D$27,"GREATER than Standard 6, outside of quantifiable range",""))) -> 
D94: =IF(OR(ISBLANK(C93),ISBLANK(C94)),"",STDEV(C93,C94)) ->  | E94: =IF(ISTEXT(D94),"",D94/((C93+C94)/2)*100) ->  | G94: =IF(AND(ISBLANK(C93),ISBLANK(C94)),"",IF(OR(ISBLANK(C94),ISBLANK(C93)),AVERAGE(F93:F94),IF(OR(ISTEXT(F93),ISTEXT(F94)),"Invalid",AVERAGE(F93:F94)))) -> 
H95: =IF(AND(ISBLANK(C95),ISBLANK(C96)),"",IF(AVERAGE($C95:$C96)>$D$22,"LESS than Standard 1, outside of quantifiable range",IF(AVERAGE($C95:$C96)<$D$27,"GREATER than Standard 6, outside of quantifiable range",""))) -> 
D96: =IF(OR(ISBLANK(C95),ISBLANK(C96)),"",STDEV(C95,C96)) ->  | E96: =IF(ISTEXT(D96),"",D96/((C95+C96)/2)*100) ->  | G96: =IF(AND(ISBLANK(C95),ISBLANK(C96)),"",IF(OR(ISBLANK(C96),ISBLANK(C95)),AVERAGE(F95:F96),IF(OR(ISTEXT(F95),ISTEXT(F96)),"Invalid",AVERAGE(F95:F96)))) -> 
H97: =IF(AND(ISBLANK(C97),ISBLANK(C98)),"",IF(AVERAGE($C97:$C98)>$D$22,"LESS than Standard 1, outside of quantifiable range",IF(AVERAGE($C97:$C98)<$D$27,"GREATER than Standard 6, outside of quantifiable range",""))) -> 
D98: =IF(OR(ISBLANK(C97),ISBLANK(C98)),"",STDEV(C97,C98)) ->  | E98: =IF(ISTEXT(D98),"",D98/((C97+C98)/2)*100) ->  | F98: =IF(ISBLANK(C98),"",IF(C98<=$C$34,"invalid",IF(C98>=$C$31,"invalid",$C$33*(($C$31-C98)/(C98-$C$34))^(1/$C$32)))) ->  | G98: =IF(AND(ISBLANK(C97),ISBLANK(C98)),"",IF(OR(ISBLANK(C98),ISBLANK(C97)),AVERAGE(F97:F98),IF(OR(ISTEXT(F97),ISTEXT(F98)),"Invalid",AVERAGE(F97:F98)))) -> 
F99: =IF(ISBLANK(C99),"",IF(C99<=$C$34,"Invalid",IF(C99>=$C$31,"Invalid",$C$33*(($C$31-C99)/(C99-$C$34))^(1/$C$32)))) ->  | H99: =IF(AND(ISBLANK(C99),ISBLANK(C100)),"",IF(AVERAGE($C99:$C100)>$D$22,"LESS than Standard 1, outside of quantifiable range",IF(AVERAGE($C99:$C100)<$D$27,"GREATER than Standard 6, outside of quantifiable range",""))) -> 
D100: =IF(OR(ISBLANK(C99),ISBLANK(C100)),"",STDEV(C99,C100)) ->  | E100: =IF(ISTEXT(D100),"",D100/((C99+C100)/2)*100) ->  | G100: =IF(AND(ISBLANK(C99),ISBLANK(C100)),"",IF(OR(ISBLANK(C100),ISBLANK(C99)),AVERAGE(F99:F100),IF(OR(ISTEXT(F99),ISTEXT(F100)),"Invalid",AVERAGE(F99:F100)))) -> 
H101: =IF(AND(ISBLANK(C101),ISBLANK(C102)),"",IF(AVERAGE($C101:$C102)>$D$22,"LESS than Standard 1, outside of quantifiable range",IF(AVERAGE($C101:$C102)<$D$27,"GREATER than Standard 6, outside of quantifiable range",""))) -> 
D102: =IF(OR(ISBLANK(C101),ISBLANK(C102)),"",STDEV(C101,C102)) ->  | E102: =IF(ISTEXT(D102),"",D102/((C101+C102)/2)*100) ->  | G102: =IF(AND(ISBLANK(C101),ISBLANK(C102)),"",IF(OR(ISBLANK(C102),ISBLANK(C101)),AVERAGE(F101:F102),IF(OR(ISTEXT(F101),ISTEXT(F102)),"Invalid",AVERAGE(F101:F102)))) -> 
F103: =IF(ISBLANK(C103),"",IF(C103<=$C$34,"Invalid",IF(C103>=$C$31,"Invalid",$C$33*(($C$31-C103)/(C103-$C$34))^(1/$C$32)))) ->  | H103: =IF(AND(ISBLANK(C103),ISBLANK(C104)),"",IF(AVERAGE($C103:$C104)>$D$22,"LESS than Standard 1, outside of quantifiable range",IF(AVERAGE($C103:$C104)<$D$27,"GREATER than Standard 6, outside of quantifiable range",""))) -> 
D104: =IF(OR(ISBLANK(C103),ISBLANK(C104)),"",STDEV(C103,C104)) ->  | E104: =IF(ISTEXT(D104),"",D104/((C103+C104)/2)*100) ->  | F104: =IF(ISBLANK(C104),"",IF(C104<=$C$34,"Invalid",IF(C104>=$C$31,"Invalid",$C$33*(($C$31-C104)/(C104-$C$34))^(1/$C$32)))) ->  | G104: =IF(AND(ISBLANK(C103),ISBLANK(C104)),"",IF(OR(ISBLANK(C104),ISBLANK(C103)),AVERAGE(F103:F104),IF(OR(ISTEXT(F103),ISTEXT(F104)),"Invalid",AVERAGE(F103:F104)))) -> 
H105: =IF(AND(ISBLANK(C105),ISBLANK(C106)),"",IF(AVERAGE($C105:$C106)>$D$22,"LESS than Standard 1, outside of quantifiable range",IF(AVERAGE($C105:$C106)<$D$27,"GREATER than Standard 6, outside of quantifiable range",""))) -> 
D106: =IF(OR(ISBLANK(C105),ISBLANK(C106)),"",STDEV(C105,C106)) ->  | E106: =IF(ISTEXT(D106),"",D106/((C105+C106)/2)*100) ->  | G106: =IF(AND(ISBLANK(C105),ISBLANK(C106)),"",IF(OR(ISBLANK(C106),ISBLANK(C105)),AVERAGE(F105:F106),IF(OR(ISTEXT(F105),ISTEXT(F106)),"Invalid",AVERAGE(F105:F106)))) -> 
F107: =IF(ISBLANK(C107),"",IF(C107<=$C$34,"Invalid",IF(C107>=$C$31,"Invalid",$C$33*(($C$31-C107)/(C107-$C$34))^(1/$C$32)))) ->  | H107: =IF(AND(ISBLANK(C107),ISBLANK(C108)),"",IF(AVERAGE($C107:$C108)>$D$22,"LESS than Standard 1, outside of quantifiable range",IF(AVERAGE($C107:$C108)<$D$27,"GREATER than Standard 6, outside of quantifiable range",""))) -> 
D108: =IF(OR(ISBLANK(C107),ISBLANK(C108)),"",STDEV(C107,C108)) ->  | E108: =IF(ISTEXT(D108),"",D108/((C107+C108)/2)*100) ->  | F108: =IF(ISBLANK(C108),"",IF(C108<=$C$34,"Invalid",IF(C108>=$C$31,"Invalid",$C$33*(($C$31-C108)/(C108-$C$34))^(1/$C$32)))) ->  | G108: =IF(AND(ISBLANK(C107),ISBLANK(C108)),"",IF(OR(ISBLANK(C108),ISBLANK(C107)),AVERAGE(F107:F108),IF(OR(ISTEXT(F107),ISTEXT(F108)),"Invalid",AVERAGE(F107:F108)))) -> 
H109: =IF(AND(ISBLANK(C109),ISBLANK(C110)),"",IF(AVERAGE($C109:$C110)>$D$22,"LESS than Standard 1, outside of quantifiable range",IF(AVERAGE($C109:$C110)<$D$27,"GREATER than Standard 6, outside of quantifiable range",""))) -> 
D110: =IF(OR(ISBLANK(C109),ISBLANK(C110)),"",STDEV(C109,C110)) ->  | E110: =IF(ISTEXT(D110),"",D110/((C109+C110)/2)*100) ->  | G110: =IF(AND(ISBLANK(C109),ISBLANK(C110)),"",IF(OR(ISBLANK(C110),ISBLANK(C109)),AVERAGE(F109:F110),IF(OR(ISTEXT(F109),ISTEXT(F110)),"Invalid",AVERAGE(F109:F110)))) -> 
H111: =IF(AND(ISBLANK(C111),ISBLANK(C112)),"",IF(AVERAGE($C111:$C112)>$D$22,"LESS than Standard 1, outside of quantifiable range",IF(AVERAGE($C111:$C112)<$D$27,"GREATER than Standard 6, outside of quantifiable range",""))) -> 
D112: =IF(OR(ISBLANK(C111),ISBLANK(C112)),"",STDEV(C111,C112)) ->  | E112: =IF(ISTEXT(D112),"",D112/((C111+C112)/2)*100) ->  | G112: =IF(AND(ISBLANK(C111),ISBLANK(C112)),"",IF(OR(ISBLANK(C112),ISBLANK(C111)),AVERAGE(F111:F112),IF(OR(ISTEXT(F111),ISTEXT(F112)),"Invalid",AVERAGE(F111:F112)))) -> 
H113: =IF(AND(ISBLANK(C113),ISBLANK(C114)),"",IF(AVERAGE($C113:$C114)>$D$22,"LESS than Standard 1, outside of quantifiable range",IF(AVERAGE($C113:$C114)<$D$27,"GREATER than Standard 6, outside of quantifiable range",""))) -> 
D114: =IF(OR(ISBLANK(C113),ISBLANK(C114)),"",STDEV(C113,C114)) ->  | E114: =IF(ISTEXT(D114),"",D114/((C113+C114)/2)*100) ->  | G114: =IF(AND(ISBLANK(C113),ISBLANK(C114)),"",IF(OR(ISBLANK(C114),ISBLANK(C113)),AVERAGE(F113:F114),IF(OR(ISTEXT(F113),ISTEXT(F114)),"Invalid",AVERAGE(F113:F114)))) -> 
H115: =IF(AND(ISBLANK(C115),ISBLANK(C116)),"",IF(AVERAGE($C115:$C116)>$D$22,"LESS than Standard 1, outside of quantifiable range",IF(AVERAGE($C115:$C116)<$D$27,"GREATER than Standard 6, outside of quantifiable range",""))) -> 
D116: =IF(OR(ISBLANK(C115),ISBLANK(C116)),"",STDEV(C115,C116)) ->  | E116: =IF(ISTEXT(D116),"",D116/((C115+C116)/2)*100) ->  | G116: =IF(AND(ISBLANK(C115),ISBLANK(C116)),"",IF(OR(ISBLANK(C116),ISBLANK(C115)),AVERAGE(F115:F116),IF(OR(ISTEXT(F115),ISTEXT(F116)),"Invalid",AVERAGE(F115:F116)))) -> 
H117: =IF(AND(ISBLANK(C117),ISBLANK(C118)),"",IF(AVERAGE($C117:$C118)>$D$22,"LESS than Standard 1, outside of quantifiable range",IF(AVERAGE($C117:$C118)<$D$27,"GREATER than Standard 6, outside of quantifiable range",""))) -> 
D118: =IF(OR(ISBLANK(C117),ISBLANK(C118)),"",STDEV(C117,C118)) ->  | E118: =IF(ISTEXT(D118),"",D118/((C117+C118)/2)*100) ->  | G118: =IF(AND(ISBLANK(C117),ISBLANK(C118)),"",IF(OR(ISBLANK(C118),ISBLANK(C117)),AVERAGE(F117:F118),IF(OR(ISTEXT(F117),ISTEXT(F118)),"Invalid",AVERAGE(F117:F118)))) -> 
H119: =IF(AND(ISBLANK(C119),ISBLANK(C120)),"",IF(AVERAGE($C119:$C120)>$D$22,"LESS than Standard 1, outside of quantifiable range",IF(AVERAGE($C119:$C120)<$D$27,"GREATER than Standard 6, outside of quantifiable range",""))) -> 
D120: =IF(OR(ISBLANK(C119),ISBLANK(C120)),"",STDEV(C119,C120)) ->  | E120: =IF(ISTEXT(D120),"",D120/((C119+C120)/2)*100) ->  | G120: =IF(AND(ISBLANK(C119),ISBLANK(C120)),"",IF(OR(ISBLANK(C120),ISBLANK(C119)),AVERAGE(F119:F120),IF(OR(ISTEXT(F119),ISTEXT(F120)),"Invalid",AVERAGE(F119:F120)))) -> 
H121: =IF(AND(ISBLANK(C121),ISBLANK(C122)),"",IF(AVERAGE($C121:$C122)>$D$22,"LESS than Standard 1, outside of quantifiable range",IF(AVERAGE($C121:$C122)<$D$27,"GREATER than Standard 6, outside of quantifiable range",""))) -> 
D122: =IF(OR(ISBLANK(C121),ISBLANK(C122)),"",STDEV(C121,C122)) ->  | E122: =IF(ISTEXT(D122),"",D122/((C121+C122)/2)*100) ->  | F122: =IF(ISBLANK(C122),"",IF(C122<=$C$34,"invalid",IF(C122>=$C$31,"invalid",$C$33*(($C$31-C122)/(C122-$C$34))^(1/$C$32)))) ->  | G122: =IF(AND(ISBLANK(C121),ISBLANK(C122)),"",IF(OR(ISBLANK(C122),ISBLANK(C121)),AVERAGE(F121:F122),IF(OR(ISTEXT(F121),ISTEXT(F122)),"Invalid",AVERAGE(F121:F122)))) -> 
F123: =IF(ISBLANK(C123),"",IF(C123<=$C$34,"Invalid",IF(C123>=$C$31,"Invalid",$C$33*(($C$31-C123)/(C123-$C$34))^(1/$C$32)))) ->  | H123: =IF(AND(ISBLANK(C123),ISBLANK(C124)),"",IF(AVERAGE($C123:$C124)>$D$22,"LESS than Standard 1, outside of quantifiable range",IF(AVERAGE($C123:$C124)<$D$27,"GREATER than Standard 6, outside of quantifiable range",""))) -> 
D124: =IF(OR(ISBLANK(C123),ISBLANK(C124)),"",STDEV(C123,C124)) ->  | E124: =IF(ISTEXT(D124),"",D124/((C123+C124)/2)*100) ->  | G124: =IF(AND(ISBLANK(C123),ISBLANK(C124)),"",IF(OR(ISBLANK(C124),ISBLANK(C123)),AVERAGE(F123:F124),IF(OR(ISTEXT(F123),ISTEXT(F124)),"Invalid",AVERAGE(F123:F124)))) -> 
H125: =IF(AND(ISBLANK(C125),ISBLANK(C126)),"",IF(AVERAGE($C125:$C126)>$D$22,"LESS than Standard 1, outside of quantifiable range",IF(AVERAGE($C125:$C126)<$D$27,"GREATER than Standard 6, outside of quantifiable range",""))) -> 
D126: =IF(OR(ISBLANK(C125),ISBLANK(C126)),"",STDEV(C125,C126)) ->  | E126: =IF(ISTEXT(D126),"",D126/((C125+C126)/2)*100) ->  | G126: =IF(AND(ISBLANK(C125),ISBLANK(C126)),"",IF(OR(ISBLANK(C126),ISBLANK(C125)),AVERAGE(F125:F126),IF(OR(ISTEXT(F125),ISTEXT(F126)),"Invalid",AVERAGE(F125:F126)))) -> 
F127: =IF(ISBLANK(C127),"",IF(C127<=$C$34,"Invalid",IF(C127>=$C$31,"Invalid",$C$33*(($C$31-C127)/(C127-$C$34))^(1/$C$32)))) ->  | H127: =IF(AND(ISBLANK(C127),ISBLANK(C128)),"",IF(AVERAGE($C127:$C128)>$D$22,"LESS than Standard 1, outside of quantifiable range",IF(AVERAGE($C127:$C128)<$D$27,"GREATER than Standard 6, outside of quantifiable range",""))) -> 
D128: =IF(OR(ISBLANK(C127),ISBLANK(C128)),"",STDEV(C127,C128)) ->  | E128: =IF(ISTEXT(D128),"",D128/((C127+C128)/2)*100) ->  | F128: =IF(ISBLANK(C128),"",IF(C128<=$C$34,"Invalid",IF(C128>=$C$31,"Invalid",$C$33*(($C$31-C128)/(C128-$C$34))^(1/$C$32)))) ->  | G128: =IF(AND(ISBLANK(C127),ISBLANK(C128)),"",IF(OR(ISBLANK(C128),ISBLANK(C127)),AVERAGE(F127:F128),IF(OR(ISTEXT(F127),ISTEXT(F128)),"Invalid",AVERAGE(F127:F128)))) -> 
H129: =IF(AND(ISBLANK(C129),ISBLANK(C130)),"",IF(AVERAGE($C129:$C130)>$D$22,"LESS than Standard 1, outside of quantifiable range",IF(AVERAGE($C129:$C130)<$D$27,"GREATER than Standard 6, outside of quantifiable range",""))) -> 
D130: =IF(OR(ISBLANK(C129),ISBLANK(C130)),"",STDEV(C129,C130)) ->  | E130: =IF(ISTEXT(D130),"",D130/((C129+C130)/2)*100) ->  | G130: =IF(AND(ISBLANK(C129),ISBLANK(C130)),"",IF(OR(ISBLANK(C130),ISBLANK(C129)),AVERAGE(F129:F130),IF(OR(ISTEXT(F129),ISTEXT(F130)),"Invalid",AVERAGE(F129:F130)))) -> 
F131: =IF(ISBLANK(C131),"",IF(C131<=$C$34,"Invalid",IF(C131>=$C$31,"Invalid",$C$33*(($C$31-C131)/(C131-$C$34))^(1/$C$32)))) ->  | H131: =IF(AND(ISBLANK(C131),ISBLANK(C132)),"",IF(AVERAGE($C131:$C132)>$D$22,"LESS than Standard 1, outside of quantifiable range",IF(AVERAGE($C131:$C132)<$D$27,"GREATER than Standard 6, outside of quantifiable range",""))) -> 
D132: =IF(OR(ISBLANK(C131),ISBLANK(C132)),"",STDEV(C131,C132)) ->  | E132: =IF(ISTEXT(D132),"",D132/((C131+C132)/2)*100) ->  | F132: =IF(ISBLANK(C132),"",IF(C132<=$C$34,"Invalid",IF(C132>=$C$31,"Invalid",$C$33*(($C$31-C132)/(C132-$C$34))^(1/$C$32)))) ->  | G132: =IF(AND(ISBLANK(C131),ISBLANK(C132)),"",IF(OR(ISBLANK(C132),ISBLANK(C131)),AVERAGE(F131:F132),IF(OR(ISTEXT(F131),ISTEXT(F132)),"Invalid",AVERAGE(F131:F132)))) -> 
H133: =IF(AND(ISBLANK(C133),ISBLANK(C134)),"",IF(AVERAGE($C133:$C134)>$D$22,"LESS than Standard 1, outside of quantifiable range",IF(AVERAGE($C133:$C134)<$D$27,"GREATER than Standard 6, outside of quantifiable range",""))) -> 
D134: =IF(OR(ISBLANK(C133),ISBLANK(C134)),"",STDEV(C133,C134)) ->  | E134: =IF(ISTEXT(D134),"",D134/((C133+C134)/2)*100) ->  | G134: =IF(AND(ISBLANK(C133),ISBLANK(C134)),"",IF(OR(ISBLANK(C134),ISBLANK(C133)),AVERAGE(F133:F134),IF(OR(ISTEXT(F133),ISTEXT(F134)),"Invalid",AVERAGE(F133:F134)))) -> 
H135: =IF(AND(ISBLANK(C135),ISBLANK(C136)),"",IF(AVERAGE($C135:$C136)>$D$22,"LESS than Standard 1, outside of quantifiable range",IF(AVERAGE($C135:$C136)<$D$27,"GREATER than Standard 6, outside of quantifiable range",""))) -> 
D136: =IF(OR(ISBLANK(C135),ISBLANK(C136)),"",STDEV(C135,C136)) ->  | E136: =IF(ISTEXT(D136),"",D136/((C135+C136)/2)*100) ->  | G136: =IF(AND(ISBLANK(C135),ISBLANK(C136)),"",IF(OR(ISBLANK(C136),ISBLANK(C135)),AVERAGE(F135:F136),IF(OR(ISTEXT(F135),ISTEXT(F136)),"Invalid",AVERAGE(F135:F136)))) -> 
H137: =IF(AND(ISBLANK(C137),ISBLANK(C138)),"",IF(AVERAGE($C137:$C138)>$D$22,"LESS than Standard 1, outside of quantifiable range",IF(AVERAGE($C137:$C138)<$D$27,"GREATER than Standard 6, outside of quantifiable range",""))) -> 
D138: =IF(OR(ISBLANK(C137),ISBLANK(C138)),"",STDEV(C137,C138)) ->  | E138: =IF(ISTEXT(D138),"",D138/((C137+C138)/2)*100) ->  | G138: =IF(AND(ISBLANK(C137),ISBLANK(C138)),"",IF(OR(ISBLANK(C138),ISBLANK(C137)),AVERAGE(F137:F138),IF(OR(ISTEXT(F137),ISTEXT(F138)),"Invalid",AVERAGE(F137:F138)))) -> 
H139: =IF(AND(ISBLANK(C139),ISBLANK(C140)),"",IF(AVERAGE($C139:$C140)>$D$22,"LESS than Standard 1, outside of quantifiable range",IF(AVERAGE($C139:$C140)<$D$27,"GREATER than Standard 6, outside of quantifiable range",""))) -> 
D140: =IF(OR(ISBLANK(C139),ISBLANK(C140)),"",STDEV(C139,C140)) ->  | E140: =IF(ISTEXT(D140),"",D140/((C139+C140)/2)*100) ->  | G140: =IF(AND(ISBLANK(C139),ISBLANK(C140)),"",IF(OR(ISBLANK(C140),ISBLANK(C139)),AVERAGE(F139:F140),IF(OR(ISTEXT(F139),ISTEXT(F140)),"Invalid",AVERAGE(F139:F140)))) -> 
H141: =IF(AND(ISBLANK(C141),ISBLANK(C142)),"",IF(AVERAGE($C141:$C142)>$D$22,"LESS than Standard 1, outside of quantifiable range",IF(AVERAGE($C141:$C142)<$D$27,"GREATER than Standard 6, outside of quantifiable range",""))) -> 
D142: =IF(OR(ISBLANK(C141),ISBLANK(C142)),"",STDEV(C141,C142)) ->  | E142: =IF(ISTEXT(D142),"",D142/((C141+C142)/2)*100) ->  | G142: =IF(AND(ISBLANK(C141),ISBLANK(C142)),"",IF(OR(ISBLANK(C142),ISBLANK(C141)),AVERAGE(F141:F142),IF(OR(ISTEXT(F141),ISTEXT(F142)),"Invalid",AVERAGE(F141:F142)))) -> 
H143: =IF(AND(ISBLANK(C143),ISBLANK(C144)),"",IF(AVERAGE($C143:$C144)>$D$22,"LESS than Standard 1, outside of quantifiable range",IF(AVERAGE($C143:$C144)<$D$27,"GREATER than Standard 6, outside of quantifiable range",""))) -> 
D144: =IF(OR(ISBLANK(C143),ISBLANK(C144)),"",STDEV(C143,C144)) ->  | E144: =IF(ISTEXT(D144),"",D144/((C143+C144)/2)*100) ->  | G144: =IF(AND(ISBLANK(C143),ISBLANK(C144)),"",IF(OR(ISBLANK(C144),ISBLANK(C143)),AVERAGE(F143:F144),IF(OR(ISTEXT(F143),ISTEXT(F144)),"Invalid",AVERAGE(F143:F144)))) -> 
H145: =IF(AND(ISBLANK(C145),ISBLANK(C146)),"",IF(AVERAGE($C145:$C146)>$D$22,"LESS than Standard 1, outside of quantifiable range",IF(AVERAGE($C145:$C146)<$D$27,"GREATER than Standard 6, outside of quantifiable range",""))) -> 
D146: =IF(OR(ISBLANK(C145),ISBLANK(C146)),"",STDEV(C145,C146)) ->  | E146: =IF(ISTEXT(D146),"",D146/((C145+C146)/2)*100) ->  | F146: =IF(ISBLANK(C146),"",IF(C146<=$C$34,"invalid",IF(C146>=$C$31,"invalid",$C$33*(($C$31-C146)/(C146-$C$34))^(1/$C$32)))) ->  | G146: =IF(AND(ISBLANK(C145),ISBLANK(C146)),"",IF(OR(ISBLANK(C146),ISBLANK(C145)),AVERAGE(F145:F146),IF(OR(ISTEXT(F145),ISTEXT(F146)),"Invalid",AVERAGE(F145:F146)))) -> 

Sheet 8 Standards
B2: ** USER MUST ONLY INPUT VALUES IN GREY-COLORED CELLS ** | G2: Kit Lot # | P2: Before you start:
B4: Enter the absorbance values of each standard into the grey boxes | P4: Check that "solver" is installed
B5: Std 0 | C5: Std 1 | D5: Std 2 | E5: Std 3 | F5: Std 4 | G5: Std 5 | H5: Std 6 | I5: Std 7
B6: 1.85 | C6: 1.55 | D6: 1.25 | E6: 0.95 | F6: 0.75 | G6: 0.55 | H6: 0.35 | I6: 0.15 | M6: 0.059 | P6: Input OD values for standards (Fig 4 in protocol)
B7: 1.83 | C7: 1.53 | D7: 1.23 | E7: 0.93 | F7: 0.73 | G7: 0.53 | H7: 0.33 | I7: 0.13 | M7: 0.061 | P7: Select solver (Target Cell: $e$32 - Cell Changes: $c$35:$c$38 - Optimize: Minimize - GRG Nonlinear )
P8: "Solve"
P9: Check graph and parametres (A>0.7; D<0.1;
P12: Calculate MC TADDA-concentration in samples in wells:
P13: Input average OD of unknown samples in cell c48 (sample 1) , c49 (sample 2)….
P14: Calculated ELISA MCTADDA concentration are given automatically in cell d48 (sample 1), c49 (sample 2),….
P15: Sample concentrations should only be used from datapoints that are within the valid working range of the standard curve
P17: If OD is outsite the Ic20 to Ic80 range, dilution sholud be adjusted and the samples assayed again
B19: Enter the standard concentrations of each standard into the grey boxes
B20: Standards (ng/ml) | C20: OD (averaged) | D20: Predicted values | E20: Residual Squares | F20: B/Bo | G20: Std Dev | H20: %CV
B21: 0 | C21: =(B6+B7)/2 -> 1.84 | D21: =($C$32-$C$35)/(1+(B21/$C$34)^$C$33)+$C$35 -> 1.847278349 | E21: =(C21-D21)^2 -> 5.297436804e-05 | G21: =STDEV(B6,B7) -> 0.01414213562 | H21: =(G21/C21)*100 -> 0.7685943274
B22: 0.15 | C22: =(C6+C7)/2 -> 1.54 | D22: 1.504864887 | E22: 0.001234476162 | F22: =C22/C$21 -> 0.8369565217 | G22: =STDEV(C6,C7) -> 0.01414213562 | H22: 0.918320495 | Q22: OD | R22: MCTADDA-conc | S22: X=C x ((A-Y)/(Y-D))^(1/B)
B23: 0.4 | C23: =(D6+D7)/2 -> 1.24 | D23: 1.262581543 | E23: 0.0005099260991 | F23: 0.6739130435 | G23: =STDEV(D6,D7) -> 0.01414213562 | H23: 1.140494808 | P23: Ic20 | Q23: =$C$35+($C$32-$C$35)*20/100 -> 0.3694556699 | R23: =C34*((C32-Q23)/(Q23-C35))^(1/C33) -> 7.843444513
B24: 1 | C24: =(E6+E7)/2 -> 0.94 | D24: 0.9725277995 | E24: 0.001058057739 | F24: 0.5108695652 | G24: =STDEV(E6,E7) -> 0.01414213562 | H24: 1.504482513 | P24: Ic80 | Q24: =$C$35+($C$32-$C$35)*80/100 -> 1.477822679 | R24: =C34*((C32-Q24)/(Q24-C35))^(1/C33) -> 0.1708145841
B25: 2 | C25: =(F6+F7)/2 -> 0.74 | D25: 0.7430089551 | E25: 9.053811023e-06 | F25: 0.402173913 | G25: =STDEV(F6,F7) -> 0.01414213562 | H25: 1.911099409
B26: 5 | C26: =(G6+G7)/2 -> 0.54 | D26: 0.4752898735 | E26: 0.004187400467 | F26: 0.2934782609 | G26: =STDEV(G6,G7) -> 0.01414213562 | H26: 2.618914004
B27: 10 | C27: =(H6+H7)/2 -> 0.34 | D27: 0.3201691016 | E27: 0.0003932645294 | F27: 0.1847826087 | G27: =STDEV(H6,H7) -> 0.01414213562 | H27: 4.159451654
B28: 20 | C28: =(I6+I7)/2 -> 0.14 | D28: 0.2079999536 | E28: 0.004623993687 | F28: 0.07608695652 | G28: =STDEV(I6,I7) -> 0.01414213562 | H28: 10.10152545
B29: Sum Of Squares | E29: =SUM(E21:E28) -> 0.01206914686
B31: Parameter (Y=(A-D)/(1+(X/C)^B)+D) | E31: R-Squared
B32: A | C32: 1.847278349 | D32: (Max.) | E32: =(CORREL(C21:C28,D21:D28))^2 -> 0.9951201258
B33: B | C33: 0.7245084899 | D33: (Slope)
B34: C | C34: 1.157486377 | D34: (IC50)
B35: D | C35: 0 | D35: (Min.)
B38: Enter descriptions and absorbance values of each sample and control into the grey boxes
B39: Sample/Control | C39: Absorbances | D39: Std Dev | E39: %CV | F39: Sample Concentration (ng/ml) | G39: Sample Concentration Avg (ng/ml) | H39: Comments
B40: Control | C40: 1.03 | F40: =IF(ISBLANK(C40),"",IF(C40<=$C$35,"Invalid",IF(C40>=$C$32,"Invalid",$C$34*(($C$32-C40)/(C40-$C$35))^(1/$C$33)))) -> 0.8410975877 | H40: =IF(AND(ISBLANK(C40),ISBLANK(C41)),"",IF(AVERAGE($C40:$C41)>$D$22,"LESS than Standard 1, outside of quantifiable range",IF(AVERAGE($C40:$C41)<$D$28,"GREATER than Standard 7, outside of quantifiable range",""))) -> 
B41: Control | C41: 1.05 | D41: =IF(OR(ISBLANK(C40),ISBLANK(C41)),"",STDEV(C40,C41)) -> 0.01414213562 | E41: =IF(ISTEXT(D41),"",D41/((C40+C41)/2)*100) -> 1.359820733 | F41: =IF(ISBLANK(C41),"",IF(C41<=$C$35,"Invalid",IF(C41>=$C$32,"Invalid",$C$34*(($C$32-C41)/(C41-$C$35))^(1/$C$33)))) -> 0.7915292885 | G41: =IF(AND(ISBLANK(C40),ISBLANK(C41)),"",IF(OR(ISBLANK(C41),ISBLANK(C40)),AVERAGE(F40:F41),IF(OR(ISTEXT(F40),ISTEXT(F41)),"Invalid",AVERAGE(F40:F41)))) -> 0.8163134381
B42: Sample 1 | C42: 1.23 | F42: 0.4469274144 | H42: =IF(AND(ISBLANK(C42),ISBLANK(C43)),"",IF(AVERAGE($C42:$C43)>$D$22,"LESS than Standard 1, outside of quantifiable range",IF(AVERAGE($C42:$C43)<$D$28,"GREATER than Standard 7, outside of quantifiable range",""))) -> 
B43: Sample 1 | C43: 1.25 | D43: =IF(OR(ISBLANK(C42),ISBLANK(C43)),"",STDEV(C42,C43)) -> 0.01414213562 | E43: =IF(ISTEXT(D43),"",D43/((C42+C43)/2)*100) -> 1.140494808 | F43: 0.4176621227 | G43: =IF(AND(ISBLANK(C42),ISBLANK(C43)),"",IF(OR(ISBLANK(C43),ISBLANK(C42)),AVERAGE(F42:F43),IF(OR(ISTEXT(F42),ISTEXT(F43)),"Invalid",AVERAGE(F42:F43)))) -> 0.4322947686
B44: Sample 2 | C44: 0.85 | F44: 1.443116748 | H44: =IF(AND(ISBLANK(C44),ISBLANK(C45)),"",IF(AVERAGE($C44:$C45)>$D$22,"LESS than Standard 1, outside of quantifiable range",IF(AVERAGE($C44:$C45)<$D$28,"GREATER than Standard 7, outside of quantifiable range",""))) -> 
B45: Sample 2 | C45: 0.83 | D45: =IF(OR(ISBLANK(C44),ISBLANK(C45)),"",STDEV(C44,C45)) -> 0.01414213562 | E45: =IF(ISTEXT(D45),"",D45/((C44+C45)/2)*100) -> 1.683587574 | F45: 1.53276929 | G45: =IF(AND(ISBLANK(C44),ISBLANK(C45)),"",IF(OR(ISBLANK(C45),ISBLANK(C44)),AVERAGE(F44:F45),IF(OR(ISTEXT(F44),ISTEXT(F45)),"Invalid",AVERAGE(F44:F45)))) -> 1.487943019
B46: Sample 3 | C46: 1.63 | F46: 0.07170746031 | H46: =IF(AND(ISBLANK(C46),ISBLANK(C47)),"",IF(AVERAGE($C46:$C47)>$D$22,"LESS than Standard 1, outside of quantifiable range",IF(AVERAGE($C46:$C47)<$D$28,"GREATER than Standard 7, outside of quantifiable range",""))) -> LESS than Standard 1, outside of quantifiable range
B47: Sample 3 | C47: 1.65 | D47: =IF(OR(ISBLANK(C46),ISBLANK(C47)),"",STDEV(C46,C47)) -> 0.01414213562 | E47: =IF(ISTEXT(D47),"",D47/((C46+C47)/2)*100) -> 0.8623253429 | F47: 0.0617121491 | G47: =IF(AND(ISBLANK(C46),ISBLANK(C47)),"",IF(OR(ISBLANK(C47),ISBLANK(C46)),AVERAGE(F46:F47),IF(OR(ISTEXT(F46),ISTEXT(F47)),"Invalid",AVERAGE(F46:F47)))) -> 0.06670980471
B48: Sample 4 | C48: 0.13 | F48: 40.79717074 | H48: =IF(AND(ISBLANK(C48),ISBLANK(C49)),"",IF(AVERAGE($C48:$C49)>$D$22,"LESS than Standard 1, outside of quantifiable range",IF(AVERAGE($C48:$C49)<$D$28,"GREATER than Standard 7, outside of quantifiable range",""))) -> GREATER than Standard 7, outside of quantifiable range
B49: Sample 4 | C49: 0.12 | D49: =IF(OR(ISBLANK(C48),ISBLANK(C49)),"",STDEV(C48,C49)) -> 0.007071067812 | E49: =IF(ISTEXT(D49),"",D49/((C48+C49)/2)*100) -> 5.656854249 | F49: 45.9294012 | G49: =IF(AND(ISBLANK(C48),ISBLANK(C49)),"",IF(OR(ISBLANK(C49),ISBLANK(C48)),AVERAGE(F48:F49),IF(OR(ISTEXT(F48),ISTEXT(F49)),"Invalid",AVERAGE(F48:F49)))) -> 43.36328597
H50: =IF(AND(ISBLANK(C50),ISBLANK(C51)),"",IF(AVERAGE($C50:$C51)>$D$22,"LESS than Standard 1, outside of quantifiable range",IF(AVERAGE($C50:$C51)<$D$28,"GREATER than Standard 7, outside of quantifiable range",""))) -> 
D51: =IF(OR(ISBLANK(C50),ISBLANK(C51)),"",STDEV(C50,C51)) ->  | E51: =IF(ISTEXT(D51),"",D51/((C50+C51)/2)*100) ->  | G51: =IF(AND(ISBLANK(C50),ISBLANK(C51)),"",IF(OR(ISBLANK(C51),ISBLANK(C50)),AVERAGE(F50:F51),IF(OR(ISTEXT(F50),ISTEXT(F51)),"Invalid",AVERAGE(F50:F51)))) -> 
H52: =IF(AND(ISBLANK(C52),ISBLANK(C53)),"",IF(AVERAGE($C52:$C53)>$D$22,"LESS than Standard 1, outside of quantifiable range",IF(AVERAGE($C52:$C53)<$D$28,"GREATER than Standard 7, outside of quantifiable range",""))) -> 
D53: =IF(OR(ISBLANK(C52),ISBLANK(C53)),"",STDEV(C52,C53)) ->  | E53: =IF(ISTEXT(D53),"",D53/((C52+C53)/2)*100) ->  | G53: =IF(AND(ISBLANK(C52),ISBLANK(C53)),"",IF(OR(ISBLANK(C53),ISBLANK(C52)),AVERAGE(F52:F53),IF(OR(ISTEXT(F52),ISTEXT(F53)),"Invalid",AVERAGE(F52:F53)))) -> 
H54: =IF(AND(ISBLANK(C54),ISBLANK(C55)),"",IF(AVERAGE($C54:$C55)>$D$22,"LESS than Standard 1, outside of quantifiable range",IF(AVERAGE($C54:$C55)<$D$28,"GREATER than Standard 7, outside of quantifiable range",""))) -> 
D55: =IF(OR(ISBLANK(C54),ISBLANK(C55)),"",STDEV(C54,C55)) ->  | E55: =IF(ISTEXT(D55),"",D55/((C54+C55)/2)*100) ->  | G55: =IF(AND(ISBLANK(C54),ISBLANK(C55)),"",IF(OR(ISBLANK(C55),ISBLANK(C54)),AVERAGE(F54:F55),IF(OR(ISTEXT(F54),ISTEXT(F55)),"Invalid",AVERAGE(F54:F55)))) -> 
F56: =IF(ISBLANK(C56),"",IF(C56<=$C$35,"Invalid",IF(C56>=$C$32,"Invalid",$C$34*(($C$32-C56)/(C56-$C$35))^(1/$C$33)))) ->  | H56: =IF(AND(ISBLANK(C56),ISBLANK(C57)),"",IF(AVERAGE($C56:$C57)>$D$22,"LESS than Standard 1, outside of quantifiable range",IF(AVERAGE($C56:$C57)<$D$28,"GREATER than Standard 7, outside of quantifiable range",""))) -> 
D57: =IF(OR(ISBLANK(C56),ISBLANK(C57)),"",STDEV(C56,C57)) ->  | E57: =IF(ISTEXT(D57),"",D57/((C56+C57)/2)*100) ->  | G57: =IF(AND(ISBLANK(C56),ISBLANK(C57)),"",IF(OR(ISBLANK(C57),ISBLANK(C56)),AVERAGE(F56:F57),IF(OR(ISTEXT(F56),ISTEXT(F57)),"Invalid",AVERAGE(F56:F57)))) -> 
H58: =IF(AND(ISBLANK(C58),ISBLANK(C59)),"",IF(AVERAGE($C58:$C59)>$D$22,"LESS than Standard 1, outside of quantifiable range",IF(AVERAGE($C58:$C59)<$D$28,"GREATER than Standard 7, outside of quantifiable range",""))) -> 
D59: =IF(OR(ISBLANK(C58),ISBLANK(C59)),"",STDEV(C58,C59)) ->  | E59: =IF(ISTEXT(D59),"",D59/((C58+C59)/2)*100) ->  | G59: =IF(AND(ISBLANK(C58),ISBLANK(C59)),"",IF(OR(ISBLANK(C59),ISBLANK(C58)),AVERAGE(F58:F59),IF(OR(ISTEXT(F58),ISTEXT(F59)),"Invalid",AVERAGE(F58:F59)))) -> 
F60: =IF(ISBLANK(C60),"",IF(C60<=$C$35,"Invalid",IF(C60>=$C$32,"Invalid",$C$34*(($C$32-C60)/(C60-$C$35))^(1/$C$33)))) ->  | H60: =IF(AND(ISBLANK(C60),ISBLANK(C61)),"",IF(AVERAGE($C60:$C61)>$D$22,"LESS than Standard 1, outside of quantifiable range",IF(AVERAGE($C60:$C61)<$D$28,"GREATER than Standard 7, outside of quantifiable range",""))) -> 
D61: =IF(OR(ISBLANK(C60),ISBLANK(C61)),"",STDEV(C60,C61)) ->  | E61: =IF(ISTEXT(D61),"",D61/((C60+C61)/2)*100) ->  | G61: =IF(AND(ISBLANK(C60),ISBLANK(C61)),"",IF(OR(ISBLANK(C61),ISBLANK(C60)),AVERAGE(F60:F61),IF(OR(ISTEXT(F60),ISTEXT(F61)),"Invalid",AVERAGE(F60:F61)))) -> 
H62: =IF(AND(ISBLANK(C62),ISBLANK(C63)),"",IF(AVERAGE($C62:$C63)>$D$22,"LESS than Standard 1, outside of quantifiable range",IF(AVERAGE($C62:$C63)<$D$28,"GREATER than Standard 7, outside of quantifiable range",""))) -> 
D63: =IF(OR(ISBLANK(C62),ISBLANK(C63)),"",STDEV(C62,C63)) ->  | E63: =IF(ISTEXT(D63),"",D63/((C62+C63)/2)*100) ->  | G63: =IF(AND(ISBLANK(C62),ISBLANK(C63)),"",IF(OR(ISBLANK(C63),ISBLANK(C62)),AVERAGE(F62:F63),IF(OR(ISTEXT(F62),ISTEXT(F63)),"Invalid",AVERAGE(F62:F63)))) -> 
H64: =IF(AND(ISBLANK(C64),ISBLANK(C65)),"",IF(AVERAGE($C64:$C65)>$D$22,"LESS than Standard 1, outside of quantifiable range",IF(AVERAGE($C64:$C65)<$D$28,"GREATER than Standard 7, outside of quantifiable range",""))) -> 
D65: =IF(OR(ISBLANK(C64),ISBLANK(C65)),"",STDEV(C64,C65)) ->  | E65: =IF(ISTEXT(D65),"",D65/((C64+C65)/2)*100) ->  | G65: =IF(AND(ISBLANK(C64),ISBLANK(C65)),"",IF(OR(ISBLANK(C65),ISBLANK(C64)),AVERAGE(F64:F65),IF(OR(ISTEXT(F64),ISTEXT(F65)),"Invalid",AVERAGE(F64:F65)))) -> 
H66: =IF(AND(ISBLANK(C66),ISBLANK(C67)),"",IF(AVERAGE($C66:$C67)>$D$22,"LESS than Standard 1, outside of quantifiable range",IF(AVERAGE($C66:$C67)<$D$28,"GREATER than Standard 7, outside of quantifiable range",""))) -> 
D67: =IF(OR(ISBLANK(C66),ISBLANK(C67)),"",STDEV(C66,C67)) ->  | E67: =IF(ISTEXT(D67),"",D67/((C66+C67)/2)*100) ->  | G67: =IF(AND(ISBLANK(C66),ISBLANK(C67)),"",IF(OR(ISBLANK(C67),ISBLANK(C66)),AVERAGE(F66:F67),IF(OR(ISTEXT(F66),ISTEXT(F67)),"Invalid",AVERAGE(F66:F67)))) -> 
H68: =IF(AND(ISBLANK(C68),ISBLANK(C69)),"",IF(AVERAGE($C68:$C69)>$D$22,"LESS than Standard 1, outside of quantifiable range",IF(AVERAGE($C68:$C69)<$D$28,"GREATER than Standard 7, outside of quantifiable range",""))) -> 
D69: =IF(OR(ISBLANK(C68),ISBLANK(C69)),"",STDEV(C68,C69)) ->  | E69: =IF(ISTEXT(D69),"",D69/((C68+C69)/2)*100) ->  | G69: =IF(AND(ISBLANK(C68),ISBLANK(C69)),"",IF(OR(ISBLANK(C69),ISBLANK(C68)),AVERAGE(F68:F69),IF(OR(ISTEXT(F68),ISTEXT(F69)),"Invalid",AVERAGE(F68:F69)))) -> 
H70: =IF(AND(ISBLANK(C70),ISBLANK(C71)),"",IF(AVERAGE($C70:$C71)>$D$22,"LESS than Standard 1, outside of quantifiable range",IF(AVERAGE($C70:$C71)<$D$28,"GREATER than Standard 7, outside of quantifiable range",""))) -> 
D71: =IF(OR(ISBLANK(C70),ISBLANK(C71)),"",STDEV(C70,C71)) ->  | E71: =IF(ISTEXT(D71),"",D71/((C70+C71)/2)*100) ->  | G71: =IF(AND(ISBLANK(C70),ISBLANK(C71)),"",IF(OR(ISBLANK(C71),ISBLANK(C70)),AVERAGE(F70:F71),IF(OR(ISTEXT(F70),ISTEXT(F71)),"Invalid",AVERAGE(F70:F71)))) -> 
H72: =IF(AND(ISBLANK(C72),ISBLANK(C73)),"",IF(AVERAGE($C72:$C73)>$D$22,"LESS than Standard 1, outside of quantifiable range",IF(AVERAGE($C72:$C73)<$D$28,"GREATER than Standard 7, outside of quantifiable range",""))) -> 
D73: =IF(OR(ISBLANK(C72),ISBLANK(C73)),"",STDEV(C72,C73)) ->  | E73: =IF(ISTEXT(D73),"",D73/((C72+C73)/2)*100) ->  | G73: =IF(AND(ISBLANK(C72),ISBLANK(C73)),"",IF(OR(ISBLANK(C73),ISBLANK(C72)),AVERAGE(F72:F73),IF(OR(ISTEXT(F72),ISTEXT(F73)),"Invalid",AVERAGE(F72:F73)))) -> 
H74: =IF(AND(ISBLANK(C74),ISBLANK(C75)),"",IF(AVERAGE($C74:$C75)>$D$22,"LESS than Standard 1, outside of quantifiable range",IF(AVERAGE($C74:$C75)<$D$28,"GREATER than Standard 7, outside of quantifiable range",""))) -> 
D75: =IF(OR(ISBLANK(C74),ISBLANK(C75)),"",STDEV(C74,C75)) ->  | E75: =IF(ISTEXT(D75),"",D75/((C74+C75)/2)*100) ->  | F75: =IF(ISBLANK(C75),"",IF(C75<=$C$35,"invalid",IF(C75>=$C$32,"invalid",$C$34*(($C$32-C75)/(C75-$C$35))^(1/$C$33)))) ->  | G75: =IF(AND(ISBLANK(C74),ISBLANK(C75)),"",IF(OR(ISBLANK(C75),ISBLANK(C74)),AVERAGE(F74:F75),IF(OR(ISTEXT(F74),ISTEXT(F75)),"Invalid",AVERAGE(F74:F75)))) -> 
F76: =IF(ISBLANK(C76),"",IF(C76<=$C$35,"Invalid",IF(C76>=$C$32,"Invalid",$C$34*(($C$32-C76)/(C76-$C$35))^(1/$C$33)))) ->  | H76: =IF(AND(ISBLANK(C76),ISBLANK(C77)),"",IF(AVERAGE($C76:$C77)>$D$22,"LESS than Standard 1, outside of quantifiable range",IF(AVERAGE($C76:$C77)<$D$28,"GREATER than Standard 7, outside of quantifiable range",""))) -> 
D77: =IF(OR(ISBLANK(C76),ISBLANK(C77)),"",STDEV(C76,C77)) ->  | E77: =IF(ISTEXT(D77),"",D77/((C76+C77)/2)*100) ->  | G77: =IF(AND(ISBLANK(C76),ISBLANK(C77)),"",IF(OR(ISBLANK(C77),ISBLANK(C76)),AVERAGE(F76:F77),IF(OR(ISTEXT(F76),ISTEXT(F77)),"Invalid",AVERAGE(F76:F77)))) -> 
H78: =IF(AND(ISBLANK(C78),ISBLANK(C79)),"",IF(AVERAGE($C78:$C79)>$D$22,"LESS than Standard 1, outside of quantifiable range",IF(AVERAGE($C78:$C79)<$D$28,"GREATER than Standard 7, outside of quantifiable range",""))) -> 
D79: =IF(OR(ISBLANK(C78),ISBLANK(C79)),"",STDEV(C78,C79)) ->  | E79: =IF(ISTEXT(D79),"",D79/((C78+C79)/2)*100) ->  | G79: =IF(AND(ISBLANK(C78),ISBLANK(C79)),"",IF(OR(ISBLANK(C79),ISBLANK(C78)),AVERAGE(F78:F79),IF(OR(ISTEXT(F78),ISTEXT(F79)),"Invalid",AVERAGE(F78:F79)))) -> 
F80: =IF(ISBLANK(C80),"",IF(C80<=$C$35,"Invalid",IF(C80>=$C$32,"Invalid",$C$34*(($C$32-C80)/(C80-$C$35))^(1/$C$33)))) ->  | H80: =IF(AND(ISBLANK(C80),ISBLANK(C81)),"",IF(AVERAGE($C80:$C81)>$D$22,"LESS than Standard 1, outside of quantifiable range",IF(AVERAGE($C80:$C81)<$D$28,"GREATER than Standard 7, outside of quantifiable range",""))) -> 
D81: =IF(OR(ISBLANK(C80),ISBLANK(C81)),"",STDEV(C80,C81)) ->  | E81: =IF(ISTEXT(D81),"",D81/((C80+C81)/2)*100) ->  | F81: =IF(ISBLANK(C81),"",IF(C81<=$C$35,"Invalid",IF(C81>=$C$32,"Invalid",$C$34*(($C$32-C81)/(C81-$C$35))^(1/$C$33)))) ->  | G81: =IF(AND(ISBLANK(C80),ISBLANK(C81)),"",IF(OR(ISBLANK(C81),ISBLANK(C80)),AVERAGE(F80:F81),IF(OR(ISTEXT(F80),ISTEXT(F81)),"Invalid",AVERAGE(F80:F81)))) -> 
H82: =IF(AND(ISBLANK(C82),ISBLANK(C83)),"",IF(AVERAGE($C82:$C83)>$D$22,"LESS than Standard 1, outside of quantifiable range",IF(AVERAGE($C82:$C83)<$D$28,"GREATER than Standard 7, outside of quantifiable range",""))) -> 
D83: =IF(OR(ISBLANK(C82),ISBLANK(C83)),"",STDEV(C82,C83)) ->  | E83: =IF(ISTEXT(D83),"",D83/((C82+C83)/2)*100) ->  | G83: =IF(AND(ISBLANK(C82),ISBLANK(C83)),"",IF(OR(ISBLANK(C83),ISBLANK(C82)),AVERAGE(F82:F83),IF(OR(ISTEXT(F82),ISTEXT(F83)),"Invalid",AVERAGE(F82:F83)))) -> 
F84: =IF(ISBLANK(C84),"",IF(C84<=$C$35,"Invalid",IF(C84>=$C$32,"Invalid",$C$34*(($C$32-C84)/(C84-$C$35))^(1/$C$33)))) ->  | H84: =IF(AND(ISBLANK(C84),ISBLANK(C85)),"",IF(AVERAGE($C84:$C85)>$D$22,"LESS than Standard 1, outside of quantifiable range",IF(AVERAGE($C84:$C85)<$D$28,"GREATER than Standard 7, outside of quantifiable range",""))) -> 
D85: =IF(OR(ISBLANK(C84),ISBLANK(C85)),"",STDEV(C84,C85)) ->  | E85: =IF(ISTEXT(D85),"",D85/((C84+C85)/2)*100) ->  | F85: =IF(ISBLANK(C85),"",IF(C85<=$C$35,"Invalid",IF(C85>=$C$32,"Invalid",$C$34*(($C$32-C85)/(C85-$C$35))^(1/$C$33)))) ->  | G85: =IF(AND(ISBLANK(C84),ISBLANK(C85)),"",IF(OR(ISBLANK(C85),ISBLANK(C84)),AVERAGE(F84:F85),IF(OR(ISTEXT(F84),ISTEXT(F85)),"Invalid",AVERAGE(F84:F85)))) -> 
H86: =IF(AND(ISBLANK(C86),ISBLANK(C87)),"",IF(AVERAGE($C86:$C87)>$D$22,"LESS than Standard 1, outside of quantifiable range",IF(AVERAGE($C86:$C87)<$D$28,"GREATER than Standard 7, outside of quantifiable range",""))) -> 
D87: =IF(OR(ISBLANK(C86),ISBLANK(C87)),"",STDEV(C86,C87)) ->  | E87: =IF(ISTEXT(D87),"",D87/((C86+C87)/2)*100) ->  | G87: =IF(AND(ISBLANK(C86),ISBLANK(C87)),"",IF(OR(ISBLANK(C87),ISBLANK(C86)),AVERAGE(F86:F87),IF(OR(ISTEXT(F86),ISTEXT(F87)),"Invalid",AVERAGE(F86:F87)))) -> 
H88: =IF(AND(ISBLANK(C88),ISBLANK(C89)),"",IF(AVERAGE($C88:$C89)>$D$22,"LESS than Standard 1, outside of quantifiable range",IF(AVERAGE($C88:$C89)<$D$28,"GREATER than Standard 7, outside of quantifiable range",""))) -> 
D89: =IF(OR(ISBLANK(C88),ISBLANK(C89)),"",STDEV(C88,C89)) ->  | E89: =IF(ISTEXT(D89),"",D89/((C88+C89)/2)*100) ->  | G89: =IF(AND(ISBLANK(C88),ISBLANK(C89)),"",IF(OR(ISBLANK(C89),ISBLANK(C88)),AVERAGE(F88:F89),IF(OR(ISTEXT(F88),ISTEXT(F89)),"Invalid",AVERAGE(F88:F89)))) -> 
H90: =IF(AND(ISBLANK(C90),ISBLANK(C91)),"",IF(AVERAGE($C90:$C91)>$D$22,"LESS than Standard 1, outside of quantifiable range",IF(AVERAGE($C90:$C91)<$D$28,"GREATER than Standard 7, outside of quantifiable range",""))) -> 
D91: =IF(OR(ISBLANK(C90),ISBLANK(C91)),"",STDEV(C90,C91)) ->  | E91: =IF(ISTEXT(D91),"",D91/((C90+C91)/2)*100) ->  | G91: =IF(AND(ISBLANK(C90),ISBLANK(C91)),"",IF(OR(ISBLANK(C91),ISBLANK(C90)),AVERAGE(F90:F91),IF(OR(ISTEXT(F90),ISTEXT(F91)),"Invalid",AVERAGE(F90:F91)))) -> 
H92: =IF(AND(ISBLANK(C92),ISBLANK(C93)),"",IF(AVERAGE($C92:$C93)>$D$22,"LESS than Standard 1, outside of quantifiable range",IF(AVERAGE($C92:$C93)<$D$28,"GREATER than Standard 7, outside of quantifiable range",""))) -> 
D93: =IF(OR(ISBLANK(C92),ISBLANK(C93)),"",STDEV(C92,C93)) ->  | E93: =IF(ISTEXT(D93),"",D93/((C92+C93)/2)*100) ->  | G93: =IF(AND(ISBLANK(C92),ISBLANK(C93)),"",IF(OR(ISBLANK(C93),ISBLANK(C92)),AVERAGE(F92:F93),IF(OR(ISTEXT(F92),ISTEXT(F93)),"Invalid",AVERAGE(F92:F93)))) -> 
H94: =IF(AND(ISBLANK(C94),ISBLANK(C95)),"",IF(AVERAGE($C94:$C95)>$D$22,"LESS than Standard 1, outside of quantifiable range",IF(AVERAGE($C94:$C95)<$D$28,"GREATER than Standard 7, outside of quantifiable range",""))) -> 
D95: =IF(OR(ISBLANK(C94),ISBLANK(C95)),"",STDEV(C94,C95)) ->  | E95: =IF(ISTEXT(D95),"",D95/((C94+C95)/2)*100) ->  | G95: =IF(AND(ISBLANK(C94),ISBLANK(C95)),"",IF(OR(ISBLANK(C95),ISBLANK(C94)),AVERAGE(F94:F95),IF(OR(ISTEXT(F94),ISTEXT(F95)),"Invalid",AVERAGE(F94:F95)))) -> 
H96: =IF(AND(ISBLANK(C96),ISBLANK(C97)),"",IF(AVERAGE($C96:$C97)>$D$22,"LESS than Standard 1, outside of quantifiable range",IF(AVERAGE($C96:$C97)<$D$28,"GREATER than Standard 7, outside of quantifiable range",""))) -> 
D97: =IF(OR(ISBLANK(C96),ISBLANK(C97)),"",STDEV(C96,C97)) ->  | E97: =IF(ISTEXT(D97),"",D97/((C96+C97)/2)*100) ->  | G97: =IF(AND(ISBLANK(C96),ISBLANK(C97)),"",IF(OR(ISBLANK(C97),ISBLANK(C96)),AVERAGE(F96:F97),IF(OR(ISTEXT(F96),ISTEXT(F97)),"Invalid",AVERAGE(F96:F97)))) -> 
H98: =IF(AND(ISBLANK(C98),ISBLANK(C99)),"",IF(AVERAGE($C98:$C99)>$D$22,"LESS than Standard 1, outside of quantifiable range",IF(AVERAGE($C98:$C99)<$D$28,"GREATER than Standard 7, outside of quantifiable range",""))) -> 
D99: =IF(OR(ISBLANK(C98),ISBLANK(C99)),"",STDEV(C98,C99)) ->  | E99: =IF(ISTEXT(D99),"",D99/((C98+C99)/2)*100) ->  | F99: =IF(ISBLANK(C99),"",IF(C99<=$C$35,"invalid",IF(C99>=$C$32,"invalid",$C$34*(($C$32-C99)/(C99-$C$35))^(1/$C$33)))) ->  | G99: =IF(AND(ISBLANK(C98),ISBLANK(C99)),"",IF(OR(ISBLANK(C99),ISBLANK(C98)),AVERAGE(F98:F99),IF(OR(ISTEXT(F98),ISTEXT(F99)),"Invalid",AVERAGE(F98:F99)))) -> 
F100: =IF(ISBLANK(C100),"",IF(C100<=$C$35,"Invalid",IF(C100>=$C$32,"Invalid",$C$34*(($C$32-C100)/(C100-$C$35))^(1/$C$33)))) ->  | H100: =IF(AND(ISBLANK(C100),ISBLANK(C101)),"",IF(AVERAGE($C100:$C101)>$D$22,"LESS than Standard 1, outside of quantifiable range",IF(AVERAGE($C100:$C101)<$D$28,"GREATER than Standard 7, outside of quantifiable range",""))) -> 
D101: =IF(OR(ISBLANK(C100),ISBLANK(C101)),"",STDEV(C100,C101)) ->  | E101: =IF(ISTEXT(D101),"",D101/((C100+C101)/2)*100) ->  | G101: =IF(AND(ISBLANK(C100),ISBLANK(C101)),"",IF(OR(ISBLANK(C101),ISBLANK(C100)),AVERAGE(F100:F101),IF(OR(ISTEXT(F100),ISTEXT(F101)),"Invalid",AVERAGE(F100:F101)))) -> 
H102: =IF(AND(ISBLANK(C102),ISBLANK(C103)),"",IF(AVERAGE($C102:$C103)>$D$22,"LESS than Standard 1, outside of quantifiable range",IF(AVERAGE($C102:$C103)<$D$28,"GREATER than Standard 7, outside of quantifiable range",""))) -> 
D103: =IF(OR(ISBLANK(C102),ISBLANK(C103)),"",STDEV(C102,C103)) ->  | E103: =IF(ISTEXT(D103),"",D103/((C102+C103)/2)*100) ->  | G103: =IF(AND(ISBLANK(C102),ISBLANK(C103)),"",IF(OR(ISBLANK(C103),ISBLANK(C102)),AVERAGE(F102:F103),IF(OR(ISTEXT(F102),ISTEXT(F103)),"Invalid",AVERAGE(F102:F103)))) -> 
F104: =IF(ISBLANK(C104),"",IF(C104<=$C$35,"Invalid",IF(C104>=$C$32,"Invalid",$C$34*(($C$32-C104)/(C104-$C$35))^(1/$C$33)))) ->  | H104: =IF(AND(ISBLANK(C104),ISBLANK(C105)),"",IF(AVERAGE($C104:$C105)>$D$22,"LESS than Standard 1, outside of quantifiable range",IF(AVERAGE($C104:$C105)<$D$28,"GREATER than Standard 7, outside of quantifiable range",""))) -> 
D105: =IF(OR(ISBLANK(C104),ISBLANK(C105)),"",STDEV(C104,C105)) ->  | E105: =IF(ISTEXT(D105),"",D105/((C104+C105)/2)*100) ->  | F105: =IF(ISBLANK(C105),"",IF(C105<=$C$35,"Invalid",IF(C105>=$C$32,"Invalid",$C$34*(($C$32-C105)/(C105-$C$35))^(1/$C$33)))) ->  | G105: =IF(AND(ISBLANK(C104),ISBLANK(C105)),"",IF(OR(ISBLANK(C105),ISBLANK(C104)),AVERAGE(F104:F105),IF(OR(ISTEXT(F104),ISTEXT(F105)),"Invalid",AVERAGE(F104:F105)))) -> 
H106: =IF(AND(ISBLANK(C106),ISBLANK(C107)),"",IF(AVERAGE($C106:$C107)>$D$22,"LESS than Standard 1, outside of quantifiable range",IF(AVERAGE($C106:$C107)<$D$28,"GREATER than Standard 7, outside of quantifiable range",""))) -> 
D107: =IF(OR(ISBLANK(C106),ISBLANK(C107)),"",STDEV(C106,C107)) ->  | E107: =IF(ISTEXT(D107),"",D107/((C106+C107)/2)*100) ->  | G107: =IF(AND(ISBLANK(C106),ISBLANK(C107)),"",IF(OR(ISBLANK(C107),ISBLANK(C106)),AVERAGE(F106:F107),IF(OR(ISTEXT(F106),ISTEXT(F107)),"Invalid",AVERAGE(F106:F107)))) -> 
F108: =IF(ISBLANK(C108),"",IF(C108<=$C$35,"Invalid",IF(C108>=$C$32,"Invalid",$C$34*(($C$32-C108)/(C108-$C$35))^(1/$C$33)))) ->  | H108: =IF(AND(ISBLANK(C108),ISBLANK(C109)),"",IF(AVERAGE($C108:$C109)>$D$22,"LESS than Standard 1, outside of quantifiable range",IF(AVERAGE($C108:$C109)<$D$28,"GREATER than Standard 7, outside of quantifiable range",""))) -> 
D109: =IF(OR(ISBLANK(C108),ISBLANK(C109)),"",STDEV(C108,C109)) ->  | E109: =IF(ISTEXT(D109),"",D109/((C108+C109)/2)*100) ->  | F109: =IF(ISBLANK(C109),"",IF(C109<=$C$35,"Invalid",IF(C109>=$C$32,"Invalid",$C$34*(($C$32-C109)/(C109-$C$35))^(1/$C$33)))) ->  | G109: =IF(AND(ISBLANK(C108),ISBLANK(C109)),"",IF(OR(ISBLANK(C109),ISBLANK(C108)),AVERAGE(F108:F109),IF(OR(ISTEXT(F108),ISTEXT(F109)),"Invalid",AVERAGE(F108:F109)))) -> 
H110: =IF(AND(ISBLANK(C110),ISBLANK(C111)),"",IF(AVERAGE($C110:$C111)>$D$22,"LESS than Standard 1, outside of quantifiable range",IF(AVERAGE($C110:$C111)<$D$28,"GREATER than Standard 7, outside of quantifiable range",""))) -> 
D111: =IF(OR(ISBLANK(C110),ISBLANK(C111)),"",STDEV(C110,C111)) ->  | E111: =IF(ISTEXT(D111),"",D111/((C110+C111)/2)*100) ->  | G111: =IF(AND(ISBLANK(C110),ISBLANK(C111)),"",IF(OR(ISBLANK(C111),ISBLANK(C110)),AVERAGE(F110:F111),IF(OR(ISTEXT(F110),ISTEXT(F111)),"Invalid",AVERAGE(F110:F111)))) -> 
H112: =IF(AND(ISBLANK(C112),ISBLANK(C113)),"",IF(AVERAGE($C112:$C113)>$D$22,"LESS than Standard 1, outside of quantifiable range",IF(AVERAGE($C112:$C113)<$D$28,"GREATER than Standard 7, outside of quantifiable range",""))) -> 
D113: =IF(OR(ISBLANK(C112),ISBLANK(C113)),"",STDEV(C112,C113)) ->  | E113: =IF(ISTEXT(D113),"",D113/((C112+C113)/2)*100) ->  | G113: =IF(AND(ISBLANK(C112),ISBLANK(C113)),"",IF(OR(ISBLANK(C113),ISBLANK(C112)),AVERAGE(F112:F113),IF(OR(ISTEXT(F112),ISTEXT(F113)),"Invalid",AVERAGE(F112:F113)))) -> 
H114: =IF(AND(ISBLANK(C114),ISBLANK(C115)),"",IF(AVERAGE($C114:$C115)>$D$22,"LESS than Standard 1, outside of quantifiable range",IF(AVERAGE($C114:$C115)<$D$28,"GREATER than Standard 7, outside of quantifiable range",""))) -> 
D115: =IF(OR(ISBLANK(C114),ISBLANK(C115)),"",STDEV(C114,C115)) ->  | E115: =IF(ISTEXT(D115),"",D115/((C114+C115)/2)*100) ->  | G115: =IF(AND(ISBLANK(C114),ISBLANK(C115)),"",IF(OR(ISBLANK(C115),ISBLANK(C114)),AVERAGE(F114:F115),IF(OR(ISTEXT(F114),ISTEXT(F115)),"Invalid",AVERAGE(F114:F115)))) -> 
H116: =IF(AND(ISBLANK(C116),ISBLANK(C117)),"",IF(AVERAGE($C116:$C117)>$D$22,"LESS than Standard 1, outside of quantifiable range",IF(AVERAGE($C116:$C117)<$D$28,"GREATER than Standard 7, outside of quantifiable range",""))) -> 
D117: =IF(OR(ISBLANK(C116),ISBLANK(C117)),"",STDEV(C116,C117)) ->  | E117: =IF(ISTEXT(D117),"",D117/((C116+C117)/2)*100) ->  | G117: =IF(AND(ISBLANK(C116),ISBLANK(C117)),"",IF(OR(ISBLANK(C117),ISBLANK(C116)),AVERAGE(F116:F117),IF(OR(ISTEXT(F116),ISTEXT(F117)),"Invalid",AVERAGE(F116:F117)))) -> 
H118: =IF(AND(ISBLANK(C118),ISBLANK(C119)),"",IF(AVERAGE($C118:$C119)>$D$22,"LESS than Standard 1, outside of quantifiable range",IF(AVERAGE($C118:$C119)<$D$28,"GREATER than Standard 7, outside of quantifiable range",""))) -> 
D119: =IF(OR(ISBLANK(C118),ISBLANK(C119)),"",STDEV(C118,C119)) ->  | E119: =IF(ISTEXT(D119),"",D119/((C118+C119)/2)*100) ->  | G119: =IF(AND(ISBLANK(C118),ISBLANK(C119)),"",IF(OR(ISBLANK(C119),ISBLANK(C118)),AVERAGE(F118:F119),IF(OR(ISTEXT(F118),ISTEXT(F119)),"Invalid",AVERAGE(F118:F119)))) -> 
H120: =IF(AND(ISBLANK(C120),ISBLANK(C121)),"",IF(AVERAGE($C120:$C121)>$D$22,"LESS than Standard 1, outside of quantifiable range",IF(AVERAGE($C120:$C121)<$D$28,"GREATER than Standard 7, outside of quantifiable range",""))) -> 
D121: =IF(OR(ISBLANK(C120),ISBLANK(C121)),"",STDEV(C120,C121)) ->  | E121: =IF(ISTEXT(D121),"",D121/((C120+C121)/2)*100) ->  | G121: =IF(AND(ISBLANK(C120),ISBLANK(C121)),"",IF(OR(ISBLANK(C121),ISBLANK(C120)),AVERAGE(F120:F121),IF(OR(ISTEXT(F120),ISTEXT(F121)),"Invalid",AVERAGE(F120:F121)))) -> 
H122: =IF(AND(ISBLANK(C122),ISBLANK(C123)),"",IF(AVERAGE($C122:$C123)>$D$22,"LESS than Standard 1, outside of quantifiable range",IF(AVERAGE($C122:$C123)<$D$28,"GREATER than Standard 7, outside of quantifiable range",""))) -> 
D123: =IF(OR(ISBLANK(C122),ISBLANK(C123)),"",STDEV(C122,C123)) ->  | E123: =IF(ISTEXT(D123),"",D123/((C122+C123)/2)*100) ->  | F123: =IF(ISBLANK(C123),"",IF(C123<=$C$35,"invalid",IF(C123>=$C$32,"invalid",$C$34*(($C$32-C123)/(C123-$C$35))^(1/$C$33)))) ->  | G123: =IF(AND(ISBLANK(C122),ISBLANK(C123)),"",IF(OR(ISBLANK(C123),ISBLANK(C122)),AVERAGE(F122:F123),IF(OR(ISTEXT(F122),ISTEXT(F123)),"Invalid",AVERAGE(F122:F123)))) -> 
F124: =IF(ISBLANK(C124),"",IF(C124<=$C$35,"Invalid",IF(C124>=$C$32,"Invalid",$C$34*(($C$32-C124)/(C124-$C$35))^(1/$C$33)))) ->  | H124: =IF(AND(ISBLANK(C124),ISBLANK(C125)),"",IF(AVERAGE($C124:$C125)>$D$22,"LESS than Standard 1, outside of quantifiable range",IF(AVERAGE($C124:$C125)<$D$28,"GREATER than Standard 7, outside of quantifiable range",""))) -> 
D125: =IF(OR(ISBLANK(C124),ISBLANK(C125)),"",STDEV(C124,C125)) ->  | E125: =IF(ISTEXT(D125),"",D125/((C124+C125)/2)*100) ->  | G125: =IF(AND(ISBLANK(C124),ISBLANK(C125)),"",IF(OR(ISBLANK(C125),ISBLANK(C124)),AVERAGE(F124:F125),IF(OR(ISTEXT(F124),ISTEXT(F125)),"Invalid",AVERAGE(F124:F125)))) -> 
H126: =IF(AND(ISBLANK(C126),ISBLANK(C127)),"",IF(AVERAGE($C126:$C127)>$D$22,"LESS than Standard 1, outside of quantifiable range",IF(AVERAGE($C126:$C127)<$D$28,"GREATER than Standard 7, outside of quantifiable range",""))) -> 
D127: =IF(OR(ISBLANK(C126),ISBLANK(C127)),"",STDEV(C126,C127)) ->  | E127: =IF(ISTEXT(D127),"",D127/((C126+C127)/2)*100) ->  | G127: =IF(AND(ISBLANK(C126),ISBLANK(C127)),"",IF(OR(ISBLANK(C127),ISBLANK(C126)),AVERAGE(F126:F127),IF(OR(ISTEXT(F126),ISTEXT(F127)),"Invalid",AVERAGE(F126:F127)))) -> 
F128: =IF(ISBLANK(C128),"",IF(C128<=$C$35,"Invalid",IF(C128>=$C$32,"Invalid",$C$34*(($C$32-C128)/(C128-$C$35))^(1/$C$33)))) ->  | H128: =IF(AND(ISBLANK(C128),ISBLANK(C129)),"",IF(AVERAGE($C128:$C129)>$D$22,"LESS than Standard 1, outside of quantifiable range",IF(AVERAGE($C128:$C129)<$D$28,"GREATER than Standard 7, outside of quantifiable range",""))) -> 
D129: =IF(OR(ISBLANK(C128),ISBLANK(C129)),"",STDEV(C128,C129)) ->  | E129: =IF(ISTEXT(D129),"",D129/((C128+C129)/2)*100) ->  | F129: =IF(ISBLANK(C129),"",IF(C129<=$C$35,"Invalid",IF(C129>=$C$32,"Invalid",$C$34*(($C$32-C129)/(C129-$C$35))^(1/$C$33)))) ->  | G129: =IF(AND(ISBLANK(C128),ISBLANK(C129)),"",IF(OR(ISBLANK(C129),ISBLANK(C128)),AVERAGE(F128:F129),IF(OR(ISTEXT(F128),ISTEXT(F129)),"Invalid",AVERAGE(F128:F129)))) -> 
H130: =IF(AND(ISBLANK(C130),ISBLANK(C131)),"",IF(AVERAGE($C130:$C131)>$D$22,"LESS than Standard 1, outside of quantifiable range",IF(AVERAGE($C130:$C131)<$D$28,"GREATER than Standard 7, outside of quantifiable range",""))) -> 
D131: =IF(OR(ISBLANK(C130),ISBLANK(C131)),"",STDEV(C130,C131)) ->  | E131: =IF(ISTEXT(D131),"",D131/((C130+C131)/2)*100) ->  | G131: =IF(AND(ISBLANK(C130),ISBLANK(C131)),"",IF(OR(ISBLANK(C131),ISBLANK(C130)),AVERAGE(F130:F131),IF(OR(ISTEXT(F130),ISTEXT(F131)),"Invalid",AVERAGE(F130:F131)))) -> 
F132: =IF(ISBLANK(C132),"",IF(C132<=$C$35,"Invalid",IF(C132>=$C$32,"Invalid",$C$34*(($C$32-C132)/(C132-$C$35))^(1/$C$33)))) ->  | H132: =IF(AND(ISBLANK(C132),ISBLANK(C133)),"",IF(AVERAGE($C132:$C133)>$D$22,"LESS than Standard 1, outside of quantifiable range",IF(AVERAGE($C132:$C133)<$D$28,"GREATER than Standard 7, outside of quantifiable range",""))) -> 
D133: =IF(OR(ISBLANK(C132),ISBLANK(C133)),"",STDEV(C132,C133)) ->  | E133: =IF(ISTEXT(D133),"",D133/((C132+C133)/2)*100) ->  | F133: =IF(ISBLANK(C133),"",IF(C133<=$C$35,"Invalid",IF(C133>=$C$32,"Invalid",$C$34*(($C$32-C133)/(C133-$C$35))^(1/$C$33)))) ->  | G133: =IF(AND(ISBLANK(C132),ISBLANK(C133)),"",IF(OR(ISBLANK(C133),ISBLANK(C132)),AVERAGE(F132:F133),IF(OR(ISTEXT(F132),ISTEXT(F133)),"Invalid",AVERAGE(F132:F133)))) -> 
H134: =IF(AND(ISBLANK(C134),ISBLANK(C135)),"",IF(AVERAGE($C134:$C135)>$D$22,"LESS than Standard 1, outside of quantifiable range",IF(AVERAGE($C134:$C135)<$D$28,"GREATER than Standard 7, outside of quantifiable range",""))) -> 
D135: =IF(OR(ISBLANK(C134),ISBLANK(C135)),"",STDEV(C134,C135)) ->  | E135: =IF(ISTEXT(D135),"",D135/((C134+C135)/2)*100) ->  | G135: =IF(AND(ISBLANK(C134),ISBLANK(C135)),"",IF(OR(ISBLANK(C135),ISBLANK(C134)),AVERAGE(F134:F135),IF(OR(ISTEXT(F134),ISTEXT(F135)),"Invalid",AVERAGE(F134:F135)))) -> 
H136: =IF(AND(ISBLANK(C136),ISBLANK(C137)),"",IF(AVERAGE($C136:$C137)>$D$22,"LESS than Standard 1, outside of quantifiable range",IF(AVERAGE($C136:$C137)<$D$28,"GREATER than Standard 7, outside of quantifiable range",""))) -> 
D137: =IF(OR(ISBLANK(C136),ISBLANK(C137)),"",STDEV(C136,C137)) ->  | E137: =IF(ISTEXT(D137),"",D137/((C136+C137)/2)*100) ->  | G137: =IF(AND(ISBLANK(C136),ISBLANK(C137)),"",IF(OR(ISBLANK(C137),ISBLANK(C136)),AVERAGE(F136:F137),IF(OR(ISTEXT(F136),ISTEXT(F137)),"Invalid",AVERAGE(F136:F137)))) -> 
H138: =IF(AND(ISBLANK(C138),ISBLANK(C139)),"",IF(AVERAGE($C138:$C139)>$D$22,"LESS than Standard 1, outside of quantifiable range",IF(AVERAGE($C138:$C139)<$D$28,"GREATER than Standard 7, outside of quantifiable range",""))) -> 
D139: =IF(OR(ISBLANK(C138),ISBLANK(C139)),"",STDEV(C138,C139)) ->  | E139: =IF(ISTEXT(D139),"",D139/((C138+C139)/2)*100) ->  | G139: =IF(AND(ISBLANK(C138),ISBLANK(C139)),"",IF(OR(ISBLANK(C139),ISBLANK(C138)),AVERAGE(F138:F139),IF(OR(ISTEXT(F138),ISTEXT(F139)),"Invalid",AVERAGE(F138:F139)))) -> 
H140: =IF(AND(ISBLANK(C140),ISBLANK(C141)),"",IF(AVERAGE($C140:$C141)>$D$22,"LESS than Standard 1, outside of quantifiable range",IF(AVERAGE($C140:$C141)<$D$28,"GREATER than Standard 7, outside of quantifiable range",""))) -> 
D141: =IF(OR(ISBLANK(C140),ISBLANK(C141)),"",STDEV(C140,C141)) ->  | E141: =IF(ISTEXT(D141),"",D141/((C140+C141)/2)*100) ->  | G141: =IF(AND(ISBLANK(C140),ISBLANK(C141)),"",IF(OR(ISBLANK(C141),ISBLANK(C140)),AVERAGE(F140:F141),IF(OR(ISTEXT(F140),ISTEXT(F141)),"Invalid",AVERAGE(F140:F141)))) -> 
H142: =IF(AND(ISBLANK(C142),ISBLANK(C143)),"",IF(AVERAGE($C142:$C143)>$D$22,"LESS than Standard 1, outside of quantifiable range",IF(AVERAGE($C142:$C143)<$D$28,"GREATER than Standard 7, outside of quantifiable range",""))) -> 
D143: =IF(OR(ISBLANK(C142),ISBLANK(C143)),"",STDEV(C142,C143)) ->  | E143: =IF(ISTEXT(D143),"",D143/((C142+C143)/2)*100) ->  | G143: =IF(AND(ISBLANK(C142),ISBLANK(C143)),"",IF(OR(ISBLANK(C143),ISBLANK(C142)),AVERAGE(F142:F143),IF(OR(ISTEXT(F142),ISTEXT(F143)),"Invalid",AVERAGE(F142:F143)))) -> 
H144: =IF(AND(ISBLANK(C144),ISBLANK(C145)),"",IF(AVERAGE($C144:$C145)>$D$22,"LESS than Standard 1, outside of quantifiable range",IF(AVERAGE($C144:$C145)<$D$28,"GREATER than Standard 7, outside of quantifiable range",""))) -> 
D145: =IF(OR(ISBLANK(C144),ISBLANK(C145)),"",STDEV(C144,C145)) ->  | E145: =IF(ISTEXT(D145),"",D145/((C144+C145)/2)*100) ->  | G145: =IF(AND(ISBLANK(C144),ISBLANK(C145)),"",IF(OR(ISBLANK(C145),ISBLANK(C144)),AVERAGE(F144:F145),IF(OR(ISTEXT(F144),ISTEXT(F145)),"Invalid",AVERAGE(F144:F145)))) -> 
H146: =IF(AND(ISBLANK(C146),ISBLANK(C147)),"",IF(AVERAGE($C146:$C147)>$D$22,"LESS than Standard 1, outside of quantifiable range",IF(AVERAGE($C146:$C147)<$D$28,"GREATER than Standard 7, outside of quantifiable range",""))) -> 
D147: =IF(OR(ISBLANK(C146),ISBLANK(C147)),"",STDEV(C146,C147)) ->  | E147: =IF(ISTEXT(D147),"",D147/((C146+C147)/2)*100) ->  | F147: =IF(ISBLANK(C147),"",IF(C147<=$C$35,"invalid",IF(C147>=$C$32,"invalid",$C$34*(($C$32-C147)/(C147-$C$35))^(1/$C$33)))) ->  | G147: =IF(AND(ISBLANK(C146),ISBLANK(C147)),"",IF(OR(ISBLANK(C147),ISBLANK(C146)),AVERAGE(F146:F147),IF(OR(ISTEXT(F146),ISTEXT(F147)),"Invalid",AVERAGE(F146:F147)))) -> 
